Workbook

Sheet KORADO
C2: =logic!P4 -> Teplota: | H2: =logic!R4 -> Detailní výběr
C3: t 1 | D3: t 2 | E3: t i | F3: D T | J3: =logic!O4&" "&logic!M4 -> Tepelný výkon od | L3: =logic!C45& " "&logic!N4 -> W do | N3: =logic!C45 -> W
C4: 75 | D4: 65 | E4: 20 | F4: =(C4+D4)/2-E4 -> 50 | J4: =logic!K4&" "&logic!M4 -> Výška od | K4: =logic!B24 -> vše | L4: ="mm "&logic!$N$4 -> mm do | M4: =logic!B34 -> vše | N4: mm
C5: =logic!J4 -> Tepelné výkony podle EN 442 | J5: =logic!L4&" "&logic!M4 -> Délka od | K5: =logic!B4 -> vše | L5: ="mm "&logic!$N$4 -> mm do | M5: =logic!B14 -> vše | N5: mm
C6: =IF(OR(C4<7,D4<6,C4>110,D4>110,C4<=D4,F4<=0,E4<4,E4>40.5),logic!Q4,0) -> 0
C7: =logic!$AB$4 -> Provedení | E7: =logic!$AC$4 -> Povrchová úprava | H7: =logic!U4 -> Způsob připojení
C8: =logic!B99 -> LINEAR | E8: =logic!B105 -> BARVA | H8: =lblZpusobPripojeni -> spodní zdola dolů | P8: =logic!L24 -> Počet záznamů v databázi: | Q8: =MAX(Databáze!A:A) -> 0
D12: =IF(AND($K$4=logic!$I$4,$M$4=logic!$I$4),1,IF(D15=$K$4,1,0)) -> 1 | E12: =IF(AND($K$4=logic!$I$4,$M$4=logic!$I$4),1,IF(AND(E15>=$K$4,E15<=$M$4),1,0)) -> 1 | F12: =IF(AND($K$4=logic!$I$4,$M$4=logic!$I$4),1,IF(AND(F15>=$K$4,F15<=$M$4),1,0)) -> 1 | G12: =IF(AND($K$4=logic!$I$4,$M$4=logic!$I$4),1,IF(AND(G15>=$K$4,G15<=$M$4),1,0)) -> 1 | H12: =IF(AND($K$4=logic!$I$4,$M$4=logic!$I$4),1,IF(AND(H15>=$K$4,H15<=$M$4),1,0)) -> 1 | I12: =IF(logic!$A$51=2,0,IF(AND($K$4=logic!$I$4,$M$4=logic!$I$4),1,IF(I15=$K$4,1,0))) -> 1 | J12: =IF(logic!$A$51=2,0,IF(AND($K$4=logic!$I$4,$M$4=logic!$I$4),1,IF(AND(E15>=$K$4,E15<=$M$4),1,0))) -> 1 | K12: =IF(logic!$A$51=2,0,IF(AND($K$4=logic!$I$4,$M$4=logic!$I$4),1,IF(AND(F15>=$K$4,F15<=$M$4),1,0))) -> 1 | L12: =IF(logic!$A$51=2,0,IF(AND($K$4=logic!$I$4,$M$4=logic!$I$4),1,IF(AND(G15>=$K$4,G15<=$M$4),1,0))) -> 1 | M12: =IF(logic!$A$51=2,0,IF(AND($K$4=logic!$I$4,$M$4=logic!$I$4),1,IF(AND(H15>=$K$4,H15<=$M$4),1,0))) -> 1
D13: KORALUX LINEAR MAX | I13: KORALUX LINEAR MAX - M | T13: KORALUX LINEAR MAX | Y13: KORALUX LINEAR MAX - M
C14: =logic!$L$4 -> Délka | D14: =logic!$K$4&" H [mm]" -> Výška H [mm] | I14: =logic!$K$4&" H [mm]" -> Výška H [mm] | N14: =logic!$L$4 -> Délka | S14: =logic!$L$4 -> Délka | T14: =logic!$K$4&" H [mm]" -> Výška H [mm] | Y14: =logic!$K$4&" H [mm]" -> Výška H [mm] | AD14: =logic!$L$4 -> Délka
C15: L [mm] | D15: 700 | E15: 900 | F15: 1220 | G15: 1500 | H15: 1820 | I15: 700 | J15: 900 | K15: 1220 | L15: 1500 | M15: 1820 | N15: L [mm] | S15: L [mm] | T15: 700 | U15: 900 | V15: 1220 | W15: 1500 | X15: 1820 | Y15: 700 | Z15: 900 | AA15: 1220 | AB15: 1500 | AC15: 1820 | AD15: L [mm]
B16: =IF(AND($K$5=logic!$I$4,$M$5=logic!$I$4),1,IF(AND(C16>=$K$5,C16<=$M$5),1,0)) -> 1 | C16: 450 | D16: =IF(OR(D$12=0,$B16=0),0,IF(logic!$A$51=1,výkony!C15,výkony!P15)) -> 320 | E16: =IF(OR(E$12=0,$B16=0),0,IF(logic!$A$51=1,výkony!D15,výkony!Q15)) -> 411 | F16: =IF(OR(F$12=0,$B16=0),0,IF(logic!$A$51=1,výkony!E15,výkony!R15)) -> 557 | G16: =IF(OR(G$12=0,$B16=0),0,IF(logic!$A$51=1,výkony!F15,výkony!S15)) -> 686 | H16: =IF(OR(H$12=0,$B16=0),0,IF(logic!$A$51=1,výkony!G15,výkony!T15)) -> 833 | I16: =IF(OR(I$12=0,$B16=0),0,IF(logic!$A$51=1,výkony!H15,výkony!U15)) -> 320 | J16: =IF(OR(J$12=0,$B16=0),0,IF(logic!$A$51=1,výkony!I15,výkony!V15)) -> 411 | K16: =IF(OR(K$12=0,$B16=0),0,IF(logic!$A$51=1,výkony!J15,výkony!W15)) -> 557 | L16: =IF(OR(L$12=0,$B16=0),0,IF(logic!$A$51=1,výkony!K15,výkony!X15)) -> 686 | M16: =IF(OR(M$12=0,$B16=0),0,IF(logic!$A$51=1,výkony!L15,výkony!Y15)) -> 833 | N16: 450 | S16: 450 | T16: ="KLM-"&IF(LEN(T$15)=3,"0"&T$15/10,T$15/10)&"0"&$S16/10&"-00-10" -> KLM-070045-00-10 | U16: ="KLM-"&IF(LEN(U$15)=3,"0"&U$15/10,U$15/10)&"0"&$S16/10&"-00-10" -> KLM-090045-00-10 | V16: KLM-122045-00-10 | W16: KLM-150045-00-10 | X16: KLM-182045-00-10 | Y16: ="KLM-"&IF(LEN(Y$15)=3,"0"&Y$15/10,Y$15/10)&"0"&$S16/10&"-00M10" -> KLM-070045-00M10 | Z16: ="KLM-"&IF(LEN(Z$15)=3,"0"&Z$15/10,Z$15/10)&"0"&$S16/10&"-00M10" -> KLM-090045-00M10 | AA16: KLM-122045-00M10 | AB16: KLM-150045-00M10 | AC16: KLM-182045-00M10 | AD16: 450
B17: =IF(AND($K$5=logic!$I$4,$M$5=logic!$I$4),1,IF(AND(C17>=$K$5,C17<=$M$5),1,0)) -> 1 | C17: 600 | D17: =IF(OR(D$12=0,$B17=0),0,IF(logic!$A$51=1,výkony!C16,výkony!P16)) -> 422 | E17: =IF(OR(E$12=0,$B17=0),0,IF(logic!$A$51=1,výkony!D16,výkony!Q16)) -> 543 | F17: =IF(OR(F$12=0,$B17=0),0,IF(logic!$A$51=1,výkony!E16,výkony!R16)) -> 736 | G17: =IF(OR(G$12=0,$B17=0),0,IF(logic!$A$51=1,výkony!F16,výkony!S16)) -> 906 | H17: =IF(OR(H$12=0,$B17=0),0,IF(logic!$A$51=1,výkony!G16,výkony!T16)) -> 1101 | I17: =IF(OR(I$12=0,$B17=0),0,IF(logic!$A$51=1,výkony!H16,výkony!U16)) -> 422 | J17: =IF(OR(J$12=0,$B17=0),0,IF(logic!$A$51=1,výkony!I16,výkony!V16)) -> 543 | K17: =IF(OR(K$12=0,$B17=0),0,IF(logic!$A$51=1,výkony!J16,výkony!W16)) -> 736 | L17: =IF(OR(L$12=0,$B17=0),0,IF(logic!$A$51=1,výkony!K16,výkony!X16)) -> 906 | M17: =IF(OR(M$12=0,$B17=0),0,IF(logic!$A$51=1,výkony!L16,výkony!Y16)) -> 1101 | N17: 600 | S17: 600 | T17: ="KLM-"&IF(LEN(T$15)=3,"0"&T$15/10,T$15/10)&"0"&$S17/10&"-00-10" -> KLM-070060-00-10 | U17: KLM-090060-00-10 | V17: KLM-122060-00-10 | W17: KLM-150060-00-10 | X17: KLM-182060-00-10 | Y17: ="KLM-"&IF(LEN(Y$15)=3,"0"&Y$15/10,Y$15/10)&"0"&$S17/10&"-00M10" -> KLM-070060-00M10 | Z17: KLM-090060-00M10 | AA17: KLM-122060-00M10 | AB17: KLM-150060-00M10 | AC17: KLM-182060-00M10 | AD17: 600
B18: =IF(AND($K$5=logic!$I$4,$M$5=logic!$I$4),1,IF(AND(C18>=$K$5,C18<=$M$5),1,0)) -> 1 | C18: 750 | D18: =IF(OR(D$12=0,$B18=0),0,IF(logic!$A$51=1,výkony!C17,výkony!P17)) -> 524 | E18: =IF(OR(E$12=0,$B18=0),0,IF(logic!$A$51=1,výkony!D17,výkony!Q17)) -> 673 | F18: =IF(OR(F$12=0,$B18=0),0,IF(logic!$A$51=1,výkony!E17,výkony!R17)) -> 913 | G18: =IF(OR(G$12=0,$B18=0),0,IF(logic!$A$51=1,výkony!F17,výkony!S17)) -> 1124 | H18: =IF(OR(H$12=0,$B18=0),0,IF(logic!$A$51=1,výkony!G17,výkony!T17)) -> 1367 | I18: =IF(OR(I$12=0,$B18=0),0,IF(logic!$A$51=1,výkony!H17,výkony!U17)) -> 524 | J18: =IF(OR(J$12=0,$B18=0),0,IF(logic!$A$51=1,výkony!I17,výkony!V17)) -> 673 | K18: =IF(OR(K$12=0,$B18=0),0,IF(logic!$A$51=1,výkony!J17,výkony!W17)) -> 913 | L18: =IF(OR(L$12=0,$B18=0),0,IF(logic!$A$51=1,výkony!K17,výkony!X17)) -> 1124 | M18: =IF(OR(M$12=0,$B18=0),0,IF(logic!$A$51=1,výkony!L17,výkony!Y17)) -> 1367 | N18: 750 | S18: 750 | T18: KLM-070075-00-10 | U18: KLM-090075-00-10 | V18: KLM-122075-00-10 | W18: KLM-150075-00-10 | X18: KLM-182075-00-10 | Y18: KLM-070075-00M10 | Z18: KLM-090075-00M10 | AA18: KLM-122075-00M10 | AB18: KLM-150075-00M10 | AC18: KLM-182075-00M10 | AD18: 750
D20: KORALUX LINEAR COMFORT | I20: KORALUX LINEAR COMFORT - M | T20: KORALUX LINEAR COMFORT | Y20: KORALUX LINEAR COMFORT - M
C21: =logic!$L$4 -> Délka | D21: =logic!$K$4&" H [mm]" -> Výška H [mm] | I21: =logic!$K$4&" H [mm]" -> Výška H [mm] | N21: =logic!$L$4 -> Délka | S21: =logic!$L$4 -> Délka | T21: =logic!$K$4&" H [mm]" -> Výška H [mm] | Y21: =logic!$K$4&" H [mm]" -> Výška H [mm] | AD21: =logic!$L$4 -> Délka
C22: L [mm] | D22: 700 | E22: 900 | F22: 1220 | G22: 1500 | H22: 1820 | I22: 700 | J22: 900 | K22: 1220 | L22: 1500 | M22: 1820 | N22: L [mm] | S22: L [mm] | T22: 700 | U22: 900 | V22: 1220 | W22: 1500 | X22: 1820 | Y22: 700 | Z22: 900 | AA22: 1220 | AB22: 1500 | AC22: 1820 | AD22: L [mm]
B23: =IF(AND($K$5=logic!$I$4,$M$5=logic!$I$4),1,IF(AND(C23>=$K$5,C23<=$M$5),1,0)) -> 1 | C23: 450 | D23: =IF(OR(D$12=0,$B23=0),0,IF(logic!$A$51=1,výkony!C22,výkony!P22)) -> 287 | E23: =IF(OR(E$12=0,$B23=0),0,IF(logic!$A$51=1,výkony!D22,výkony!Q22)) -> 369 | F23: =IF(OR(F$12=0,$B23=0),0,IF(logic!$A$51=1,výkony!E22,výkony!R22)) -> 504 | G23: =IF(OR(G$12=0,$B23=0),0,IF(logic!$A$51=1,výkony!F22,výkony!S22)) -> 626 | H23: =IF(OR(H$12=0,$B23=0),0,IF(logic!$A$51=1,výkony!G22,výkony!T22)) -> 772 | I23: =IF(OR(I$12=0,$B23=0),0,IF(logic!$A$51=1,výkony!H22,výkony!U22)) -> 287 | J23: =IF(OR(J$12=0,$B23=0),0,IF(logic!$A$51=1,výkony!I22,výkony!V22)) -> 369 | K23: =IF(OR(K$12=0,$B23=0),0,IF(logic!$A$51=1,výkony!J22,výkony!W22)) -> 504 | L23: =IF(OR(L$12=0,$B23=0),0,IF(logic!$A$51=1,výkony!K22,výkony!X22)) -> 626 | M23: =IF(OR(M$12=0,$B23=0),0,IF(logic!$A$51=1,výkony!L22,výkony!Y22)) -> 772 | N23: 450 | S23: 450 | T23: ="KLT-"&IF(LEN(T$22)=3,"0"&T$22/10,T$22/10)&"0"&$S23/10&"-00-10" -> KLT-070045-00-10 | U23: ="KLT-"&IF(LEN(U$22)=3,"0"&U$22/10,U$22/10)&"0"&$S23/10&"-00-10" -> KLT-090045-00-10 | V23: KLT-122045-00-10 | W23: KLT-150045-00-10 | X23: KLT-182045-00-10 | Y23: ="KLT-"&IF(LEN(Y$22)=3,"0"&Y$22/10,Y$22/10)&"0"&$S23/10&"-00M10" -> KLT-070045-00M10 | Z23: ="KLT-"&IF(LEN(Z$22)=3,"0"&Z$22/10,Z$22/10)&"0"&$S23/10&"-00M10" -> KLT-090045-00M10 | AA23: KLT-122045-00M10 | AB23: KLT-150045-00M10 | AC23: KLT-182045-00M10 | AD23: 450
B24: =IF(AND($K$5=logic!$I$4,$M$5=logic!$I$4),1,IF(AND(C24>=$K$5,C24<=$M$5),1,0)) -> 1 | C24: 500 | D24: =IF(OR(D$12=0,$B24=0),0,IF(logic!$A$51=1,výkony!C23,výkony!P23)) -> 315 | E24: =IF(OR(E$12=0,$B24=0),0,IF(logic!$A$51=1,výkony!D23,výkony!Q23)) -> 405 | F24: =IF(OR(F$12=0,$B24=0),0,IF(logic!$A$51=1,výkony!E23,výkony!R23)) -> 553 | G24: =IF(OR(G$12=0,$B24=0),0,IF(logic!$A$51=1,výkony!F23,výkony!S23)) -> 687 | H24: =IF(OR(H$12=0,$B24=0),0,IF(logic!$A$51=1,výkony!G23,výkony!T23)) -> 848 | I24: =IF(OR(I$12=0,$B24=0),0,IF(logic!$A$51=1,výkony!H23,výkony!U23)) -> 315 | J24: =IF(OR(J$12=0,$B24=0),0,IF(logic!$A$51=1,výkony!I23,výkony!V23)) -> 405 | K24: =IF(OR(K$12=0,$B24=0),0,IF(logic!$A$51=1,výkony!J23,výkony!W23)) -> 553 | L24: =IF(OR(L$12=0,$B24=0),0,IF(logic!$A$51=1,výkony!K23,výkony!X23)) -> 687 | M24: =IF(OR(M$12=0,$B24=0),0,IF(logic!$A$51=1,výkony!L23,výkony!Y23)) -> 848 | N24: 500 | S24: 500 | T24: ="KLT-"&IF(LEN(T$22)=3,"0"&T$22/10,T$22/10)&"0"&$S24/10&"-00-10" -> KLT-070050-00-10 | U24: KLT-090050-00-10 | V24: KLT-122050-00-10 | W24: KLT-150050-00-10 | X24: KLT-182050-00-10 | Y24: ="KLT-"&IF(LEN(Y$22)=3,"0"&Y$22/10,Y$22/10)&"0"&$S24/10&"-00M10" -> KLT-070050-00M10 | Z24: KLT-090050-00M10 | AA24: KLT-122050-00M10 | AB24: KLT-150050-00M10 | AC24: KLT-182050-00M10 | AD24: 500
B25: =IF(AND($K$5=logic!$I$4,$M$5=logic!$I$4),1,IF(AND(C25>=$K$5,C25<=$M$5),1,0)) -> 1 | C25: 600 | D25: =IF(OR(D$12=0,$B25=0),0,IF(logic!$A$51=1,výkony!C24,výkony!P24)) -> 370 | E25: =IF(OR(E$12=0,$B25=0),0,IF(logic!$A$51=1,výkony!D24,výkony!Q24)) -> 475 | F25: =IF(OR(F$12=0,$B25=0),0,IF(logic!$A$51=1,výkony!E24,výkony!R24)) -> 650 | G25: =IF(OR(G$12=0,$B25=0),0,IF(logic!$A$51=1,výkony!F24,výkony!S24)) -> 808 | H25: =IF(OR(H$12=0,$B25=0),0,IF(logic!$A$51=1,výkony!G24,výkony!T24)) -> 996 | I25: =IF(OR(I$12=0,$B25=0),0,IF(logic!$A$51=1,výkony!H24,výkony!U24)) -> 370 | J25: =IF(OR(J$12=0,$B25=0),0,IF(logic!$A$51=1,výkony!I24,výkony!V24)) -> 475 | K25: =IF(OR(K$12=0,$B25=0),0,IF(logic!$A$51=1,výkony!J24,výkony!W24)) -> 650 | L25: =IF(OR(L$12=0,$B25=0),0,IF(logic!$A$51=1,výkony!K24,výkony!X24)) -> 808 | M25: =IF(OR(M$12=0,$B25=0),0,IF(logic!$A$51=1,výkony!L24,výkony!Y24)) -> 996 | N25: 600 | S25: 600 | T25: KLT-070060-00-10 | U25: KLT-090060-00-10 | V25: KLT-122060-00-10 | W25: KLT-150060-00-10 | X25: KLT-182060-00-10 | Y25: KLT-070060-00M10 | Z25: KLT-090060-00M10 | AA25: KLT-122060-00M10 | AB25: KLT-150060-00M10 | AC25: KLT-182060-00M10 | AD25: 600
B26: =IF(AND($K$5=logic!$I$4,$M$5=logic!$I$4),1,IF(AND(C26>=$K$5,C26<=$M$5),1,0)) -> 1 | C26: 750 | D26: =IF(OR(D$12=0,$B26=0),0,IF(logic!$A$51=1,výkony!C25,výkony!P25)) -> 450 | E26: =IF(OR(E$12=0,$B26=0),0,IF(logic!$A$51=1,výkony!D25,výkony!Q25)) -> 579 | F26: =IF(OR(F$12=0,$B26=0),0,IF(logic!$A$51=1,výkony!E25,výkony!R25)) -> 791 | G26: =IF(OR(G$12=0,$B26=0),0,IF(logic!$A$51=1,výkony!F25,výkony!S25)) -> 984 | H26: =IF(OR(H$12=0,$B26=0),0,IF(logic!$A$51=1,výkony!G25,výkony!T25)) -> 1213 | I26: =IF(OR(I$12=0,$B26=0),0,IF(logic!$A$51=1,výkony!H25,výkony!U25)) -> 450 | J26: =IF(OR(J$12=0,$B26=0),0,IF(logic!$A$51=1,výkony!I25,výkony!V25)) -> 579 | K26: =IF(OR(K$12=0,$B26=0),0,IF(logic!$A$51=1,výkony!J25,výkony!W25)) -> 791 | L26: =IF(OR(L$12=0,$B26=0),0,IF(logic!$A$51=1,výkony!K25,výkony!X25)) -> 984 | M26: =IF(OR(M$12=0,$B26=0),0,IF(logic!$A$51=1,výkony!L25,výkony!Y25)) -> 1213 | N26: 750 | S26: 750 | T26: KLT-070075-00-10 | U26: KLT-090075-00-10 | V26: KLT-122075-00-10 | W26: KLT-150075-00-10 | X26: KLT-182075-00-10 | Y26: KLT-070075-00M10 | Z26: KLT-090075-00M10 | AA26: KLT-122075-00M10 | AB26: KLT-150075-00M10 | AC26: KLT-182075-00M10 | AD26: 750
D28: KORALUX LINEAR CLASSIC | I28: KORALUX LINEAR CLASSIC - M | T28: KORALUX LINEAR CLASSIC | Y28: KORALUX LINEAR CLASSIC - M
C29: =logic!$L$4 -> Délka | D29: =logic!$K$4&" H [mm]" -> Výška H [mm] | I29: =logic!$K$4&" H [mm]" -> Výška H [mm] | N29: =logic!$L$4 -> Délka | S29: =logic!$L$4 -> Délka | T29: =logic!$K$4&" H [mm]" -> Výška H [mm] | Y29: =logic!$K$4&" H [mm]" -> Výška H [mm] | AD29: =logic!$L$4 -> Délka
C30: L [mm] | D30: 700 | E30: 900 | F30: 1220 | G30: 1500 | H30: 1820 | I30: 700 | J30: 900 | K30: 1220 | L30: 1500 | M30: 1820 | N30: L [mm] | S30: L [mm] | T30: 700 | U30: 900 | V30: 1220 | W30: 1500 | X30: 1820 | Y30: 700 | Z30: 900 | AA30: 1220 | AB30: 1500 | AC30: 1820 | AD30: L [mm]
B31: =IF(AND($K$5=logic!$I$4,$M$5=logic!$I$4),1,IF(AND(C31>=$K$5,C31<=$M$5),1,0)) -> 1 | C31: 450 | D31: =IF(OR(D$12=0,$B31=0),0,IF(logic!$A$51=1,výkony!C30,výkony!P30)) -> 255 | E31: =IF(OR(E$12=0,$B31=0),0,IF(logic!$A$51=1,výkony!D30,výkony!Q30)) -> 333 | F31: =IF(OR(F$12=0,$B31=0),0,IF(logic!$A$51=1,výkony!E30,výkony!R30)) -> 462 | G31: =IF(OR(G$12=0,$B31=0),0,IF(logic!$A$51=1,výkony!F30,výkony!S30)) -> 581 | H31: =IF(OR(H$12=0,$B31=0),0,IF(logic!$A$51=1,výkony!G30,výkony!T30)) -> 725 | I31: =IF(OR(I$12=0,$B31=0),0,IF(logic!$A$51=1,výkony!H30,výkony!U30)) -> 255 | J31: =IF(OR(J$12=0,$B31=0),0,IF(logic!$A$51=1,výkony!I30,výkony!V30)) -> 333 | K31: =IF(OR(K$12=0,$B31=0),0,IF(logic!$A$51=1,výkony!J30,výkony!W30)) -> 462 | L31: =IF(OR(L$12=0,$B31=0),0,IF(logic!$A$51=1,výkony!K30,výkony!X30)) -> 581 | M31: =IF(OR(M$12=0,$B31=0),0,IF(logic!$A$51=1,výkony!L30,výkony!Y30)) -> 725 | N31: 450 | S31: 450 | T31: ="KLC-"&IF(LEN(T$30)=3,"0"&T$30/10,T$30/10)&"0"&$S31/10&"-00-10" -> KLC-070045-00-10 | U31: ="KLC-"&IF(LEN(U$30)=3,"0"&U$30/10,U$30/10)&"0"&$S31/10&"-00-10" -> KLC-090045-00-10 | V31: KLC-122045-00-10 | W31: KLC-150045-00-10 | X31: KLC-182045-00-10 | Y31: ="KLC-"&IF(LEN(Y$30)=3,"0"&Y$30/10,Y$30/10)&"0"&$S31/10&"-00M10" -> KLC-070045-00M10 | Z31: ="KLC-"&IF(LEN(Z$30)=3,"0"&Z$30/10,Z$30/10)&"0"&$S31/10&"-00M10" -> KLC-090045-00M10 | AA31: KLC-122045-00M10 | AB31: KLC-150045-00M10 | AC31: KLC-182045-00M10 | AD31: 450
B32: =IF(AND($K$5=logic!$I$4,$M$5=logic!$I$4),1,IF(AND(C32>=$K$5,C32<=$M$5),1,0)) -> 1 | C32: 500 | D32: =IF(OR(D$12=0,$B32=0),0,IF(logic!$A$51=1,výkony!C31,výkony!P31)) -> 280 | E32: =IF(OR(E$12=0,$B32=0),0,IF(logic!$A$51=1,výkony!D31,výkony!Q31)) -> 365 | F32: =IF(OR(F$12=0,$B32=0),0,IF(logic!$A$51=1,výkony!E31,výkony!R31)) -> 507 | G32: =IF(OR(G$12=0,$B32=0),0,IF(logic!$A$51=1,výkony!F31,výkony!S31)) -> 638 | H32: =IF(OR(H$12=0,$B32=0),0,IF(logic!$A$51=1,výkony!G31,výkony!T31)) -> 795 | I32: =IF(OR(I$12=0,$B32=0),0,IF(logic!$A$51=1,výkony!H31,výkony!U31)) -> 280 | J32: =IF(OR(J$12=0,$B32=0),0,IF(logic!$A$51=1,výkony!I31,výkony!V31)) -> 365 | K32: =IF(OR(K$12=0,$B32=0),0,IF(logic!$A$51=1,výkony!J31,výkony!W31)) -> 507 | L32: =IF(OR(L$12=0,$B32=0),0,IF(logic!$A$51=1,výkony!K31,výkony!X31)) -> 638 | M32: =IF(OR(M$12=0,$B32=0),0,IF(logic!$A$51=1,výkony!L31,výkony!Y31)) -> 795 | N32: 500 | S32: 500 | T32: ="KLC-"&IF(LEN(T$30)=3,"0"&T$30/10,T$30/10)&"0"&$S32/10&"-00-10" -> KLC-070050-00-10 | U32: KLC-090050-00-10 | V32: KLC-122050-00-10 | W32: KLC-150050-00-10 | X32: KLC-182050-00-10 | Y32: ="KLC-"&IF(LEN(Y$30)=3,"0"&Y$30/10,Y$30/10)&"0"&$S32/10&"-00M10" -> KLC-070050-00M10 | Z32: KLC-090050-00M10 | AA32: KLC-122050-00M10 | AB32: KLC-150050-00M10 | AC32: KLC-182050-00M10 | AD32: 500
B33: =IF(AND($K$5=logic!$I$4,$M$5=logic!$I$4),1,IF(AND(C33>=$K$5,C33<=$M$5),1,0)) -> 1 | C33: 600 | D33: =IF(OR(D$12=0,$B33=0),0,IF(logic!$A$51=1,výkony!C32,výkony!P32)) -> 329 | E33: =IF(OR(E$12=0,$B33=0),0,IF(logic!$A$51=1,výkony!D32,výkony!Q32)) -> 429 | F33: =IF(OR(F$12=0,$B33=0),0,IF(logic!$A$51=1,výkony!E32,výkony!R32)) -> 596 | G33: =IF(OR(G$12=0,$B33=0),0,IF(logic!$A$51=1,výkony!F32,výkony!S32)) -> 750 | H33: =IF(OR(H$12=0,$B33=0),0,IF(logic!$A$51=1,výkony!G32,výkony!T32)) -> 934 | I33: =IF(OR(I$12=0,$B33=0),0,IF(logic!$A$51=1,výkony!H32,výkony!U32)) -> 329 | J33: =IF(OR(J$12=0,$B33=0),0,IF(logic!$A$51=1,výkony!I32,výkony!V32)) -> 429 | K33: =IF(OR(K$12=0,$B33=0),0,IF(logic!$A$51=1,výkony!J32,výkony!W32)) -> 596 | L33: =IF(OR(L$12=0,$B33=0),0,IF(logic!$A$51=1,výkony!K32,výkony!X32)) -> 750 | M33: =IF(OR(M$12=0,$B33=0),0,IF(logic!$A$51=1,výkony!L32,výkony!Y32)) -> 934 | N33: 600 | S33: 600 | T33: KLC-070060-00-10 | U33: KLC-090060-00-10 | V33: KLC-122060-00-10 | W33: KLC-150060-00-10 | X33: KLC-182060-00-10 | Y33: KLC-070060-00M10 | Z33: KLC-090060-00M10 | AA33: KLC-122060-00M10 | AB33: KLC-150060-00M10 | AC33: KLC-182060-00M10 | AD33: 600
B34: =IF(AND($K$5=logic!$I$4,$M$5=logic!$I$4),1,IF(AND(C34>=$K$5,C34<=$M$5),1,0)) -> 1 | C34: 750 | D34: =IF(OR(D$12=0,$B34=0),0,IF(logic!$A$51=1,výkony!C33,výkony!P33)) -> 400 | E34: =IF(OR(E$12=0,$B34=0),0,IF(logic!$A$51=1,výkony!D33,výkony!Q33)) -> 522 | F34: =IF(OR(F$12=0,$B34=0),0,IF(logic!$A$51=1,výkony!E33,výkony!R33)) -> 726 | G34: =IF(OR(G$12=0,$B34=0),0,IF(logic!$A$51=1,výkony!F33,výkony!S33)) -> 913 | H34: =IF(OR(H$12=0,$B34=0),0,IF(logic!$A$51=1,výkony!G33,výkony!T33)) -> 1138 | I34: =IF(OR(I$12=0,$B34=0),0,IF(logic!$A$51=1,výkony!H33,výkony!U33)) -> 400 | J34: =IF(OR(J$12=0,$B34=0),0,IF(logic!$A$51=1,výkony!I33,výkony!V33)) -> 522 | K34: =IF(OR(K$12=0,$B34=0),0,IF(logic!$A$51=1,výkony!J33,výkony!W33)) -> 726 | L34: =IF(OR(L$12=0,$B34=0),0,IF(logic!$A$51=1,výkony!K33,výkony!X33)) -> 913 | M34: =IF(OR(M$12=0,$B34=0),0,IF(logic!$A$51=1,výkony!L33,výkony!Y33)) -> 1138 | N34: 750 | S34: 750 | T34: KLC-070075-00-10 | U34: KLC-090075-00-10 | V34: KLC-122075-00-10 | W34: KLC-150075-00-10 | X34: KLC-182075-00-10 | Y34: KLC-070075-00M10 | Z34: KLC-090075-00M10 | AA34: KLC-122075-00M10 | AB34: KLC-150075-00M10 | AC34: KLC-182075-00M10 | AD34: 750
D36: KORALUX STANDARD | T36: KORALUX STANDARD
C37: =logic!$L$4 -> Délka | D37: =logic!$K$4&" H [mm]" -> Výška H [mm] | S37: =logic!$L$4 -> Délka | T37: =logic!$K$4&" H [mm]" -> Výška H [mm]
C38: L [mm] | D38: 700 | E38: 900 | F38: 1220 | G38: 1500 | S38: L [mm] | T38: 700 | U38: 900 | V38: 1220 | W38: 1500
B39: =IF(AND($K$5=logic!$I$4,$M$5=logic!$I$4),1,IF(C39=$K$5,1,0)) -> 1 | C39: 400 | D39: =IF(OR(D$12=0,$B39=0),0,IF(logic!$A$51=1,výkony!C38,výkony!P38)) -> 198 | E39: =IF(OR(E$12=0,$B39=0),0,IF(logic!$A$51=1,výkony!D38,výkony!Q38)) -> 254 | F39: =IF(OR(F$12=0,$B39=0),0,IF(logic!$A$51=1,výkony!E38,výkony!R38)) -> 345 | G39: =IF(OR(G$12=0,$B39=0),0,IF(logic!$A$51=1,výkony!F38,výkony!S38)) -> 427 | S39: 400 | T39: ="KSC-"&IF(LEN(T$38)=3,"0"&T$38/10,T$38/10)&"0"&$S39/10&"-00-10" -> KSC-070040-00-10 | U39: KSC-090040-00-10 | V39: KSC-122040-00-10 | W39: KSC-150040-00-10
B40: =IF(AND($K$5=logic!$I$4,$M$5=logic!$I$4),1,IF(AND(C40>=$K$5,C40<=$M$5),1,0)) -> 1 | C40: 500 | D40: =IF(OR(D$12=0,$B40=0),0,IF(logic!$A$51=1,výkony!C39,výkony!P39)) -> 231 | E40: =IF(OR(E$12=0,$B40=0),0,IF(logic!$A$51=1,výkony!D39,výkony!Q39)) -> 297 | F40: =IF(OR(F$12=0,$B40=0),0,IF(logic!$A$51=1,výkony!E39,výkony!R39)) -> 403 | G40: =IF(OR(G$12=0,$B40=0),0,IF(logic!$A$51=1,výkony!F39,výkony!S39)) -> 499 | S40: 500 | T40: KSC-070050-00-10 | U40: KSC-090050-00-10 | V40: KSC-122050-00-10 | W40: KSC-150050-00-10
B41: =IF(AND($K$5=logic!$I$4,$M$5=logic!$I$4),1,IF(AND(C41>=$K$5,C41<=$M$5),1,0)) -> 1 | C41: 600 | D41: =IF(OR(D$12=0,$B41=0),0,IF(logic!$A$51=1,výkony!C40,výkony!P40)) -> 263 | E41: =IF(OR(E$12=0,$B41=0),0,IF(logic!$A$51=1,výkony!D40,výkony!Q40)) -> 337 | F41: =IF(OR(F$12=0,$B41=0),0,IF(logic!$A$51=1,výkony!E40,výkony!R40)) -> 458 | G41: =IF(OR(G$12=0,$B41=0),0,IF(logic!$A$51=1,výkony!F40,výkony!S40)) -> 567 | S41: 600 | T41: KSC-070060-00-10 | U41: KSC-090060-00-10 | V41: KSC-122060-00-10 | W41: KSC-150060-00-10
D43: KORALUX LINEAR EXCLUSIVE - M
C44: =logic!$L$4 -> Délka | D44: =logic!$K$4&" H [mm]" -> Výška H [mm]
C45: L [mm] | D45: 900 | E45: 1220 | F45: 1500 | G45: 1820
B46: =IF(AND($K$5=logic!$I$4,$M$5=logic!$I$4),1,IF(C46=$K$5,1,0)) -> 1 | C46: 450 | D46: =IF(OR(J$12=0,$B39=0),0,IF(logic!$A$51=1,výkony!C45,0)) -> 249 | E46: =IF(OR(K$12=0,$B39=0),0,IF(logic!$A$51=1,výkony!D45,0)) -> 338 | F46: =IF(OR(L$12=0,$B39=0),0,IF(logic!$A$51=1,výkony!E45,0)) -> 419 | G46: =IF(OR(M$12=0,$B39=0),0,IF(logic!$A$51=1,výkony!F45,0)) -> 516
B47: =IF(AND($K$5=logic!$I$4,$M$5=logic!$I$4),1,IF(AND(C47>=$K$5,C47<=$M$5),1,0)) -> 1 | C47: 600 | D47: =IF(OR(J$12=0,$B40=0),0,IF(logic!$A$51=1,výkony!C46,0)) -> 319 | E47: =IF(OR(K$12=0,$B40=0),0,IF(logic!$A$51=1,výkony!D46,0)) -> 433 | F47: =IF(OR(L$12=0,$B40=0),0,IF(logic!$A$51=1,výkony!E46,0)) -> 537 | G47: =IF(OR(M$12=0,$B40=0),0,IF(logic!$A$51=1,výkony!F46,0)) -> 662
B48: =IF(AND($K$5=logic!$I$4,$M$5=logic!$I$4),1,IF(AND(C48>=$K$5,C48<=$M$5),1,0)) -> 1 | C48: 750 | D48: =IF(OR(J$12=0,$B41=0),0,IF(logic!$A$51=1,výkony!C47,0)) -> 387 | E48: =IF(OR(K$12=0,$B41=0),0,IF(logic!$A$51=1,výkony!D47,0)) -> 526 | F48: =IF(OR(L$12=0,$B41=0),0,IF(logic!$A$51=1,výkony!E47,0)) -> 652 | G48: =IF(OR(M$12=0,$B41=0),0,IF(logic!$A$51=1,výkony!F47,0)) -> 802
D50: KORALUX RONDO MAX | I50: KORALUX RONDO MAX - M | T50: KORALUX RONDO MAX | Y50: KORALUX RONDO MAX - M
C51: =logic!$L$4 -> Délka | D51: =logic!$K$4&" H [mm]" -> Výška H [mm] | I51: =logic!$K$4&" H [mm]" -> Výška H [mm] | N51: =logic!$L$4 -> Délka | S51: =logic!$L$4 -> Délka | T51: =logic!$K$4&" H [mm]" -> Výška H [mm] | Y51: =logic!$K$4&" H [mm]" -> Výška H [mm] | AD51: =logic!$L$4 -> Délka
C52: L [mm] | D52: 700 | E52: 900 | F52: 1220 | G52: 1500 | H52: 1820 | I52: 700 | J52: 900 | K52: 1220 | L52: 1500 | M52: 1820 | N52: L [mm] | S52: L [mm] | T52: 700 | U52: 900 | V52: 1220 | W52: 1500 | X52: 1820 | Y52: 700 | Z52: 900 | AA52: 1220 | AB52: 1500 | AC52: 1820 | AD52: L [mm]
B53: =IF(AND($K$5=logic!$I$4,$M$5=logic!$I$4),1,IF(AND(C53>=$K$5,C53<=$M$5),1,0)) -> 1 | C53: 445 | D53: =IF(OR(D$12=0,$B53=0),0,IF(logic!$A$51=1,výkony!C52,výkony!P52)) -> 335 | E53: =IF(OR(E$12=0,$B53=0),0,IF(logic!$A$51=1,výkony!D52,výkony!Q52)) -> 432 | F53: =IF(OR(F$12=0,$B53=0),0,IF(logic!$A$51=1,výkony!E52,výkony!R52)) -> 589 | G53: =IF(OR(G$12=0,$B53=0),0,IF(logic!$A$51=1,výkony!F52,výkony!S52)) -> 725 | H53: =IF(OR(H$12=0,$B53=0),0,IF(logic!$A$51=1,výkony!G52,výkony!T52)) -> 879 | I53: =IF(OR(I$12=0,$B53=0),0,IF(logic!$A$51=1,výkony!H52,výkony!U52)) -> 335 | J53: =IF(OR(J$12=0,$B53=0),0,IF(logic!$A$51=1,výkony!I52,výkony!V52)) -> 432 | K53: =IF(OR(K$12=0,$B53=0),0,IF(logic!$A$51=1,výkony!J52,výkony!W52)) -> 589 | L53: =IF(OR(L$12=0,$B53=0),0,IF(logic!$A$51=1,výkony!K52,výkony!X52)) -> 725 | M53: =IF(OR(M$12=0,$B53=0),0,IF(logic!$A$51=1,výkony!L52,výkony!Y52)) -> 879 | N53: 445 | S53: 445 | T53: ="KRM-"&IF(LEN(T$52)=3,"0"&T$52/10,T$52/10)&"0"&ROUND($S53/10,0)&"-00-10" -> KRM-070045-00-10 | U53: ="KRM-"&IF(LEN(U$52)=3,"0"&U$52/10,U$52/10)&"0"&ROUND($S53/10,0)&"-00-10" -> KRM-090045-00-10 | V53: KRM-122045-00-10 | W53: KRM-150045-00-10 | X53: KRM-182045-00-10 | Y53: ="KRM-"&IF(LEN(Y$52)=3,"0"&Y$52/10,Y$52/10)&"0"&ROUND($S53/10,0)&"-00M10" -> KRM-070045-00M10 | Z53: ="KRM-"&IF(LEN(Z$52)=3,"0"&Z$52/10,Z$52/10)&"0"&ROUND($S53/10,0)&"-00M10" -> KRM-090045-00M10 | AA53: KRM-122045-00M10 | AB53: KRM-150045-00M10 | AC53: KRM-182045-00M10 | AD53: 445
B54: =IF(AND($K$5=logic!$I$4,$M$5=logic!$I$4),1,IF(AND(C54>=$K$5,C54<=$M$5),1,0)) -> 1 | C54: 595 | D54: =IF(OR(D$12=0,$B54=0),0,IF(logic!$A$51=1,výkony!C53,výkony!P53)) -> 444 | E54: =IF(OR(E$12=0,$B54=0),0,IF(logic!$A$51=1,výkony!D53,výkony!Q53)) -> 574 | F54: =IF(OR(F$12=0,$B54=0),0,IF(logic!$A$51=1,výkony!E53,výkony!R53)) -> 781 | G54: =IF(OR(G$12=0,$B54=0),0,IF(logic!$A$51=1,výkony!F53,výkony!S53)) -> 962 | H54: =IF(OR(H$12=0,$B54=0),0,IF(logic!$A$51=1,výkony!G53,výkony!T53)) -> 1166 | I54: =IF(OR(I$12=0,$B54=0),0,IF(logic!$A$51=1,výkony!H53,výkony!U53)) -> 444 | J54: =IF(OR(J$12=0,$B54=0),0,IF(logic!$A$51=1,výkony!I53,výkony!V53)) -> 574 | K54: =IF(OR(K$12=0,$B54=0),0,IF(logic!$A$51=1,výkony!J53,výkony!W53)) -> 781 | L54: =IF(OR(L$12=0,$B54=0),0,IF(logic!$A$51=1,výkony!K53,výkony!X53)) -> 962 | M54: =IF(OR(M$12=0,$B54=0),0,IF(logic!$A$51=1,výkony!L53,výkony!Y53)) -> 1166 | N54: 595 | S54: 595 | T54: ="KRM-"&IF(LEN(T$52)=3,"0"&T$52/10,T$52/10)&"0"&ROUND($S54/10,0)&"-00-10" -> KRM-070060-00-10 | U54: KRM-090060-00-10 | V54: KRM-122060-00-10 | W54: KRM-150060-00-10 | X54: KRM-182060-00-10 | Y54: ="KRM-"&IF(LEN(Y$52)=3,"0"&Y$52/10,Y$52/10)&"0"&ROUND($S54/10,0)&"-00M10" -> KRM-070060-00M10 | Z54: KRM-090060-00M10 | AA54: KRM-122060-00M10 | AB54: KRM-150060-00M10 | AC54: KRM-182060-00M10 | AD54: 595
B55: =IF(AND($K$5=logic!$I$4,$M$5=logic!$I$4),1,IF(AND(C55>=$K$5,C55<=$M$5),1,0)) -> 1 | C55: 745 | D55: =IF(OR(D$12=0,$B55=0),0,IF(logic!$A$51=1,výkony!C54,výkony!P54)) -> 553 | E55: =IF(OR(E$12=0,$B55=0),0,IF(logic!$A$51=1,výkony!D54,výkony!Q54)) -> 714 | F55: =IF(OR(F$12=0,$B55=0),0,IF(logic!$A$51=1,výkony!E54,výkony!R54)) -> 973 | G55: =IF(OR(G$12=0,$B55=0),0,IF(logic!$A$51=1,výkony!F54,výkony!S54)) -> 1197 | H55: =IF(OR(H$12=0,$B55=0),0,IF(logic!$A$51=1,výkony!G54,výkony!T54)) -> 1452 | I55: =IF(OR(I$12=0,$B55=0),0,IF(logic!$A$51=1,výkony!H54,výkony!U54)) -> 553 | J55: =IF(OR(J$12=0,$B55=0),0,IF(logic!$A$51=1,výkony!I54,výkony!V54)) -> 714 | K55: =IF(OR(K$12=0,$B55=0),0,IF(logic!$A$51=1,výkony!J54,výkony!W54)) -> 973 | L55: =IF(OR(L$12=0,$B55=0),0,IF(logic!$A$51=1,výkony!K54,výkony!X54)) -> 1197 | M55: =IF(OR(M$12=0,$B55=0),0,IF(logic!$A$51=1,výkony!L54,výkony!Y54)) -> 1452 | N55: 745 | S55: 745 | T55: KRM-070075-00-10 | U55: KRM-090075-00-10 | V55: KRM-122075-00-10 | W55: KRM-150075-00-10 | X55: KRM-182075-00-10 | Y55: KRM-070075-00M10 | Z55: KRM-090075-00M10 | AA55: KRM-122075-00M10 | AB55: KRM-150075-00M10 | AC55: KRM-182075-00M10 | AD55: 745
D57: KORALUX RONDO COMFORT | I57: KORALUX RONDO COMFORT - M | T57: KORALUX RONDO COMFORT | Y57: KORALUX RONDO COMFORT - M
C58: =logic!$L$4 -> Délka | D58: =logic!$K$4&" H [mm]" -> Výška H [mm] | I58: =logic!$K$4&" H [mm]" -> Výška H [mm] | N58: =logic!$L$4 -> Délka | S58: =logic!$L$4 -> Délka | T58: =logic!$K$4&" H [mm]" -> Výška H [mm] | Y58: =logic!$K$4&" H [mm]" -> Výška H [mm] | AD58: =logic!$L$4 -> Délka
C59: L [mm] | D59: 700 | E59: 900 | F59: 1220 | G59: 1500 | H59: 1820 | I59: 700 | J59: 900 | K59: 1220 | L59: 1500 | M59: 1820 | N59: L [mm] | S59: L [mm] | T59: 700 | U59: 900 | V59: 1220 | W59: 1500 | X59: 1820 | Y59: 700 | Z59: 900 | AA59: 1220 | AB59: 1500 | AC59: 1820 | AD59: L [mm]
B60: =IF(AND($K$5=logic!$I$4,$M$5=logic!$I$4),1,IF(AND(C60>=$K$5,C60<=$M$5),1,0)) -> 1 | C60: 445 | D60: =IF(OR(D$12=0,$B60=0),0,IF(logic!$A$51=1,výkony!C59,výkony!P59)) -> 287 | E60: =IF(OR(E$12=0,$B60=0),0,IF(logic!$A$51=1,výkony!D59,výkony!Q59)) -> 369 | F60: =IF(OR(F$12=0,$B60=0),0,IF(logic!$A$51=1,výkony!E59,výkony!R59)) -> 504 | G60: =IF(OR(G$12=0,$B60=0),0,IF(logic!$A$51=1,výkony!F59,výkony!S59)) -> 626 | H60: =IF(OR(H$12=0,$B60=0),0,IF(logic!$A$51=1,výkony!G59,výkony!T59)) -> 772 | I60: =IF(OR(I$12=0,$B60=0),0,IF(logic!$A$51=1,výkony!H59,výkony!U59)) -> 287 | J60: =IF(OR(J$12=0,$B60=0),0,IF(logic!$A$51=1,výkony!I59,výkony!V59)) -> 369 | K60: =IF(OR(K$12=0,$B60=0),0,IF(logic!$A$51=1,výkony!J59,výkony!W59)) -> 504 | L60: =IF(OR(L$12=0,$B60=0),0,IF(logic!$A$51=1,výkony!K59,výkony!X59)) -> 626 | M60: =IF(OR(M$12=0,$B60=0),0,IF(logic!$A$51=1,výkony!L59,výkony!Y59)) -> 772 | N60: 445 | S60: 445 | T60: ="KRT-"&IF(LEN(T$59)=3,"0"&T$59/10,T$59/10)&"0"&ROUND($S60/10,0)&"-00-10" -> KRT-070045-00-10 | U60: ="KRT-"&IF(LEN(U$59)=3,"0"&U$59/10,U$59/10)&"0"&ROUND($S60/10,0)&"-00-10" -> KRT-090045-00-10 | V60: KRT-122045-00-10 | W60: KRT-150045-00-10 | X60: KRT-182045-00-10 | Y60: ="KRT-"&IF(LEN(Y$59)=3,"0"&Y$59/10,Y$59/10)&"0"&ROUND($S60/10,0)&"-00M10" -> KRT-070045-00M10 | Z60: ="KRT-"&IF(LEN(Z$59)=3,"0"&Z$59/10,Z$59/10)&"0"&ROUND($S60/10,0)&"-00M10" -> KRT-090045-00M10 | AA60: KRT-122045-00M10 | AB60: KRT-150045-00M10 | AC60: KRT-182045-00M10 | AD60: 445
B61: =IF(AND($K$5=logic!$I$4,$M$5=logic!$I$4),1,IF(AND(C61>=$K$5,C61<=$M$5),1,0)) -> 1 | C61: 495 | D61: =IF(OR(D$12=0,$B61=0),0,IF(logic!$A$51=1,výkony!C60,výkony!P60)) -> 315 | E61: =IF(OR(E$12=0,$B61=0),0,IF(logic!$A$51=1,výkony!D60,výkony!Q60)) -> 405 | F61: =IF(OR(F$12=0,$B61=0),0,IF(logic!$A$51=1,výkony!E60,výkony!R60)) -> 553 | G61: =IF(OR(G$12=0,$B61=0),0,IF(logic!$A$51=1,výkony!F60,výkony!S60)) -> 687 | H61: =IF(OR(H$12=0,$B61=0),0,IF(logic!$A$51=1,výkony!G60,výkony!T60)) -> 848 | I61: =IF(OR(I$12=0,$B61=0),0,IF(logic!$A$51=1,výkony!H60,výkony!U60)) -> 315 | J61: =IF(OR(J$12=0,$B61=0),0,IF(logic!$A$51=1,výkony!I60,výkony!V60)) -> 405 | K61: =IF(OR(K$12=0,$B61=0),0,IF(logic!$A$51=1,výkony!J60,výkony!W60)) -> 553 | L61: =IF(OR(L$12=0,$B61=0),0,IF(logic!$A$51=1,výkony!K60,výkony!X60)) -> 687 | M61: =IF(OR(M$12=0,$B61=0),0,IF(logic!$A$51=1,výkony!L60,výkony!Y60)) -> 848 | N61: 495 | S61: 495 | T61: ="KRT-"&IF(LEN(T$59)=3,"0"&T$59/10,T$59/10)&"0"&ROUND($S61/10,0)&"-00-10" -> KRT-070050-00-10 | U61: KRT-090050-00-10 | V61: KRT-122050-00-10 | W61: KRT-150050-00-10 | X61: KRT-182050-00-10 | Y61: ="KRT-"&IF(LEN(Y$59)=3,"0"&Y$59/10,Y$59/10)&"0"&ROUND($S61/10,0)&"-00M10" -> KRT-070050-00M10 | Z61: KRT-090050-00M10 | AA61: KRT-122050-00M10 | AB61: KRT-150050-00M10 | AC61: KRT-182050-00M10 | AD61: 495
B62: =IF(AND($K$5=logic!$I$4,$M$5=logic!$I$4),1,IF(AND(C62>=$K$5,C62<=$M$5),1,0)) -> 1 | C62: 595 | D62: =IF(OR(D$12=0,$B62=0),0,IF(logic!$A$51=1,výkony!C61,výkony!P61)) -> 370 | E62: =IF(OR(E$12=0,$B62=0),0,IF(logic!$A$51=1,výkony!D61,výkony!Q61)) -> 475 | F62: =IF(OR(F$12=0,$B62=0),0,IF(logic!$A$51=1,výkony!E61,výkony!R61)) -> 650 | G62: =IF(OR(G$12=0,$B62=0),0,IF(logic!$A$51=1,výkony!F61,výkony!S61)) -> 808 | H62: =IF(OR(H$12=0,$B62=0),0,IF(logic!$A$51=1,výkony!G61,výkony!T61)) -> 996 | I62: =IF(OR(I$12=0,$B62=0),0,IF(logic!$A$51=1,výkony!H61,výkony!U61)) -> 370 | J62: =IF(OR(J$12=0,$B62=0),0,IF(logic!$A$51=1,výkony!I61,výkony!V61)) -> 475 | K62: =IF(OR(K$12=0,$B62=0),0,IF(logic!$A$51=1,výkony!J61,výkony!W61)) -> 650 | L62: =IF(OR(L$12=0,$B62=0),0,IF(logic!$A$51=1,výkony!K61,výkony!X61)) -> 808 | M62: =IF(OR(M$12=0,$B62=0),0,IF(logic!$A$51=1,výkony!L61,výkony!Y61)) -> 996 | N62: 595 | S62: 595 | T62: KRT-070060-00-10 | U62: KRT-090060-00-10 | V62: KRT-122060-00-10 | W62: KRT-150060-00-10 | X62: KRT-182060-00-10 | Y62: KRT-070060-00M10 | Z62: KRT-090060-00M10 | AA62: KRT-122060-00M10 | AB62: KRT-150060-00M10 | AC62: KRT-182060-00M10 | AD62: 595
B63: =IF(AND($K$5=logic!$I$4,$M$5=logic!$I$4),1,IF(AND(C63>=$K$5,C63<=$M$5),1,0)) -> 1 | C63: 745 | D63: =IF(OR(D$12=0,$B63=0),0,IF(logic!$A$51=1,výkony!C62,výkony!P62)) -> 450 | E63: =IF(OR(E$12=0,$B63=0),0,IF(logic!$A$51=1,výkony!D62,výkony!Q62)) -> 579 | F63: =IF(OR(F$12=0,$B63=0),0,IF(logic!$A$51=1,výkony!E62,výkony!R62)) -> 791 | G63: =IF(OR(G$12=0,$B63=0),0,IF(logic!$A$51=1,výkony!F62,výkony!S62)) -> 984 | H63: =IF(OR(H$12=0,$B63=0),0,IF(logic!$A$51=1,výkony!G62,výkony!T62)) -> 1213 | I63: =IF(OR(I$12=0,$B63=0),0,IF(logic!$A$51=1,výkony!H62,výkony!U62)) -> 450 | J63: =IF(OR(J$12=0,$B63=0),0,IF(logic!$A$51=1,výkony!I62,výkony!V62)) -> 579 | K63: =IF(OR(K$12=0,$B63=0),0,IF(logic!$A$51=1,výkony!J62,výkony!W62)) -> 791 | L63: =IF(OR(L$12=0,$B63=0),0,IF(logic!$A$51=1,výkony!K62,výkony!X62)) -> 984 | M63: =IF(OR(M$12=0,$B63=0),0,IF(logic!$A$51=1,výkony!L62,výkony!Y62)) -> 1213 | N63: 745 | S63: 745 | T63: KRT-070075-00-10 | U63: KRT-090075-00-10 | V63: KRT-122075-00-10 | W63: KRT-150075-00-10 | X63: KRT-182075-00-10 | Y63: KRT-070075-00M10 | Z63: KRT-090075-00M10 | AA63: KRT-122075-00M10 | AB63: KRT-150075-00M10 | AC63: KRT-182075-00M10 | AD63: 745
D65: KORALUX RONDO CLASSIC | I65: KORALUX RONDO CLASSIC - M | T65: KORALUX RONDO CLASSIC | Y65: KORALUX RONDO CLASSIC - M
C66: =logic!$L$4 -> Délka | D66: =logic!$K$4&" H [mm]" -> Výška H [mm] | I66: =logic!$K$4&" H [mm]" -> Výška H [mm] | N66: =logic!$L$4 -> Délka | S66: =logic!$L$4 -> Délka | T66: =logic!$K$4&" H [mm]" -> Výška H [mm] | Y66: =logic!$K$4&" H [mm]" -> Výška H [mm] | AD66: =logic!$L$4 -> Délka
C67: L [mm] | D67: 700 | E67: 900 | F67: 1220 | G67: 1500 | H67: 1820 | I67: 700 | J67: 900 | K67: 1220 | L67: 1500 | M67: 1820 | N67: L [mm] | S67: L [mm] | T67: 700 | U67: 900 | V67: 1220 | W67: 1500 | X67: 1820 | Y67: 700 | Z67: 900 | AA67: 1220 | AB67: 1500 | AC67: 1820 | AD67: L [mm]
B68: =IF(AND($K$5=logic!$I$4,$M$5=logic!$I$4),1,IF(AND(C68>=$K$5,C68<=$M$5),1,0)) -> 1 | C68: 445 | D68: =IF(OR(D$12=0,$B68=0),0,IF(logic!$A$51=1,výkony!C67,výkony!P67)) -> 255 | E68: =IF(OR(E$12=0,$B68=0),0,IF(logic!$A$51=1,výkony!D67,výkony!Q67)) -> 333 | F68: =IF(OR(F$12=0,$B68=0),0,IF(logic!$A$51=1,výkony!E67,výkony!R67)) -> 462 | G68: =IF(OR(G$12=0,$B68=0),0,IF(logic!$A$51=1,výkony!F67,výkony!S67)) -> 581 | H68: =IF(OR(H$12=0,$B68=0),0,IF(logic!$A$51=1,výkony!G67,výkony!T67)) -> 725 | I68: =IF(OR(I$12=0,$B68=0),0,IF(logic!$A$51=1,výkony!H67,výkony!U67)) -> 255 | J68: =IF(OR(J$12=0,$B68=0),0,IF(logic!$A$51=1,výkony!I67,výkony!V67)) -> 333 | K68: =IF(OR(K$12=0,$B68=0),0,IF(logic!$A$51=1,výkony!J67,výkony!W67)) -> 462 | L68: =IF(OR(L$12=0,$B68=0),0,IF(logic!$A$51=1,výkony!K67,výkony!X67)) -> 581 | M68: =IF(OR(M$12=0,$B68=0),0,IF(logic!$A$51=1,výkony!L67,výkony!Y67)) -> 725 | N68: 445 | S68: 445 | T68: ="KRC-"&IF(LEN(T$67)=3,"0"&T$67/10,T$67/10)&"0"&ROUND($S68/10,0)&"-00-10" -> KRC-070045-00-10 | U68: ="KRC-"&IF(LEN(U$67)=3,"0"&U$67/10,U$67/10)&"0"&ROUND($S68/10,0)&"-00-10" -> KRC-090045-00-10 | V68: KRC-122045-00-10 | W68: KRC-150045-00-10 | X68: KRC-182045-00-10 | Y68: ="KRC-"&IF(LEN(Y$67)=3,"0"&Y$67/10,Y$67/10)&"0"&ROUND($S68/10,0)&"-00M10" -> KRC-070045-00M10 | Z68: ="KRC-"&IF(LEN(Z$67)=3,"0"&Z$67/10,Z$67/10)&"0"&ROUND($S68/10,0)&"-00M10" -> KRC-090045-00M10 | AA68: KRC-122045-00M10 | AB68: KRC-150045-00M10 | AC68: KRC-182045-00M10 | AD68: 445
B69: 1 | C69: 495 | D69: =IF(OR(D$12=0,$B69=0),0,IF(logic!$A$51=1,výkony!C68,výkony!P68)) -> 280 | E69: =IF(OR(E$12=0,$B69=0),0,IF(logic!$A$51=1,výkony!D68,výkony!Q68)) -> 365 | F69: =IF(OR(F$12=0,$B69=0),0,IF(logic!$A$51=1,výkony!E68,výkony!R68)) -> 507 | G69: =IF(OR(G$12=0,$B69=0),0,IF(logic!$A$51=1,výkony!F68,výkony!S68)) -> 638 | H69: =IF(OR(H$12=0,$B69=0),0,IF(logic!$A$51=1,výkony!G68,výkony!T68)) -> 795 | I69: =IF(OR(I$12=0,$B69=0),0,IF(logic!$A$51=1,výkony!H68,výkony!U68)) -> 280 | J69: =IF(OR(J$12=0,$B69=0),0,IF(logic!$A$51=1,výkony!I68,výkony!V68)) -> 365 | K69: =IF(OR(K$12=0,$B69=0),0,IF(logic!$A$51=1,výkony!J68,výkony!W68)) -> 507 | L69: =IF(OR(L$12=0,$B69=0),0,IF(logic!$A$51=1,výkony!K68,výkony!X68)) -> 638 | M69: =IF(OR(M$12=0,$B69=0),0,IF(logic!$A$51=1,výkony!L68,výkony!Y68)) -> 795 | N69: 495 | S69: 495 | T69: ="KRC-"&IF(LEN(T$67)=3,"0"&T$67/10,T$67/10)&"0"&ROUND($S69/10,0)&"-00-10" -> KRC-070050-00-10 | U69: KRC-090050-00-10 | V69: KRC-122050-00-10 | W69: KRC-150050-00-10 | X69: KRC-182050-00-10 | Y69: ="KRC-"&IF(LEN(Y$67)=3,"0"&Y$67/10,Y$67/10)&"0"&ROUND($S69/10,0)&"-00M10" -> KRC-070050-00M10 | Z69: KRC-090050-00M10 | AA69: KRC-122050-00M10 | AB69: KRC-150050-00M10 | AC69: KRC-182050-00M10 | AD69: 495
B70: =IF(AND($K$5=logic!$I$4,$M$5=logic!$I$4),1,IF(AND(C70>=$K$5,C70<=$M$5),1,0)) -> 1 | C70: 595 | D70: =IF(OR(D$12=0,$B70=0),0,IF(logic!$A$51=1,výkony!C69,výkony!P69)) -> 329 | E70: =IF(OR(E$12=0,$B70=0),0,IF(logic!$A$51=1,výkony!D69,výkony!Q69)) -> 429 | F70: =IF(OR(F$12=0,$B70=0),0,IF(logic!$A$51=1,výkony!E69,výkony!R69)) -> 596 | G70: =IF(OR(G$12=0,$B70=0),0,IF(logic!$A$51=1,výkony!F69,výkony!S69)) -> 750 | H70: =IF(OR(H$12=0,$B70=0),0,IF(logic!$A$51=1,výkony!G69,výkony!T69)) -> 934 | I70: =IF(OR(I$12=0,$B70=0),0,IF(logic!$A$51=1,výkony!H69,výkony!U69)) -> 329 | J70: =IF(OR(J$12=0,$B70=0),0,IF(logic!$A$51=1,výkony!I69,výkony!V69)) -> 429 | K70: =IF(OR(K$12=0,$B70=0),0,IF(logic!$A$51=1,výkony!J69,výkony!W69)) -> 596 | L70: =IF(OR(L$12=0,$B70=0),0,IF(logic!$A$51=1,výkony!K69,výkony!X69)) -> 750 | M70: =IF(OR(M$12=0,$B70=0),0,IF(logic!$A$51=1,výkony!L69,výkony!Y69)) -> 934 | N70: 595 | S70: 595 | T70: KRC-070060-00-10 | U70: KRC-090060-00-10 | V70: KRC-122060-00-10 | W70: KRC-150060-00-10 | X70: KRC-182060-00-10 | Y70: KRC-070060-00M10 | Z70: KRC-090060-00M10 | AA70: KRC-122060-00M10 | AB70: KRC-150060-00M10 | AC70: KRC-182060-00M10 | AD70: 595
B71: =IF(AND($K$5=logic!$I$4,$M$5=logic!$I$4),1,IF(AND(C71>=$K$5,C71<=$M$5),1,0)) -> 1 | C71: 745 | D71: =IF(OR(D$12=0,$B71=0),0,IF(logic!$A$51=1,výkony!C70,výkony!P70)) -> 400 | E71: =IF(OR(E$12=0,$B71=0),0,IF(logic!$A$51=1,výkony!D70,výkony!Q70)) -> 522 | F71: =IF(OR(F$12=0,$B71=0),0,IF(logic!$A$51=1,výkony!E70,výkony!R70)) -> 726 | G71: =IF(OR(G$12=0,$B71=0),0,IF(logic!$A$51=1,výkony!F70,výkony!S70)) -> 913 | H71: =IF(OR(H$12=0,$B71=0),0,IF(logic!$A$51=1,výkony!G70,výkony!T70)) -> 1138 | I71: =IF(OR(I$12=0,$B71=0),0,IF(logic!$A$51=1,výkony!H70,výkony!U70)) -> 400 | J71: =IF(OR(J$12=0,$B71=0),0,IF(logic!$A$51=1,výkony!I70,výkony!V70)) -> 522 | K71: =IF(OR(K$12=0,$B71=0),0,IF(logic!$A$51=1,výkony!J70,výkony!W70)) -> 726 | L71: =IF(OR(L$12=0,$B71=0),0,IF(logic!$A$51=1,výkony!K70,výkony!X70)) -> 913 | M71: =IF(OR(M$12=0,$B71=0),0,IF(logic!$A$51=1,výkony!L70,výkony!Y70)) -> 1138 | N71: 745 | S71: 745 | T71: KRC-070075-00-10 | U71: KRC-090075-00-10 | V71: KRC-122075-00-10 | W71: KRC-150075-00-10 | X71: KRC-182075-00-10 | Y71: KRC-070075-00M10 | Z71: KRC-090075-00M10 | AA71: KRC-122075-00M10 | AB71: KRC-150075-00M10 | AC71: KRC-182075-00M10 | AD71: 745
D73: KORALUX RONDO EXCLUSIVE - M | T73: KORALUX LINEAR EXCLUSIVE - M | Z73: KORALUX RONDO EXCLUSIVE - M
C74: =logic!$L$4 -> Délka | D74: =logic!$K$4&" H [mm]" -> Výška H [mm] | S74: =logic!$L$4 -> Délka | T74: =logic!$K$4&" H [mm]" -> Výška H [mm] | Y74: =logic!$L$4 -> Délka | Z74: =logic!$K$4&" H [mm]" -> Výška H [mm]
C75: L [mm] | D75: 900 | E75: 1220 | F75: 1500 | G75: 1820 | S75: L [mm] | T75: 900 | U75: 1220 | V75: 1500 | W75: 1820 | Y75: L [mm] | Z75: 900 | AA75: 1220 | AB75: 1500 | AC75: 1820
B76: =IF(AND($K$5=logic!$I$4,$M$5=logic!$I$4),1,IF(AND(C46>=$K$5,C46<=$M$5),1,0)) -> 1 | C76: 445 | D76: =IF(OR(E$12=0,$B76=0),0,IF(logic!$A$51=1,výkony!C75,0)) -> 249 | E76: =IF(OR(F$12=0,$B76=0),0,IF(logic!$A$51=1,výkony!D75,0)) -> 338 | F76: =IF(OR(G$12=0,$B76=0),0,IF(logic!$A$51=1,výkony!E75,0)) -> 419 | G76: =IF(OR(H$12=0,$B76=0),0,IF(logic!$A$51=1,výkony!F75,0)) -> 516 | S76: 445 | T76: ="KLX-"&IF(LEN(T$75)=3,"0"&T$75/10,T$75/10)&"0"&ROUND($S76/10,0)&"-00M27" -> KLX-090045-00M27 | U76: ="KLX-"&IF(LEN(U$75)=3,"0"&U$75/10,U$75/10)&"0"&ROUND($S76/10,0)&"-00M27" -> KLX-122045-00M27 | V76: KLX-150045-00M27 | W76: KLX-182045-00M27 | Y76: 450 | Z76: ="KRX-"&IF(LEN(Z$75)=3,"0"&Z$75/10,Z$75/10)&"0"&ROUND($S76/10,0)&"-00M27" -> KRX-090045-00M27 | AA76: ="KRX-"&IF(LEN(AA$75)=3,"0"&AA$75/10,AA$75/10)&"0"&ROUND($S76/10,0)&"-00M27" -> KRX-122045-00M27 | AB76: KRX-150045-00M27 | AC76: KRX-182045-00M27
B77: =IF(AND($K$5=logic!$I$4,$M$5=logic!$I$4),1,IF(AND(C47>=$K$5,C47<=$M$5),1,0)) -> 1 | C77: 595 | D77: =IF(OR(E$12=0,$B77=0),0,IF(logic!$A$51=1,výkony!C76,0)) -> 319 | E77: =IF(OR(F$12=0,$B77=0),0,IF(logic!$A$51=1,výkony!D76,0)) -> 433 | F77: =IF(OR(G$12=0,$B77=0),0,IF(logic!$A$51=1,výkony!E76,0)) -> 537 | G77: =IF(OR(H$12=0,$B77=0),0,IF(logic!$A$51=1,výkony!F76,0)) -> 662 | S77: 595 | T77: ="KLX-"&IF(LEN(T$75)=3,"0"&T$75/10,T$75/10)&"0"&ROUND($S77/10,0)&"-00M27" -> KLX-090060-00M27 | U77: KLX-122060-00M27 | V77: KLX-150060-00M27 | W77: KLX-182060-00M27 | Y77: 600 | Z77: ="KRX-"&IF(LEN(Z$75)=3,"0"&Z$75/10,Z$75/10)&"0"&ROUND($S77/10,0)&"-00M27" -> KRX-090060-00M27 | AA77: KRX-122060-00M27 | AB77: KRX-150060-00M27 | AC77: KRX-182060-00M27
B78: =IF(AND($K$5=logic!$I$4,$M$5=logic!$I$4),1,IF(AND(C48>=$K$5,C48<=$M$5),1,0)) -> 1 | C78: 745 | D78: =IF(OR(E$12=0,$B78=0),0,IF(logic!$A$51=1,výkony!C77,0)) -> 387 | E78: =IF(OR(F$12=0,$B78=0),0,IF(logic!$A$51=1,výkony!D77,0)) -> 526 | F78: =IF(OR(G$12=0,$B78=0),0,IF(logic!$A$51=1,výkony!E77,0)) -> 652 | G78: =IF(OR(H$12=0,$B78=0),0,IF(logic!$A$51=1,výkony!F77,0)) -> 802 | S78: 745 | T78: KLX-090075-00M27 | U78: KLX-122075-00M27 | V78: KLX-150075-00M27 | W78: KLX-182075-00M27 | Y78: 750 | Z78: KRX-090075-00M27 | AA78: KRX-122075-00M27 | AB78: KRX-150075-00M27 | AC78: KRX-182075-00M27
C80: =logic!V4&" "&logic!W4&" "&logic!X4 -> Technické změny vyhrazeny. Uvedené výkony jsou platné pouze pro zemi: Česká republika. | N80: =logic!E67 -> CZ OTT 1.02-01/17 M

Sheet Databáze (hidden)
A1: =logic!AB24 -> Identifikace:
A6: =logic!Q24 -> Číslo | B6: =logic!R24 -> Model | C6: =logic!S24 -> Objednací číslo | D6: =logic!U24 -> Výška [mm] | E6: =logic!V24 -> Délka [mm] | F6: =logic!W24 -> t1 | G6: =logic!X24 -> t2 | H6: =logic!Y24 -> ti | I6: =logic!Z24&" "&logic!$E$45 -> Tepelný výkon [W] | J6: =logic!U4 -> Způsob připojení | K6: =logic!AA24 -> Poznámka

Sheet výkony (hidden)
C3: =logic!P4 -> Teplota:
C4: t 1 | D4: t 2 | E4: t i | F4: D T | H4: =logic!Y4 -> Jednotka výkonu:
C5: =KORADO!C4 -> 75 | D5: =KORADO!D4 -> 65 | E5: =KORADO!E4 -> 20 | F5: =(C5+D5)/2-E5 -> 50 | H5: =logic!C45 -> W | I5: =logic!D45 -> 1
C11: VÝKONY PRO ZAPOJENÍ ZDOLA DOLŮ | O11: VÝKONY PRO ÚHLOPŘÍČNÉ ZAPOJENÍ
C12: KORALUX LINEAR MAX | H12: KORALUX LINEAR MAX - M | P12: KORALUX LINEAR MAX | U12: KORALUX LINEAR MAX - M
B13: Délka L | C13: Výška H [mm] | H13: Výška H [mm] | M13: Délka L | O13: Délka L | P13: Výška H [mm] | U13: Výška H [mm] | Z13: Délka L
B14: [mm] | C14: 700 | D14: 900 | E14: 1220 | F14: 1500 | G14: 1820 | H14: 700 | I14: 900 | J14: 1220 | K14: 1500 | L14: 1820 | M14: [mm] | O14: [mm] | P14: 700 | Q14: 900 | R14: 1220 | S14: 1500 | T14: 1820 | U14: 700 | V14: 900 | W14: 1220 | X14: 1500 | Y14: 1820 | Z14: [mm]
B15: 450 | C15: =ROUND((((($C$5-$D$5)/(LN(($C$5-$E$5)/($D$5-$E$5))))/49.8328865456397)^vstupy!C22)*vstupy!C15*$I$5,0) -> 320 | D15: =ROUND((((($C$5-$D$5)/(LN(($C$5-$E$5)/($D$5-$E$5))))/49.8328865456397)^vstupy!D$22)*vstupy!D15*$I$5,0) -> 411 | E15: =ROUND((((($C$5-$D$5)/(LN(($C$5-$E$5)/($D$5-$E$5))))/49.8328865456397)^vstupy!E$22)*vstupy!E15*$I$5,0) -> 557 | F15: =ROUND((((($C$5-$D$5)/(LN(($C$5-$E$5)/($D$5-$E$5))))/49.8328865456397)^vstupy!F$22)*vstupy!F15*$I$5,0) -> 686 | G15: =ROUND((((($C$5-$D$5)/(LN(($C$5-$E$5)/($D$5-$E$5))))/49.8328865456397)^vstupy!G$22)*vstupy!G15*$I$5,0) -> 833 | H15: =ROUND((((($C$5-$D$5)/(LN(($C$5-$E$5)/($D$5-$E$5))))/49.8328865456397)^vstupy!H$22)*vstupy!H15*$I$5,0) -> 320 | I15: =ROUND((((($C$5-$D$5)/(LN(($C$5-$E$5)/($D$5-$E$5))))/49.8328865456397)^vstupy!I$22)*vstupy!I15*$I$5,0) -> 411 | J15: =ROUND((((($C$5-$D$5)/(LN(($C$5-$E$5)/($D$5-$E$5))))/49.8328865456397)^vstupy!J$22)*vstupy!J15*$I$5,0) -> 557 | K15: =ROUND((((($C$5-$D$5)/(LN(($C$5-$E$5)/($D$5-$E$5))))/49.8328865456397)^vstupy!K$22)*vstupy!K15*$I$5,0) -> 686 | L15: =ROUND((((($C$5-$D$5)/(LN(($C$5-$E$5)/($D$5-$E$5))))/49.8328865456397)^vstupy!L$22)*vstupy!L15*$I$5,0) -> 833 | M15: 450 | O15: 450 | P15: =ROUND((((($C$5-$D$5)/(LN(($C$5-$E$5)/($D$5-$E$5))))/49.8328865456397)^vstupy!P$22)*vstupy!P15*$I$5,0) -> 341 | Q15: =ROUND((((($C$5-$D$5)/(LN(($C$5-$E$5)/($D$5-$E$5))))/49.8328865456397)^vstupy!Q$22)*vstupy!Q15*$I$5,0) -> 436 | R15: =ROUND((((($C$5-$D$5)/(LN(($C$5-$E$5)/($D$5-$E$5))))/49.8328865456397)^vstupy!R$22)*vstupy!R15*$I$5,0) -> 592 | S15: =ROUND((((($C$5-$D$5)/(LN(($C$5-$E$5)/($D$5-$E$5))))/49.8328865456397)^vstupy!S$22)*vstupy!S15*$I$5,0) -> 735 | T15: =ROUND((((($C$5-$D$5)/(LN(($C$5-$E$5)/($D$5-$E$5))))/49.8328865456397)^vstupy!T$22)*vstupy!T15*$I$5,0) -> 906 | Z15: 450
B16: 600 | C16: =ROUND((((($C$5-$D$5)/(LN(($C$5-$E$5)/($D$5-$E$5))))/49.8328865456397)^vstupy!C23)*vstupy!C16*$I$5,0) -> 422 | D16: =ROUND((((($C$5-$D$5)/(LN(($C$5-$E$5)/($D$5-$E$5))))/49.8328865456397)^vstupy!D23)*vstupy!D16*$I$5,0) -> 543 | E16: =ROUND((((($C$5-$D$5)/(LN(($C$5-$E$5)/($D$5-$E$5))))/49.8328865456397)^vstupy!E23)*vstupy!E16*$I$5,0) -> 736 | F16: =ROUND((((($C$5-$D$5)/(LN(($C$5-$E$5)/($D$5-$E$5))))/49.8328865456397)^vstupy!F23)*vstupy!F16*$I$5,0) -> 906 | G16: =ROUND((((($C$5-$D$5)/(LN(($C$5-$E$5)/($D$5-$E$5))))/49.8328865456397)^vstupy!G23)*vstupy!G16*$I$5,0) -> 1101 | H16: =ROUND((((($C$5-$D$5)/(LN(($C$5-$E$5)/($D$5-$E$5))))/49.8328865456397)^vstupy!H23)*vstupy!H16*$I$5,0) -> 422 | I16: =ROUND((((($C$5-$D$5)/(LN(($C$5-$E$5)/($D$5-$E$5))))/49.8328865456397)^vstupy!I23)*vstupy!I16*$I$5,0) -> 543 | J16: =ROUND((((($C$5-$D$5)/(LN(($C$5-$E$5)/($D$5-$E$5))))/49.8328865456397)^vstupy!J23)*vstupy!J16*$I$5,0) -> 736 | K16: =ROUND((((($C$5-$D$5)/(LN(($C$5-$E$5)/($D$5-$E$5))))/49.8328865456397)^vstupy!K23)*vstupy!K16*$I$5,0) -> 906 | L16: =ROUND((((($C$5-$D$5)/(LN(($C$5-$E$5)/($D$5-$E$5))))/49.8328865456397)^vstupy!L23)*vstupy!L16*$I$5,0) -> 1101 | M16: 600 | O16: 600 | P16: =ROUND((((($C$5-$D$5)/(LN(($C$5-$E$5)/($D$5-$E$5))))/49.8328865456397)^vstupy!P23)*vstupy!P16*$I$5,0) -> 454 | Q16: =ROUND((((($C$5-$D$5)/(LN(($C$5-$E$5)/($D$5-$E$5))))/49.8328865456397)^vstupy!Q23)*vstupy!Q16*$I$5,0) -> 580 | R16: =ROUND((((($C$5-$D$5)/(LN(($C$5-$E$5)/($D$5-$E$5))))/49.8328865456397)^vstupy!R23)*vstupy!R16*$I$5,0) -> 789 | S16: =ROUND((((($C$5-$D$5)/(LN(($C$5-$E$5)/($D$5-$E$5))))/49.8328865456397)^vstupy!S23)*vstupy!S16*$I$5,0) -> 979 | T16: =ROUND((((($C$5-$D$5)/(LN(($C$5-$E$5)/($D$5-$E$5))))/49.8328865456397)^vstupy!T23)*vstupy!T16*$I$5,0) -> 1206 | Z16: 600
B17: 750 | C17: =ROUND((((($C$5-$D$5)/(LN(($C$5-$E$5)/($D$5-$E$5))))/49.8328865456397)^vstupy!C24)*vstupy!C17*$I$5,0) -> 524 | D17: =ROUND((((($C$5-$D$5)/(LN(($C$5-$E$5)/($D$5-$E$5))))/49.8328865456397)^vstupy!D24)*vstupy!D17*$I$5,0) -> 673 | E17: =ROUND((((($C$5-$D$5)/(LN(($C$5-$E$5)/($D$5-$E$5))))/49.8328865456397)^vstupy!E24)*vstupy!E17*$I$5,0) -> 913 | F17: =ROUND((((($C$5-$D$5)/(LN(($C$5-$E$5)/($D$5-$E$5))))/49.8328865456397)^vstupy!F24)*vstupy!F17*$I$5,0) -> 1124 | G17: =ROUND((((($C$5-$D$5)/(LN(($C$5-$E$5)/($D$5-$E$5))))/49.8328865456397)^vstupy!G24)*vstupy!G17*$I$5,0) -> 1367 | H17: =ROUND((((($C$5-$D$5)/(LN(($C$5-$E$5)/($D$5-$E$5))))/49.8328865456397)^vstupy!H24)*vstupy!H17*$I$5,0) -> 524 | I17: =ROUND((((($C$5-$D$5)/(LN(($C$5-$E$5)/($D$5-$E$5))))/49.8328865456397)^vstupy!I24)*vstupy!I17*$I$5,0) -> 673 | J17: =ROUND((((($C$5-$D$5)/(LN(($C$5-$E$5)/($D$5-$E$5))))/49.8328865456397)^vstupy!J24)*vstupy!J17*$I$5,0) -> 913 | K17: =ROUND((((($C$5-$D$5)/(LN(($C$5-$E$5)/($D$5-$E$5))))/49.8328865456397)^vstupy!K24)*vstupy!K17*$I$5,0) -> 1124 | L17: =ROUND((((($C$5-$D$5)/(LN(($C$5-$E$5)/($D$5-$E$5))))/49.8328865456397)^vstupy!L24)*vstupy!L17*$I$5,0) -> 1367 | M17: 750 | O17: 750 | P17: =ROUND((((($C$5-$D$5)/(LN(($C$5-$E$5)/($D$5-$E$5))))/49.8328865456397)^vstupy!P24)*vstupy!P17*$I$5,0) -> 567 | Q17: =ROUND((((($C$5-$D$5)/(LN(($C$5-$E$5)/($D$5-$E$5))))/49.8328865456397)^vstupy!Q24)*vstupy!Q17*$I$5,0) -> 725 | R17: =ROUND((((($C$5-$D$5)/(LN(($C$5-$E$5)/($D$5-$E$5))))/49.8328865456397)^vstupy!R24)*vstupy!R17*$I$5,0) -> 985 | S17: =ROUND((((($C$5-$D$5)/(LN(($C$5-$E$5)/($D$5-$E$5))))/49.8328865456397)^vstupy!S24)*vstupy!S17*$I$5,0) -> 1222 | T17: =ROUND((((($C$5-$D$5)/(LN(($C$5-$E$5)/($D$5-$E$5))))/49.8328865456397)^vstupy!T24)*vstupy!T17*$I$5,0) -> 1507 | Z17: 750
C19: KORALUX LINEAR COMFORT | H19: KORALUX LINEAR COMFORT - M | P19: KORALUX LINEAR COMFORT | U19: KORALUX LINEAR COMFORT - M
B20: Délka L | C20: Výška H [mm] | H20: Výška H [mm] | M20: Délka L | O20: Délka L | P20: Výška H [mm] | U20: Výška H [mm] | Z20: Délka L
B21: [mm] | C21: 700 | D21: 900 | E21: 1220 | F21: 1500 | G21: 1820 | H21: 700 | I21: 900 | J21: 1220 | K21: 1500 | L21: 1820 | M21: [mm] | O21: [mm] | P21: 700 | Q21: 900 | R21: 1220 | S21: 1500 | T21: 1820 | U21: 700 | V21: 900 | W21: 1220 | X21: 1500 | Y21: 1820 | Z21: [mm]
B22: 450 | C22: =ROUND((((($C$5-$D$5)/(LN(($C$5-$E$5)/($D$5-$E$5))))/49.8328865456397)^vstupy!C37)*vstupy!C29*$I$5,0) -> 287 | D22: =ROUND((((($C$5-$D$5)/(LN(($C$5-$E$5)/($D$5-$E$5))))/49.8328865456397)^vstupy!D37)*vstupy!D29*$I$5,0) -> 369 | E22: =ROUND((((($C$5-$D$5)/(LN(($C$5-$E$5)/($D$5-$E$5))))/49.8328865456397)^vstupy!E37)*vstupy!E29*$I$5,0) -> 504 | F22: =ROUND((((($C$5-$D$5)/(LN(($C$5-$E$5)/($D$5-$E$5))))/49.8328865456397)^vstupy!F37)*vstupy!F29*$I$5,0) -> 626 | G22: =ROUND((((($C$5-$D$5)/(LN(($C$5-$E$5)/($D$5-$E$5))))/49.8328865456397)^vstupy!G37)*vstupy!G29*$I$5,0) -> 772 | H22: =ROUND((((($C$5-$D$5)/(LN(($C$5-$E$5)/($D$5-$E$5))))/49.8328865456397)^vstupy!H37)*vstupy!H29*$I$5,0) -> 287 | I22: =ROUND((((($C$5-$D$5)/(LN(($C$5-$E$5)/($D$5-$E$5))))/49.8328865456397)^vstupy!I37)*vstupy!I29*$I$5,0) -> 369 | J22: =ROUND((((($C$5-$D$5)/(LN(($C$5-$E$5)/($D$5-$E$5))))/49.8328865456397)^vstupy!J37)*vstupy!J29*$I$5,0) -> 504 | K22: =ROUND((((($C$5-$D$5)/(LN(($C$5-$E$5)/($D$5-$E$5))))/49.8328865456397)^vstupy!K37)*vstupy!K29*$I$5,0) -> 626 | L22: =ROUND((((($C$5-$D$5)/(LN(($C$5-$E$5)/($D$5-$E$5))))/49.8328865456397)^vstupy!L37)*vstupy!L29*$I$5,0) -> 772 | M22: 450 | O22: 450 | P22: =ROUND((((($C$5-$D$5)/(LN(($C$5-$E$5)/($D$5-$E$5))))/49.8328865456397)^vstupy!P37)*vstupy!P29*$I$5,0) -> 312 | Q22: =ROUND((((($C$5-$D$5)/(LN(($C$5-$E$5)/($D$5-$E$5))))/49.8328865456397)^vstupy!Q37)*vstupy!Q29*$I$5,0) -> 402 | R22: =ROUND((((($C$5-$D$5)/(LN(($C$5-$E$5)/($D$5-$E$5))))/49.8328865456397)^vstupy!R37)*vstupy!R29*$I$5,0) -> 549 | S22: =ROUND((((($C$5-$D$5)/(LN(($C$5-$E$5)/($D$5-$E$5))))/49.8328865456397)^vstupy!S37)*vstupy!S29*$I$5,0) -> 682 | T22: =ROUND((((($C$5-$D$5)/(LN(($C$5-$E$5)/($D$5-$E$5))))/49.8328865456397)^vstupy!T37)*vstupy!T29*$I$5,0) -> 841 | Z22: 450
B23: 500 | C23: =ROUND((((($C$5-$D$5)/(LN(($C$5-$E$5)/($D$5-$E$5))))/49.8328865456397)^vstupy!C38)*vstupy!C30*$I$5,0) -> 315 | D23: =ROUND((((($C$5-$D$5)/(LN(($C$5-$E$5)/($D$5-$E$5))))/49.8328865456397)^vstupy!D38)*vstupy!D30*$I$5,0) -> 405 | E23: =ROUND((((($C$5-$D$5)/(LN(($C$5-$E$5)/($D$5-$E$5))))/49.8328865456397)^vstupy!E38)*vstupy!E30*$I$5,0) -> 553 | F23: =ROUND((((($C$5-$D$5)/(LN(($C$5-$E$5)/($D$5-$E$5))))/49.8328865456397)^vstupy!F38)*vstupy!F30*$I$5,0) -> 687 | G23: =ROUND((((($C$5-$D$5)/(LN(($C$5-$E$5)/($D$5-$E$5))))/49.8328865456397)^vstupy!G38)*vstupy!G30*$I$5,0) -> 848 | H23: =ROUND((((($C$5-$D$5)/(LN(($C$5-$E$5)/($D$5-$E$5))))/49.8328865456397)^vstupy!H38)*vstupy!H30*$I$5,0) -> 315 | I23: =ROUND((((($C$5-$D$5)/(LN(($C$5-$E$5)/($D$5-$E$5))))/49.8328865456397)^vstupy!I38)*vstupy!I30*$I$5,0) -> 405 | J23: =ROUND((((($C$5-$D$5)/(LN(($C$5-$E$5)/($D$5-$E$5))))/49.8328865456397)^vstupy!J38)*vstupy!J30*$I$5,0) -> 553 | K23: =ROUND((((($C$5-$D$5)/(LN(($C$5-$E$5)/($D$5-$E$5))))/49.8328865456397)^vstupy!K38)*vstupy!K30*$I$5,0) -> 687 | L23: =ROUND((((($C$5-$D$5)/(LN(($C$5-$E$5)/($D$5-$E$5))))/49.8328865456397)^vstupy!L38)*vstupy!L30*$I$5,0) -> 848 | M23: 500 | O23: 500 | P23: =ROUND((((($C$5-$D$5)/(LN(($C$5-$E$5)/($D$5-$E$5))))/49.8328865456397)^vstupy!P38)*vstupy!P30*$I$5,0) -> 342 | Q23: =ROUND((((($C$5-$D$5)/(LN(($C$5-$E$5)/($D$5-$E$5))))/49.8328865456397)^vstupy!Q38)*vstupy!Q30*$I$5,0) -> 440 | R23: =ROUND((((($C$5-$D$5)/(LN(($C$5-$E$5)/($D$5-$E$5))))/49.8328865456397)^vstupy!R38)*vstupy!R30*$I$5,0) -> 601 | S23: =ROUND((((($C$5-$D$5)/(LN(($C$5-$E$5)/($D$5-$E$5))))/49.8328865456397)^vstupy!S38)*vstupy!S30*$I$5,0) -> 747 | T23: =ROUND((((($C$5-$D$5)/(LN(($C$5-$E$5)/($D$5-$E$5))))/49.8328865456397)^vstupy!T38)*vstupy!T30*$I$5,0) -> 921
B24: 600 | C24: =ROUND((((($C$5-$D$5)/(LN(($C$5-$E$5)/($D$5-$E$5))))/49.8328865456397)^vstupy!C39)*vstupy!C31*$I$5,0) -> 370 | D24: =ROUND((((($C$5-$D$5)/(LN(($C$5-$E$5)/($D$5-$E$5))))/49.8328865456397)^vstupy!D39)*vstupy!D31*$I$5,0) -> 475 | E24: =ROUND((((($C$5-$D$5)/(LN(($C$5-$E$5)/($D$5-$E$5))))/49.8328865456397)^vstupy!E39)*vstupy!E31*$I$5,0) -> 650 | F24: =ROUND((((($C$5-$D$5)/(LN(($C$5-$E$5)/($D$5-$E$5))))/49.8328865456397)^vstupy!F39)*vstupy!F31*$I$5,0) -> 808 | G24: =ROUND((((($C$5-$D$5)/(LN(($C$5-$E$5)/($D$5-$E$5))))/49.8328865456397)^vstupy!G39)*vstupy!G31*$I$5,0) -> 996 | H24: =ROUND((((($C$5-$D$5)/(LN(($C$5-$E$5)/($D$5-$E$5))))/49.8328865456397)^vstupy!H39)*vstupy!H31*$I$5,0) -> 370 | I24: =ROUND((((($C$5-$D$5)/(LN(($C$5-$E$5)/($D$5-$E$5))))/49.8328865456397)^vstupy!I39)*vstupy!I31*$I$5,0) -> 475 | J24: =ROUND((((($C$5-$D$5)/(LN(($C$5-$E$5)/($D$5-$E$5))))/49.8328865456397)^vstupy!J39)*vstupy!J31*$I$5,0) -> 650 | K24: =ROUND((((($C$5-$D$5)/(LN(($C$5-$E$5)/($D$5-$E$5))))/49.8328865456397)^vstupy!K39)*vstupy!K31*$I$5,0) -> 808 | L24: =ROUND((((($C$5-$D$5)/(LN(($C$5-$E$5)/($D$5-$E$5))))/49.8328865456397)^vstupy!L39)*vstupy!L31*$I$5,0) -> 996 | M24: 600 | O24: 600 | P24: =ROUND((((($C$5-$D$5)/(LN(($C$5-$E$5)/($D$5-$E$5))))/49.8328865456397)^vstupy!P39)*vstupy!P31*$I$5,0) -> 400 | Q24: =ROUND((((($C$5-$D$5)/(LN(($C$5-$E$5)/($D$5-$E$5))))/49.8328865456397)^vstupy!Q39)*vstupy!Q31*$I$5,0) -> 515 | R24: =ROUND((((($C$5-$D$5)/(LN(($C$5-$E$5)/($D$5-$E$5))))/49.8328865456397)^vstupy!R39)*vstupy!R31*$I$5,0) -> 703 | S24: =ROUND((((($C$5-$D$5)/(LN(($C$5-$E$5)/($D$5-$E$5))))/49.8328865456397)^vstupy!S39)*vstupy!S31*$I$5,0) -> 874 | T24: =ROUND((((($C$5-$D$5)/(LN(($C$5-$E$5)/($D$5-$E$5))))/49.8328865456397)^vstupy!T39)*vstupy!T31*$I$5,0) -> 1078 | Z24: 600
B25: 750 | C25: =ROUND((((($C$5-$D$5)/(LN(($C$5-$E$5)/($D$5-$E$5))))/49.8328865456397)^vstupy!C40)*vstupy!C32*$I$5,0) -> 450 | D25: =ROUND((((($C$5-$D$5)/(LN(($C$5-$E$5)/($D$5-$E$5))))/49.8328865456397)^vstupy!D40)*vstupy!D32*$I$5,0) -> 579 | E25: =ROUND((((($C$5-$D$5)/(LN(($C$5-$E$5)/($D$5-$E$5))))/49.8328865456397)^vstupy!E40)*vstupy!E32*$I$5,0) -> 791 | F25: =ROUND((((($C$5-$D$5)/(LN(($C$5-$E$5)/($D$5-$E$5))))/49.8328865456397)^vstupy!F40)*vstupy!F32*$I$5,0) -> 984 | G25: =ROUND((((($C$5-$D$5)/(LN(($C$5-$E$5)/($D$5-$E$5))))/49.8328865456397)^vstupy!G40)*vstupy!G32*$I$5,0) -> 1213 | H25: =ROUND((((($C$5-$D$5)/(LN(($C$5-$E$5)/($D$5-$E$5))))/49.8328865456397)^vstupy!H40)*vstupy!H32*$I$5,0) -> 450 | I25: =ROUND((((($C$5-$D$5)/(LN(($C$5-$E$5)/($D$5-$E$5))))/49.8328865456397)^vstupy!I40)*vstupy!I32*$I$5,0) -> 579 | J25: =ROUND((((($C$5-$D$5)/(LN(($C$5-$E$5)/($D$5-$E$5))))/49.8328865456397)^vstupy!J40)*vstupy!J32*$I$5,0) -> 791 | K25: =ROUND((((($C$5-$D$5)/(LN(($C$5-$E$5)/($D$5-$E$5))))/49.8328865456397)^vstupy!K40)*vstupy!K32*$I$5,0) -> 984 | L25: =ROUND((((($C$5-$D$5)/(LN(($C$5-$E$5)/($D$5-$E$5))))/49.8328865456397)^vstupy!L40)*vstupy!L32*$I$5,0) -> 1213 | M25: 750 | O25: 750 | P25: =ROUND((((($C$5-$D$5)/(LN(($C$5-$E$5)/($D$5-$E$5))))/49.8328865456397)^vstupy!P40)*vstupy!P32*$I$5,0) -> 485 | Q25: =ROUND((((($C$5-$D$5)/(LN(($C$5-$E$5)/($D$5-$E$5))))/49.8328865456397)^vstupy!Q40)*vstupy!Q32*$I$5,0) -> 624 | R25: =ROUND((((($C$5-$D$5)/(LN(($C$5-$E$5)/($D$5-$E$5))))/49.8328865456397)^vstupy!R40)*vstupy!R32*$I$5,0) -> 852 | S25: =ROUND((((($C$5-$D$5)/(LN(($C$5-$E$5)/($D$5-$E$5))))/49.8328865456397)^vstupy!S40)*vstupy!S32*$I$5,0) -> 1060 | T25: =ROUND((((($C$5-$D$5)/(LN(($C$5-$E$5)/($D$5-$E$5))))/49.8328865456397)^vstupy!T40)*vstupy!T32*$I$5,0) -> 1307 | Z25: 750
C27: KORALUX LINEAR CLASSIC | H27: KORALUX LINEAR CLASSIC - M | P27: KORALUX LINEAR CLASSIC | U27: KORALUX LINEAR CLASSIC - M
B28: Délka L | C28: Výška H [mm] | H28: Výška H [mm] | M28: Délka L | O28: Délka L | P28: Výška H [mm] | U28: Výška H [mm] | Z28: Délka L
B29: [mm] | C29: 700 | D29: 900 | E29: 1220 | F29: 1500 | G29: 1820 | H29: 700 | I29: 900 | J29: 1220 | K29: 1500 | L29: 1820 | M29: [mm] | O29: [mm] | P29: 700 | Q29: 900 | R29: 1220 | S29: 1500 | T29: 1820 | U29: 700 | V29: 900 | W29: 1220 | X29: 1500 | Y29: 1820 | Z29: [mm]
B30: 450 | C30: =ROUND((((($C$5-$D$5)/(LN(($C$5-$E$5)/($D$5-$E$5))))/49.8328865456397)^vstupy!C53)*vstupy!C45*$I$5,0) -> 255 | D30: =ROUND((((($C$5-$D$5)/(LN(($C$5-$E$5)/($D$5-$E$5))))/49.8328865456397)^vstupy!D53)*vstupy!D45*$I$5,0) -> 333 | E30: =ROUND((((($C$5-$D$5)/(LN(($C$5-$E$5)/($D$5-$E$5))))/49.8328865456397)^vstupy!E53)*vstupy!E45*$I$5,0) -> 462 | F30: =ROUND((((($C$5-$D$5)/(LN(($C$5-$E$5)/($D$5-$E$5))))/49.8328865456397)^vstupy!F53)*vstupy!F45*$I$5,0) -> 581 | G30: =ROUND((((($C$5-$D$5)/(LN(($C$5-$E$5)/($D$5-$E$5))))/49.8328865456397)^vstupy!G53)*vstupy!G45*$I$5,0) -> 725 | H30: =ROUND((((($C$5-$D$5)/(LN(($C$5-$E$5)/($D$5-$E$5))))/49.8328865456397)^vstupy!H53)*vstupy!H45*$I$5,0) -> 255 | I30: =ROUND((((($C$5-$D$5)/(LN(($C$5-$E$5)/($D$5-$E$5))))/49.8328865456397)^vstupy!I53)*vstupy!I45*$I$5,0) -> 333 | J30: =ROUND((((($C$5-$D$5)/(LN(($C$5-$E$5)/($D$5-$E$5))))/49.8328865456397)^vstupy!J53)*vstupy!J45*$I$5,0) -> 462 | K30: =ROUND((((($C$5-$D$5)/(LN(($C$5-$E$5)/($D$5-$E$5))))/49.8328865456397)^vstupy!K53)*vstupy!K45*$I$5,0) -> 581 | L30: =ROUND((((($C$5-$D$5)/(LN(($C$5-$E$5)/($D$5-$E$5))))/49.8328865456397)^vstupy!L53)*vstupy!L45*$I$5,0) -> 725 | M30: 450 | O30: 450 | P30: =ROUND((((($C$5-$D$5)/(LN(($C$5-$E$5)/($D$5-$E$5))))/49.8328865456397)^vstupy!P53)*vstupy!P45*$I$5,0) -> 291 | Q30: =ROUND((((($C$5-$D$5)/(LN(($C$5-$E$5)/($D$5-$E$5))))/49.8328865456397)^vstupy!Q53)*vstupy!Q45*$I$5,0) -> 378 | R30: =ROUND((((($C$5-$D$5)/(LN(($C$5-$E$5)/($D$5-$E$5))))/49.8328865456397)^vstupy!R53)*vstupy!R45*$I$5,0) -> 519 | S30: =ROUND((((($C$5-$D$5)/(LN(($C$5-$E$5)/($D$5-$E$5))))/49.8328865456397)^vstupy!S53)*vstupy!S45*$I$5,0) -> 643 | T30: =ROUND((((($C$5-$D$5)/(LN(($C$5-$E$5)/($D$5-$E$5))))/49.8328865456397)^vstupy!T53)*vstupy!T45*$I$5,0) -> 786 | Z30: 450
B31: 500 | C31: =ROUND((((($C$5-$D$5)/(LN(($C$5-$E$5)/($D$5-$E$5))))/49.8328865456397)^vstupy!C54)*vstupy!C46*$I$5,0) -> 280 | D31: =ROUND((((($C$5-$D$5)/(LN(($C$5-$E$5)/($D$5-$E$5))))/49.8328865456397)^vstupy!D54)*vstupy!D46*$I$5,0) -> 365 | E31: =ROUND((((($C$5-$D$5)/(LN(($C$5-$E$5)/($D$5-$E$5))))/49.8328865456397)^vstupy!E54)*vstupy!E46*$I$5,0) -> 507 | F31: =ROUND((((($C$5-$D$5)/(LN(($C$5-$E$5)/($D$5-$E$5))))/49.8328865456397)^vstupy!F54)*vstupy!F46*$I$5,0) -> 638 | G31: =ROUND((((($C$5-$D$5)/(LN(($C$5-$E$5)/($D$5-$E$5))))/49.8328865456397)^vstupy!G54)*vstupy!G46*$I$5,0) -> 795 | H31: =ROUND((((($C$5-$D$5)/(LN(($C$5-$E$5)/($D$5-$E$5))))/49.8328865456397)^vstupy!H54)*vstupy!H46*$I$5,0) -> 280 | I31: =ROUND((((($C$5-$D$5)/(LN(($C$5-$E$5)/($D$5-$E$5))))/49.8328865456397)^vstupy!I54)*vstupy!I46*$I$5,0) -> 365 | J31: =ROUND((((($C$5-$D$5)/(LN(($C$5-$E$5)/($D$5-$E$5))))/49.8328865456397)^vstupy!J54)*vstupy!J46*$I$5,0) -> 507 | K31: =ROUND((((($C$5-$D$5)/(LN(($C$5-$E$5)/($D$5-$E$5))))/49.8328865456397)^vstupy!K54)*vstupy!K46*$I$5,0) -> 638 | L31: =ROUND((((($C$5-$D$5)/(LN(($C$5-$E$5)/($D$5-$E$5))))/49.8328865456397)^vstupy!L54)*vstupy!L46*$I$5,0) -> 795 | M31: 500 | O31: 500 | P31: =ROUND((((($C$5-$D$5)/(LN(($C$5-$E$5)/($D$5-$E$5))))/49.8328865456397)^vstupy!P54)*vstupy!P46*$I$5,0) -> 318 | Q31: =ROUND((((($C$5-$D$5)/(LN(($C$5-$E$5)/($D$5-$E$5))))/49.8328865456397)^vstupy!Q54)*vstupy!Q46*$I$5,0) -> 413 | R31: =ROUND((((($C$5-$D$5)/(LN(($C$5-$E$5)/($D$5-$E$5))))/49.8328865456397)^vstupy!R54)*vstupy!R46*$I$5,0) -> 567 | S31: =ROUND((((($C$5-$D$5)/(LN(($C$5-$E$5)/($D$5-$E$5))))/49.8328865456397)^vstupy!S54)*vstupy!S46*$I$5,0) -> 703 | T31: =ROUND((((($C$5-$D$5)/(LN(($C$5-$E$5)/($D$5-$E$5))))/49.8328865456397)^vstupy!T54)*vstupy!T46*$I$5,0) -> 859 | Z31: 500
B32: 600 | C32: =ROUND((((($C$5-$D$5)/(LN(($C$5-$E$5)/($D$5-$E$5))))/49.8328865456397)^vstupy!C55)*vstupy!C47*$I$5,0) -> 329 | D32: =ROUND((((($C$5-$D$5)/(LN(($C$5-$E$5)/($D$5-$E$5))))/49.8328865456397)^vstupy!D55)*vstupy!D47*$I$5,0) -> 429 | E32: =ROUND((((($C$5-$D$5)/(LN(($C$5-$E$5)/($D$5-$E$5))))/49.8328865456397)^vstupy!E55)*vstupy!E47*$I$5,0) -> 596 | F32: =ROUND((((($C$5-$D$5)/(LN(($C$5-$E$5)/($D$5-$E$5))))/49.8328865456397)^vstupy!F55)*vstupy!F47*$I$5,0) -> 750 | G32: =ROUND((((($C$5-$D$5)/(LN(($C$5-$E$5)/($D$5-$E$5))))/49.8328865456397)^vstupy!G55)*vstupy!G47*$I$5,0) -> 934 | H32: =ROUND((((($C$5-$D$5)/(LN(($C$5-$E$5)/($D$5-$E$5))))/49.8328865456397)^vstupy!H55)*vstupy!H47*$I$5,0) -> 329 | I32: =ROUND((((($C$5-$D$5)/(LN(($C$5-$E$5)/($D$5-$E$5))))/49.8328865456397)^vstupy!I55)*vstupy!I47*$I$5,0) -> 429 | J32: =ROUND((((($C$5-$D$5)/(LN(($C$5-$E$5)/($D$5-$E$5))))/49.8328865456397)^vstupy!J55)*vstupy!J47*$I$5,0) -> 596 | K32: =ROUND((((($C$5-$D$5)/(LN(($C$5-$E$5)/($D$5-$E$5))))/49.8328865456397)^vstupy!K55)*vstupy!K47*$I$5,0) -> 750 | L32: =ROUND((((($C$5-$D$5)/(LN(($C$5-$E$5)/($D$5-$E$5))))/49.8328865456397)^vstupy!L55)*vstupy!L47*$I$5,0) -> 934 | M32: 600 | O32: 600 | P32: =ROUND((((($C$5-$D$5)/(LN(($C$5-$E$5)/($D$5-$E$5))))/49.8328865456397)^vstupy!P55)*vstupy!P47*$I$5,0) -> 372 | Q32: =ROUND((((($C$5-$D$5)/(LN(($C$5-$E$5)/($D$5-$E$5))))/49.8328865456397)^vstupy!Q55)*vstupy!Q47*$I$5,0) -> 482 | R32: =ROUND((((($C$5-$D$5)/(LN(($C$5-$E$5)/($D$5-$E$5))))/49.8328865456397)^vstupy!R55)*vstupy!R47*$I$5,0) -> 662 | S32: =ROUND((((($C$5-$D$5)/(LN(($C$5-$E$5)/($D$5-$E$5))))/49.8328865456397)^vstupy!S55)*vstupy!S47*$I$5,0) -> 820 | T32: =ROUND((((($C$5-$D$5)/(LN(($C$5-$E$5)/($D$5-$E$5))))/49.8328865456397)^vstupy!T55)*vstupy!T47*$I$5,0) -> 1003 | Z32: 600
B33: 750 | C33: =ROUND((((($C$5-$D$5)/(LN(($C$5-$E$5)/($D$5-$E$5))))/49.8328865456397)^vstupy!C56)*vstupy!C48*$I$5,0) -> 400 | D33: =ROUND((((($C$5-$D$5)/(LN(($C$5-$E$5)/($D$5-$E$5))))/49.8328865456397)^vstupy!D56)*vstupy!D48*$I$5,0) -> 522 | E33: =ROUND((((($C$5-$D$5)/(LN(($C$5-$E$5)/($D$5-$E$5))))/49.8328865456397)^vstupy!E56)*vstupy!E48*$I$5,0) -> 726 | F33: =ROUND((((($C$5-$D$5)/(LN(($C$5-$E$5)/($D$5-$E$5))))/49.8328865456397)^vstupy!F56)*vstupy!F48*$I$5,0) -> 913 | G33: =ROUND((((($C$5-$D$5)/(LN(($C$5-$E$5)/($D$5-$E$5))))/49.8328865456397)^vstupy!G56)*vstupy!G48*$I$5,0) -> 1138 | H33: =ROUND((((($C$5-$D$5)/(LN(($C$5-$E$5)/($D$5-$E$5))))/49.8328865456397)^vstupy!H56)*vstupy!H48*$I$5,0) -> 400 | I33: =ROUND((((($C$5-$D$5)/(LN(($C$5-$E$5)/($D$5-$E$5))))/49.8328865456397)^vstupy!I56)*vstupy!I48*$I$5,0) -> 522 | J33: =ROUND((((($C$5-$D$5)/(LN(($C$5-$E$5)/($D$5-$E$5))))/49.8328865456397)^vstupy!J56)*vstupy!J48*$I$5,0) -> 726 | K33: =ROUND((((($C$5-$D$5)/(LN(($C$5-$E$5)/($D$5-$E$5))))/49.8328865456397)^vstupy!K56)*vstupy!K48*$I$5,0) -> 913 | L33: =ROUND((((($C$5-$D$5)/(LN(($C$5-$E$5)/($D$5-$E$5))))/49.8328865456397)^vstupy!L56)*vstupy!L48*$I$5,0) -> 1138 | M33: 750 | O33: 750 | P33: =ROUND((((($C$5-$D$5)/(LN(($C$5-$E$5)/($D$5-$E$5))))/49.8328865456397)^vstupy!P56)*vstupy!P48*$I$5,0) -> 449 | Q33: =ROUND((((($C$5-$D$5)/(LN(($C$5-$E$5)/($D$5-$E$5))))/49.8328865456397)^vstupy!Q56)*vstupy!Q48*$I$5,0) -> 583 | R33: =ROUND((((($C$5-$D$5)/(LN(($C$5-$E$5)/($D$5-$E$5))))/49.8328865456397)^vstupy!R56)*vstupy!R48*$I$5,0) -> 799 | S33: =ROUND((((($C$5-$D$5)/(LN(($C$5-$E$5)/($D$5-$E$5))))/49.8328865456397)^vstupy!S56)*vstupy!S48*$I$5,0) -> 991 | T33: =ROUND((((($C$5-$D$5)/(LN(($C$5-$E$5)/($D$5-$E$5))))/49.8328865456397)^vstupy!T56)*vstupy!T48*$I$5,0) -> 1211 | Z33: 750
C35: KORALUX STANDARD | P35: KORALUX STANDARD
B36: Délka L | C36: Výška H [mm] | O36: Délka L | P36: Výška H [mm]
B37: [mm] | C37: 700 | D37: 900 | E37: 1220 | F37: 1500 | O37: [mm] | P37: 700 | Q37: 900 | R37: 1220 | S37: 1500
B38: 400 | C38: =ROUND((((($C$5-$D$5)/(LN(($C$5-$E$5)/($D$5-$E$5))))/49.8328865456397)^vstupy!C68)*vstupy!C61*$I$5,0) -> 198 | D38: =ROUND((((($C$5-$D$5)/(LN(($C$5-$E$5)/($D$5-$E$5))))/49.8328865456397)^vstupy!D68)*vstupy!D61*$I$5,0) -> 254 | E38: =ROUND((((($C$5-$D$5)/(LN(($C$5-$E$5)/($D$5-$E$5))))/49.8328865456397)^vstupy!E68)*vstupy!E61*$I$5,0) -> 345 | F38: =ROUND((((($C$5-$D$5)/(LN(($C$5-$E$5)/($D$5-$E$5))))/49.8328865456397)^vstupy!F68)*vstupy!F61*$I$5,0) -> 427 | O38: 400 | P38: =ROUND((((($C$5-$D$5)/(LN(($C$5-$E$5)/($D$5-$E$5))))/49.8328865456397)^vstupy!P68)*vstupy!P61*$I$5,0) -> 213 | Q38: =ROUND((((($C$5-$D$5)/(LN(($C$5-$E$5)/($D$5-$E$5))))/49.8328865456397)^vstupy!Q68)*vstupy!Q61*$I$5,0) -> 275 | R38: =ROUND((((($C$5-$D$5)/(LN(($C$5-$E$5)/($D$5-$E$5))))/49.8328865456397)^vstupy!R68)*vstupy!R61*$I$5,0) -> 373 | S38: =ROUND((((($C$5-$D$5)/(LN(($C$5-$E$5)/($D$5-$E$5))))/49.8328865456397)^vstupy!S68)*vstupy!S61*$I$5,0) -> 458
B39: 500 | C39: =ROUND((((($C$5-$D$5)/(LN(($C$5-$E$5)/($D$5-$E$5))))/49.8328865456397)^vstupy!C69)*vstupy!C62*$I$5,0) -> 231 | D39: =ROUND((((($C$5-$D$5)/(LN(($C$5-$E$5)/($D$5-$E$5))))/49.8328865456397)^vstupy!D69)*vstupy!D62*$I$5,0) -> 297 | E39: =ROUND((((($C$5-$D$5)/(LN(($C$5-$E$5)/($D$5-$E$5))))/49.8328865456397)^vstupy!E69)*vstupy!E62*$I$5,0) -> 403 | F39: =ROUND((((($C$5-$D$5)/(LN(($C$5-$E$5)/($D$5-$E$5))))/49.8328865456397)^vstupy!F69)*vstupy!F62*$I$5,0) -> 499 | O39: 500 | P39: =ROUND((((($C$5-$D$5)/(LN(($C$5-$E$5)/($D$5-$E$5))))/49.8328865456397)^vstupy!P69)*vstupy!P62*$I$5,0) -> 249 | Q39: =ROUND((((($C$5-$D$5)/(LN(($C$5-$E$5)/($D$5-$E$5))))/49.8328865456397)^vstupy!Q69)*vstupy!Q62*$I$5,0) -> 322 | R39: =ROUND((((($C$5-$D$5)/(LN(($C$5-$E$5)/($D$5-$E$5))))/49.8328865456397)^vstupy!R69)*vstupy!R62*$I$5,0) -> 436 | S39: =ROUND((((($C$5-$D$5)/(LN(($C$5-$E$5)/($D$5-$E$5))))/49.8328865456397)^vstupy!S69)*vstupy!S62*$I$5,0) -> 536
B40: 600 | C40: =ROUND((((($C$5-$D$5)/(LN(($C$5-$E$5)/($D$5-$E$5))))/49.8328865456397)^vstupy!C70)*vstupy!C63*$I$5,0) -> 263 | D40: =ROUND((((($C$5-$D$5)/(LN(($C$5-$E$5)/($D$5-$E$5))))/49.8328865456397)^vstupy!D70)*vstupy!D63*$I$5,0) -> 337 | E40: =ROUND((((($C$5-$D$5)/(LN(($C$5-$E$5)/($D$5-$E$5))))/49.8328865456397)^vstupy!E70)*vstupy!E63*$I$5,0) -> 458 | F40: =ROUND((((($C$5-$D$5)/(LN(($C$5-$E$5)/($D$5-$E$5))))/49.8328865456397)^vstupy!F70)*vstupy!F63*$I$5,0) -> 567 | O40: 600 | P40: =ROUND((((($C$5-$D$5)/(LN(($C$5-$E$5)/($D$5-$E$5))))/49.8328865456397)^vstupy!P70)*vstupy!P63*$I$5,0) -> 283 | Q40: =ROUND((((($C$5-$D$5)/(LN(($C$5-$E$5)/($D$5-$E$5))))/49.8328865456397)^vstupy!Q70)*vstupy!Q63*$I$5,0) -> 365 | R40: =ROUND((((($C$5-$D$5)/(LN(($C$5-$E$5)/($D$5-$E$5))))/49.8328865456397)^vstupy!R70)*vstupy!R63*$I$5,0) -> 496 | S40: =ROUND((((($C$5-$D$5)/(LN(($C$5-$E$5)/($D$5-$E$5))))/49.8328865456397)^vstupy!S70)*vstupy!S63*$I$5,0) -> 609
C42: KORALUX LINEAR EXCLUSIVE - M | P42: KORALUX LINEAR EXCLUSIVE - M
B43: Délka L | C43: Výška H [mm] | O43: Délka L | P43: Výška H [mm]
B44: [mm] | C44: =logic!$L$4 -> Délka | D44: 1220 | E44: 1500 | F44: 1820 | O44: [mm] | P44: 900 | Q44: 1220 | R44: 1500 | S44: 1820
B45: 450 | C45: =ROUND((((($C$5-$D$5)/(LN(($C$5-$E$5)/($D$5-$E$5))))/49.8328865456397)^vstupy!C82)*vstupy!C75*$I$5,0) -> 249 | D45: =ROUND((((($C$5-$D$5)/(LN(($C$5-$E$5)/($D$5-$E$5))))/49.8328865456397)^vstupy!D82)*vstupy!D75*$I$5,0) -> 338 | E45: =ROUND((((($C$5-$D$5)/(LN(($C$5-$E$5)/($D$5-$E$5))))/49.8328865456397)^vstupy!E82)*vstupy!E75*$I$5,0) -> 419 | F45: =ROUND((((($C$5-$D$5)/(LN(($C$5-$E$5)/($D$5-$E$5))))/49.8328865456397)^vstupy!F82)*vstupy!F75*$I$5,0) -> 516 | O45: 450
B46: 600 | C46: =ROUND((((($C$5-$D$5)/(LN(($C$5-$E$5)/($D$5-$E$5))))/49.8328865456397)^vstupy!C83)*vstupy!C76*$I$5,0) -> 319 | D46: =ROUND((((($C$5-$D$5)/(LN(($C$5-$E$5)/($D$5-$E$5))))/49.8328865456397)^vstupy!D83)*vstupy!D76*$I$5,0) -> 433 | E46: =ROUND((((($C$5-$D$5)/(LN(($C$5-$E$5)/($D$5-$E$5))))/49.8328865456397)^vstupy!E83)*vstupy!E76*$I$5,0) -> 537 | F46: =ROUND((((($C$5-$D$5)/(LN(($C$5-$E$5)/($D$5-$E$5))))/49.8328865456397)^vstupy!F83)*vstupy!F76*$I$5,0) -> 662 | O46: 600
B47: 750 | C47: =ROUND((((($C$5-$D$5)/(LN(($C$5-$E$5)/($D$5-$E$5))))/49.8328865456397)^vstupy!C84)*vstupy!C77*$I$5,0) -> 387 | D47: =ROUND((((($C$5-$D$5)/(LN(($C$5-$E$5)/($D$5-$E$5))))/49.8328865456397)^vstupy!D84)*vstupy!D77*$I$5,0) -> 526 | E47: =ROUND((((($C$5-$D$5)/(LN(($C$5-$E$5)/($D$5-$E$5))))/49.8328865456397)^vstupy!E84)*vstupy!E77*$I$5,0) -> 652 | F47: =ROUND((((($C$5-$D$5)/(LN(($C$5-$E$5)/($D$5-$E$5))))/49.8328865456397)^vstupy!F84)*vstupy!F77*$I$5,0) -> 802 | O47: 750
C49: KORALUX RONDO MAX | H49: KORALUX RONDO MAX - M | P49: KORALUX RONDO MAX | U49: KORALUX RONDO MAX - M
B50: Délka L | C50: Výška H [mm] | H50: Výška H [mm] | M50: Délka L | O50: Délka L | P50: Výška H [mm] | U50: Výška H [mm] | Z50: Délka L
B51: [mm] | C51: 700 | D51: 900 | E51: 1220 | F51: 1500 | G51: 1820 | H51: 700 | I51: 900 | J51: 1220 | K51: 1500 | L51: 1820 | M51: [mm] | O51: [mm] | P51: 700 | Q51: 900 | R51: 1220 | S51: 1500 | T51: 1820 | U51: 700 | V51: 900 | W51: 1220 | X51: 1500 | Y51: 1820 | Z51: [mm]
B52: 450 | C52: =ROUND((((($C$5-$D$5)/(LN(($C$5-$E$5)/($D$5-$E$5))))/49.8328865456397)^vstupy!C96)*vstupy!C89*$I$5,0) -> 335 | D52: =ROUND((((($C$5-$D$5)/(LN(($C$5-$E$5)/($D$5-$E$5))))/49.8328865456397)^vstupy!D96)*vstupy!D89*$I$5,0) -> 432 | E52: =ROUND((((($C$5-$D$5)/(LN(($C$5-$E$5)/($D$5-$E$5))))/49.8328865456397)^vstupy!E96)*vstupy!E89*$I$5,0) -> 589 | F52: =ROUND((((($C$5-$D$5)/(LN(($C$5-$E$5)/($D$5-$E$5))))/49.8328865456397)^vstupy!F96)*vstupy!F89*$I$5,0) -> 725 | G52: =ROUND((((($C$5-$D$5)/(LN(($C$5-$E$5)/($D$5-$E$5))))/49.8328865456397)^vstupy!G96)*vstupy!G89*$I$5,0) -> 879 | H52: =ROUND((((($C$5-$D$5)/(LN(($C$5-$E$5)/($D$5-$E$5))))/49.8328865456397)^vstupy!H96)*vstupy!H89*$I$5,0) -> 335 | I52: =ROUND((((($C$5-$D$5)/(LN(($C$5-$E$5)/($D$5-$E$5))))/49.8328865456397)^vstupy!I96)*vstupy!I89*$I$5,0) -> 432 | J52: =ROUND((((($C$5-$D$5)/(LN(($C$5-$E$5)/($D$5-$E$5))))/49.8328865456397)^vstupy!J96)*vstupy!J89*$I$5,0) -> 589 | K52: =ROUND((((($C$5-$D$5)/(LN(($C$5-$E$5)/($D$5-$E$5))))/49.8328865456397)^vstupy!K96)*vstupy!K89*$I$5,0) -> 725 | L52: =ROUND((((($C$5-$D$5)/(LN(($C$5-$E$5)/($D$5-$E$5))))/49.8328865456397)^vstupy!L96)*vstupy!L89*$I$5,0) -> 879 | M52: 450 | O52: 450 | P52: =ROUND((((($C$5-$D$5)/(LN(($C$5-$E$5)/($D$5-$E$5))))/49.8328865456397)^vstupy!P96)*vstupy!P89*$I$5,0) -> 361 | Q52: =ROUND((((($C$5-$D$5)/(LN(($C$5-$E$5)/($D$5-$E$5))))/49.8328865456397)^vstupy!Q96)*vstupy!Q89*$I$5,0) -> 462 | R52: =ROUND((((($C$5-$D$5)/(LN(($C$5-$E$5)/($D$5-$E$5))))/49.8328865456397)^vstupy!R96)*vstupy!R89*$I$5,0) -> 625 | S52: =ROUND((((($C$5-$D$5)/(LN(($C$5-$E$5)/($D$5-$E$5))))/49.8328865456397)^vstupy!S96)*vstupy!S89*$I$5,0) -> 771 | T52: =ROUND((((($C$5-$D$5)/(LN(($C$5-$E$5)/($D$5-$E$5))))/49.8328865456397)^vstupy!T96)*vstupy!T89*$I$5,0) -> 942 | Z52: 450
B53: 600 | C53: =ROUND((((($C$5-$D$5)/(LN(($C$5-$E$5)/($D$5-$E$5))))/49.8328865456397)^vstupy!C97)*vstupy!C90*$I$5,0) -> 444 | D53: =ROUND((((($C$5-$D$5)/(LN(($C$5-$E$5)/($D$5-$E$5))))/49.8328865456397)^vstupy!D97)*vstupy!D90*$I$5,0) -> 574 | E53: =ROUND((((($C$5-$D$5)/(LN(($C$5-$E$5)/($D$5-$E$5))))/49.8328865456397)^vstupy!E97)*vstupy!E90*$I$5,0) -> 781 | F53: =ROUND((((($C$5-$D$5)/(LN(($C$5-$E$5)/($D$5-$E$5))))/49.8328865456397)^vstupy!F97)*vstupy!F90*$I$5,0) -> 962 | G53: =ROUND((((($C$5-$D$5)/(LN(($C$5-$E$5)/($D$5-$E$5))))/49.8328865456397)^vstupy!G97)*vstupy!G90*$I$5,0) -> 1166 | H53: =ROUND((((($C$5-$D$5)/(LN(($C$5-$E$5)/($D$5-$E$5))))/49.8328865456397)^vstupy!H97)*vstupy!H90*$I$5,0) -> 444 | I53: =ROUND((((($C$5-$D$5)/(LN(($C$5-$E$5)/($D$5-$E$5))))/49.8328865456397)^vstupy!I97)*vstupy!I90*$I$5,0) -> 574 | J53: =ROUND((((($C$5-$D$5)/(LN(($C$5-$E$5)/($D$5-$E$5))))/49.8328865456397)^vstupy!J97)*vstupy!J90*$I$5,0) -> 781 | K53: =ROUND((((($C$5-$D$5)/(LN(($C$5-$E$5)/($D$5-$E$5))))/49.8328865456397)^vstupy!K97)*vstupy!K90*$I$5,0) -> 962 | L53: =ROUND((((($C$5-$D$5)/(LN(($C$5-$E$5)/($D$5-$E$5))))/49.8328865456397)^vstupy!L97)*vstupy!L90*$I$5,0) -> 1166 | M53: 600 | O53: 600 | P53: =ROUND((((($C$5-$D$5)/(LN(($C$5-$E$5)/($D$5-$E$5))))/49.8328865456397)^vstupy!P97)*vstupy!P90*$I$5,0) -> 480 | Q53: =ROUND((((($C$5-$D$5)/(LN(($C$5-$E$5)/($D$5-$E$5))))/49.8328865456397)^vstupy!Q97)*vstupy!Q90*$I$5,0) -> 614 | R53: =ROUND((((($C$5-$D$5)/(LN(($C$5-$E$5)/($D$5-$E$5))))/49.8328865456397)^vstupy!R97)*vstupy!R90*$I$5,0) -> 832 | S53: =ROUND((((($C$5-$D$5)/(LN(($C$5-$E$5)/($D$5-$E$5))))/49.8328865456397)^vstupy!S97)*vstupy!S90*$I$5,0) -> 1026 | T53: =ROUND((((($C$5-$D$5)/(LN(($C$5-$E$5)/($D$5-$E$5))))/49.8328865456397)^vstupy!T97)*vstupy!T90*$I$5,0) -> 1253 | Z53: 600
B54: 750 | C54: =ROUND((((($C$5-$D$5)/(LN(($C$5-$E$5)/($D$5-$E$5))))/49.8328865456397)^vstupy!C98)*vstupy!C91*$I$5,0) -> 553 | D54: =ROUND((((($C$5-$D$5)/(LN(($C$5-$E$5)/($D$5-$E$5))))/49.8328865456397)^vstupy!D98)*vstupy!D91*$I$5,0) -> 714 | E54: =ROUND((((($C$5-$D$5)/(LN(($C$5-$E$5)/($D$5-$E$5))))/49.8328865456397)^vstupy!E98)*vstupy!E91*$I$5,0) -> 973 | F54: =ROUND((((($C$5-$D$5)/(LN(($C$5-$E$5)/($D$5-$E$5))))/49.8328865456397)^vstupy!F98)*vstupy!F91*$I$5,0) -> 1197 | G54: =ROUND((((($C$5-$D$5)/(LN(($C$5-$E$5)/($D$5-$E$5))))/49.8328865456397)^vstupy!G98)*vstupy!G91*$I$5,0) -> 1452 | H54: =ROUND((((($C$5-$D$5)/(LN(($C$5-$E$5)/($D$5-$E$5))))/49.8328865456397)^vstupy!H98)*vstupy!H91*$I$5,0) -> 553 | I54: =ROUND((((($C$5-$D$5)/(LN(($C$5-$E$5)/($D$5-$E$5))))/49.8328865456397)^vstupy!I98)*vstupy!I91*$I$5,0) -> 714 | J54: =ROUND((((($C$5-$D$5)/(LN(($C$5-$E$5)/($D$5-$E$5))))/49.8328865456397)^vstupy!J98)*vstupy!J91*$I$5,0) -> 973 | K54: =ROUND((((($C$5-$D$5)/(LN(($C$5-$E$5)/($D$5-$E$5))))/49.8328865456397)^vstupy!K98)*vstupy!K91*$I$5,0) -> 1197 | L54: =ROUND((((($C$5-$D$5)/(LN(($C$5-$E$5)/($D$5-$E$5))))/49.8328865456397)^vstupy!L98)*vstupy!L91*$I$5,0) -> 1452 | M54: 750 | O54: 750 | P54: =ROUND((((($C$5-$D$5)/(LN(($C$5-$E$5)/($D$5-$E$5))))/49.8328865456397)^vstupy!P98)*vstupy!P91*$I$5,0) -> 599 | Q54: =ROUND((((($C$5-$D$5)/(LN(($C$5-$E$5)/($D$5-$E$5))))/49.8328865456397)^vstupy!Q98)*vstupy!Q91*$I$5,0) -> 767 | R54: =ROUND((((($C$5-$D$5)/(LN(($C$5-$E$5)/($D$5-$E$5))))/49.8328865456397)^vstupy!R98)*vstupy!R91*$I$5,0) -> 1038 | S54: =ROUND((((($C$5-$D$5)/(LN(($C$5-$E$5)/($D$5-$E$5))))/49.8328865456397)^vstupy!S98)*vstupy!S91*$I$5,0) -> 1280 | T54: =ROUND((((($C$5-$D$5)/(LN(($C$5-$E$5)/($D$5-$E$5))))/49.8328865456397)^vstupy!T98)*vstupy!T91*$I$5,0) -> 1564 | Z54: 750
C56: KORALUX RONDO COMFORT | H56: KORALUX RONDO COMFORT - M | P56: KORALUX RONDO COMFORT | U56: KORALUX RONDO COMFORT - M
B57: Délka L | C57: Výška H [mm] | H57: Výška H [mm] | M57: Délka L | O57: Délka L | P57: Výška H [mm] | U57: Výška H [mm] | Z57: Délka L
B58: [mm] | C58: 700 | D58: 900 | E58: 1220 | F58: 1500 | G58: 1820 | H58: 700 | I58: 900 | J58: 1220 | K58: 1500 | L58: 1820 | M58: [mm] | O58: [mm] | P58: 700 | Q58: 900 | R58: 1220 | S58: 1500 | T58: 1820 | U58: 700 | V58: 900 | W58: 1220 | X58: 1500 | Y58: 1820 | Z58: [mm]
B59: 450 | C59: =ROUND((((($C$5-$D$5)/(LN(($C$5-$E$5)/($D$5-$E$5))))/49.8328865456397)^vstupy!C111)*vstupy!C103*$I$5,0) -> 287 | D59: =ROUND((((($C$5-$D$5)/(LN(($C$5-$E$5)/($D$5-$E$5))))/49.8328865456397)^vstupy!D111)*vstupy!D103*$I$5,0) -> 369 | E59: =ROUND((((($C$5-$D$5)/(LN(($C$5-$E$5)/($D$5-$E$5))))/49.8328865456397)^vstupy!E111)*vstupy!E103*$I$5,0) -> 504 | F59: =ROUND((((($C$5-$D$5)/(LN(($C$5-$E$5)/($D$5-$E$5))))/49.8328865456397)^vstupy!F111)*vstupy!F103*$I$5,0) -> 626 | G59: =ROUND((((($C$5-$D$5)/(LN(($C$5-$E$5)/($D$5-$E$5))))/49.8328865456397)^vstupy!G111)*vstupy!G103*$I$5,0) -> 772 | H59: =ROUND((((($C$5-$D$5)/(LN(($C$5-$E$5)/($D$5-$E$5))))/49.8328865456397)^vstupy!H111)*vstupy!H103*$I$5,0) -> 287 | I59: =ROUND((((($C$5-$D$5)/(LN(($C$5-$E$5)/($D$5-$E$5))))/49.8328865456397)^vstupy!I111)*vstupy!I103*$I$5,0) -> 369 | J59: =ROUND((((($C$5-$D$5)/(LN(($C$5-$E$5)/($D$5-$E$5))))/49.8328865456397)^vstupy!J111)*vstupy!J103*$I$5,0) -> 504 | K59: =ROUND((((($C$5-$D$5)/(LN(($C$5-$E$5)/($D$5-$E$5))))/49.8328865456397)^vstupy!K111)*vstupy!K103*$I$5,0) -> 626 | L59: =ROUND((((($C$5-$D$5)/(LN(($C$5-$E$5)/($D$5-$E$5))))/49.8328865456397)^vstupy!L111)*vstupy!L103*$I$5,0) -> 772 | M59: 450 | O59: 450 | P59: =ROUND((((($C$5-$D$5)/(LN(($C$5-$E$5)/($D$5-$E$5))))/49.8328865456397)^vstupy!P111)*vstupy!P103*$I$5,0) -> 312 | Q59: =ROUND((((($C$5-$D$5)/(LN(($C$5-$E$5)/($D$5-$E$5))))/49.8328865456397)^vstupy!Q111)*vstupy!Q103*$I$5,0) -> 402 | R59: =ROUND((((($C$5-$D$5)/(LN(($C$5-$E$5)/($D$5-$E$5))))/49.8328865456397)^vstupy!R111)*vstupy!R103*$I$5,0) -> 549 | S59: =ROUND((((($C$5-$D$5)/(LN(($C$5-$E$5)/($D$5-$E$5))))/49.8328865456397)^vstupy!S111)*vstupy!S103*$I$5,0) -> 682 | T59: =ROUND((((($C$5-$D$5)/(LN(($C$5-$E$5)/($D$5-$E$5))))/49.8328865456397)^vstupy!T111)*vstupy!T103*$I$5,0) -> 841 | Z59: 450
B60: 500 | C60: =ROUND((((($C$5-$D$5)/(LN(($C$5-$E$5)/($D$5-$E$5))))/49.8328865456397)^vstupy!C112)*vstupy!C104*$I$5,0) -> 315 | D60: =ROUND((((($C$5-$D$5)/(LN(($C$5-$E$5)/($D$5-$E$5))))/49.8328865456397)^vstupy!D112)*vstupy!D104*$I$5,0) -> 405 | E60: =ROUND((((($C$5-$D$5)/(LN(($C$5-$E$5)/($D$5-$E$5))))/49.8328865456397)^vstupy!E112)*vstupy!E104*$I$5,0) -> 553 | F60: =ROUND((((($C$5-$D$5)/(LN(($C$5-$E$5)/($D$5-$E$5))))/49.8328865456397)^vstupy!F112)*vstupy!F104*$I$5,0) -> 687 | G60: =ROUND((((($C$5-$D$5)/(LN(($C$5-$E$5)/($D$5-$E$5))))/49.8328865456397)^vstupy!G112)*vstupy!G104*$I$5,0) -> 848 | H60: =ROUND((((($C$5-$D$5)/(LN(($C$5-$E$5)/($D$5-$E$5))))/49.8328865456397)^vstupy!H112)*vstupy!H104*$I$5,0) -> 315 | I60: =ROUND((((($C$5-$D$5)/(LN(($C$5-$E$5)/($D$5-$E$5))))/49.8328865456397)^vstupy!I112)*vstupy!I104*$I$5,0) -> 405 | J60: =ROUND((((($C$5-$D$5)/(LN(($C$5-$E$5)/($D$5-$E$5))))/49.8328865456397)^vstupy!J112)*vstupy!J104*$I$5,0) -> 553 | K60: =ROUND((((($C$5-$D$5)/(LN(($C$5-$E$5)/($D$5-$E$5))))/49.8328865456397)^vstupy!K112)*vstupy!K104*$I$5,0) -> 687 | L60: =ROUND((((($C$5-$D$5)/(LN(($C$5-$E$5)/($D$5-$E$5))))/49.8328865456397)^vstupy!L112)*vstupy!L104*$I$5,0) -> 848 | M60: 500 | O60: 500 | P60: =ROUND((((($C$5-$D$5)/(LN(($C$5-$E$5)/($D$5-$E$5))))/49.8328865456397)^vstupy!P112)*vstupy!P104*$I$5,0) -> 342 | Q60: =ROUND((((($C$5-$D$5)/(LN(($C$5-$E$5)/($D$5-$E$5))))/49.8328865456397)^vstupy!Q112)*vstupy!Q104*$I$5,0) -> 440 | R60: =ROUND((((($C$5-$D$5)/(LN(($C$5-$E$5)/($D$5-$E$5))))/49.8328865456397)^vstupy!R112)*vstupy!R104*$I$5,0) -> 601 | S60: =ROUND((((($C$5-$D$5)/(LN(($C$5-$E$5)/($D$5-$E$5))))/49.8328865456397)^vstupy!S112)*vstupy!S104*$I$5,0) -> 747 | T60: =ROUND((((($C$5-$D$5)/(LN(($C$5-$E$5)/($D$5-$E$5))))/49.8328865456397)^vstupy!T112)*vstupy!T104*$I$5,0) -> 921 | Z60: 500
B61: 600 | C61: =ROUND((((($C$5-$D$5)/(LN(($C$5-$E$5)/($D$5-$E$5))))/49.8328865456397)^vstupy!C113)*vstupy!C105*$I$5,0) -> 370 | D61: =ROUND((((($C$5-$D$5)/(LN(($C$5-$E$5)/($D$5-$E$5))))/49.8328865456397)^vstupy!D113)*vstupy!D105*$I$5,0) -> 475 | E61: =ROUND((((($C$5-$D$5)/(LN(($C$5-$E$5)/($D$5-$E$5))))/49.8328865456397)^vstupy!E113)*vstupy!E105*$I$5,0) -> 650 | F61: =ROUND((((($C$5-$D$5)/(LN(($C$5-$E$5)/($D$5-$E$5))))/49.8328865456397)^vstupy!F113)*vstupy!F105*$I$5,0) -> 808 | G61: =ROUND((((($C$5-$D$5)/(LN(($C$5-$E$5)/($D$5-$E$5))))/49.8328865456397)^vstupy!G113)*vstupy!G105*$I$5,0) -> 996 | H61: =ROUND((((($C$5-$D$5)/(LN(($C$5-$E$5)/($D$5-$E$5))))/49.8328865456397)^vstupy!H113)*vstupy!H105*$I$5,0) -> 370 | I61: =ROUND((((($C$5-$D$5)/(LN(($C$5-$E$5)/($D$5-$E$5))))/49.8328865456397)^vstupy!I113)*vstupy!I105*$I$5,0) -> 475 | J61: =ROUND((((($C$5-$D$5)/(LN(($C$5-$E$5)/($D$5-$E$5))))/49.8328865456397)^vstupy!J113)*vstupy!J105*$I$5,0) -> 650 | K61: =ROUND((((($C$5-$D$5)/(LN(($C$5-$E$5)/($D$5-$E$5))))/49.8328865456397)^vstupy!K113)*vstupy!K105*$I$5,0) -> 808 | L61: =ROUND((((($C$5-$D$5)/(LN(($C$5-$E$5)/($D$5-$E$5))))/49.8328865456397)^vstupy!L113)*vstupy!L105*$I$5,0) -> 996 | M61: 600 | O61: 600 | P61: =ROUND((((($C$5-$D$5)/(LN(($C$5-$E$5)/($D$5-$E$5))))/49.8328865456397)^vstupy!P113)*vstupy!P105*$I$5,0) -> 400 | Q61: =ROUND((((($C$5-$D$5)/(LN(($C$5-$E$5)/($D$5-$E$5))))/49.8328865456397)^vstupy!Q113)*vstupy!Q105*$I$5,0) -> 515 | R61: =ROUND((((($C$5-$D$5)/(LN(($C$5-$E$5)/($D$5-$E$5))))/49.8328865456397)^vstupy!R113)*vstupy!R105*$I$5,0) -> 703 | S61: =ROUND((((($C$5-$D$5)/(LN(($C$5-$E$5)/($D$5-$E$5))))/49.8328865456397)^vstupy!S113)*vstupy!S105*$I$5,0) -> 874 | T61: =ROUND((((($C$5-$D$5)/(LN(($C$5-$E$5)/($D$5-$E$5))))/49.8328865456397)^vstupy!T113)*vstupy!T105*$I$5,0) -> 1078 | Z61: 600
B62: 750 | C62: =ROUND((((($C$5-$D$5)/(LN(($C$5-$E$5)/($D$5-$E$5))))/49.8328865456397)^vstupy!C114)*vstupy!C106*$I$5,0) -> 450 | D62: =ROUND((((($C$5-$D$5)/(LN(($C$5-$E$5)/($D$5-$E$5))))/49.8328865456397)^vstupy!D114)*vstupy!D106*$I$5,0) -> 579 | E62: =ROUND((((($C$5-$D$5)/(LN(($C$5-$E$5)/($D$5-$E$5))))/49.8328865456397)^vstupy!E114)*vstupy!E106*$I$5,0) -> 791 | F62: =ROUND((((($C$5-$D$5)/(LN(($C$5-$E$5)/($D$5-$E$5))))/49.8328865456397)^vstupy!F114)*vstupy!F106*$I$5,0) -> 984 | G62: =ROUND((((($C$5-$D$5)/(LN(($C$5-$E$5)/($D$5-$E$5))))/49.8328865456397)^vstupy!G114)*vstupy!G106*$I$5,0) -> 1213 | H62: =ROUND((((($C$5-$D$5)/(LN(($C$5-$E$5)/($D$5-$E$5))))/49.8328865456397)^vstupy!H114)*vstupy!H106*$I$5,0) -> 450 | I62: =ROUND((((($C$5-$D$5)/(LN(($C$5-$E$5)/($D$5-$E$5))))/49.8328865456397)^vstupy!I114)*vstupy!I106*$I$5,0) -> 579 | J62: =ROUND((((($C$5-$D$5)/(LN(($C$5-$E$5)/($D$5-$E$5))))/49.8328865456397)^vstupy!J114)*vstupy!J106*$I$5,0) -> 791 | K62: =ROUND((((($C$5-$D$5)/(LN(($C$5-$E$5)/($D$5-$E$5))))/49.8328865456397)^vstupy!K114)*vstupy!K106*$I$5,0) -> 984 | L62: =ROUND((((($C$5-$D$5)/(LN(($C$5-$E$5)/($D$5-$E$5))))/49.8328865456397)^vstupy!L114)*vstupy!L106*$I$5,0) -> 1213 | M62: 750 | O62: 750 | P62: =ROUND((((($C$5-$D$5)/(LN(($C$5-$E$5)/($D$5-$E$5))))/49.8328865456397)^vstupy!P114)*vstupy!P106*$I$5,0) -> 485 | Q62: =ROUND((((($C$5-$D$5)/(LN(($C$5-$E$5)/($D$5-$E$5))))/49.8328865456397)^vstupy!Q114)*vstupy!Q106*$I$5,0) -> 624 | R62: =ROUND((((($C$5-$D$5)/(LN(($C$5-$E$5)/($D$5-$E$5))))/49.8328865456397)^vstupy!R114)*vstupy!R106*$I$5,0) -> 852 | S62: =ROUND((((($C$5-$D$5)/(LN(($C$5-$E$5)/($D$5-$E$5))))/49.8328865456397)^vstupy!S114)*vstupy!S106*$I$5,0) -> 1060 | T62: =ROUND((((($C$5-$D$5)/(LN(($C$5-$E$5)/($D$5-$E$5))))/49.8328865456397)^vstupy!T114)*vstupy!T106*$I$5,0) -> 1307 | Z62: 750
C64: KORALUX RONDO CLASSIC | H64: KORALUX RONDO CLASSIC - M | P64: KORALUX RONDO CLASSIC | U64: KORALUX RONDO CLASSIC - M
B65: Délka L | C65: Výška H [mm] | H65: Výška H [mm] | M65: Délka L | O65: Délka L | P65: Výška H [mm] | U65: Výška H [mm] | Z65: Délka L
B66: [mm] | C66: 700 | D66: 900 | E66: 1220 | F66: 1500 | G66: 1820 | H66: 700 | I66: 900 | J66: 1220 | K66: 1500 | L66: 1820 | M66: [mm] | O66: [mm] | P66: 700 | Q66: 900 | R66: 1220 | S66: 1500 | T66: 1820 | U66: 700 | V66: 900 | W66: 1220 | X66: 1500 | Y66: 1820 | Z66: [mm]
B67: 450 | C67: =ROUND((((($C$5-$D$5)/(LN(($C$5-$E$5)/($D$5-$E$5))))/49.8328865456397)^vstupy!C127)*vstupy!C119*$I$5,0) -> 255 | D67: =ROUND((((($C$5-$D$5)/(LN(($C$5-$E$5)/($D$5-$E$5))))/49.8328865456397)^vstupy!D127)*vstupy!D119*$I$5,0) -> 333 | E67: =ROUND((((($C$5-$D$5)/(LN(($C$5-$E$5)/($D$5-$E$5))))/49.8328865456397)^vstupy!E127)*vstupy!E119*$I$5,0) -> 462 | F67: =ROUND((((($C$5-$D$5)/(LN(($C$5-$E$5)/($D$5-$E$5))))/49.8328865456397)^vstupy!F127)*vstupy!F119*$I$5,0) -> 581 | G67: =ROUND((((($C$5-$D$5)/(LN(($C$5-$E$5)/($D$5-$E$5))))/49.8328865456397)^vstupy!G127)*vstupy!G119*$I$5,0) -> 725 | H67: =ROUND((((($C$5-$D$5)/(LN(($C$5-$E$5)/($D$5-$E$5))))/49.8328865456397)^vstupy!H127)*vstupy!H119*$I$5,0) -> 255 | I67: =ROUND((((($C$5-$D$5)/(LN(($C$5-$E$5)/($D$5-$E$5))))/49.8328865456397)^vstupy!I127)*vstupy!I119*$I$5,0) -> 333 | J67: =ROUND((((($C$5-$D$5)/(LN(($C$5-$E$5)/($D$5-$E$5))))/49.8328865456397)^vstupy!J127)*vstupy!J119*$I$5,0) -> 462 | K67: =ROUND((((($C$5-$D$5)/(LN(($C$5-$E$5)/($D$5-$E$5))))/49.8328865456397)^vstupy!K127)*vstupy!K119*$I$5,0) -> 581 | L67: =ROUND((((($C$5-$D$5)/(LN(($C$5-$E$5)/($D$5-$E$5))))/49.8328865456397)^vstupy!L127)*vstupy!L119*$I$5,0) -> 725 | M67: 450 | O67: 450 | P67: =ROUND((((($C$5-$D$5)/(LN(($C$5-$E$5)/($D$5-$E$5))))/49.8328865456397)^vstupy!P127)*vstupy!P119*$I$5,0) -> 291 | Q67: =ROUND((((($C$5-$D$5)/(LN(($C$5-$E$5)/($D$5-$E$5))))/49.8328865456397)^vstupy!Q127)*vstupy!Q119*$I$5,0) -> 378 | R67: =ROUND((((($C$5-$D$5)/(LN(($C$5-$E$5)/($D$5-$E$5))))/49.8328865456397)^vstupy!R127)*vstupy!R119*$I$5,0) -> 519 | S67: =ROUND((((($C$5-$D$5)/(LN(($C$5-$E$5)/($D$5-$E$5))))/49.8328865456397)^vstupy!S127)*vstupy!S119*$I$5,0) -> 643 | T67: =ROUND((((($C$5-$D$5)/(LN(($C$5-$E$5)/($D$5-$E$5))))/49.8328865456397)^vstupy!T127)*vstupy!T119*$I$5,0) -> 786 | Z67: 450
B68: 500 | C68: =ROUND((((($C$5-$D$5)/(LN(($C$5-$E$5)/($D$5-$E$5))))/49.8328865456397)^vstupy!C128)*vstupy!C120*$I$5,0) -> 280 | D68: =ROUND((((($C$5-$D$5)/(LN(($C$5-$E$5)/($D$5-$E$5))))/49.8328865456397)^vstupy!D128)*vstupy!D120*$I$5,0) -> 365 | E68: =ROUND((((($C$5-$D$5)/(LN(($C$5-$E$5)/($D$5-$E$5))))/49.8328865456397)^vstupy!E128)*vstupy!E120*$I$5,0) -> 507 | F68: =ROUND((((($C$5-$D$5)/(LN(($C$5-$E$5)/($D$5-$E$5))))/49.8328865456397)^vstupy!F128)*vstupy!F120*$I$5,0) -> 638 | G68: =ROUND((((($C$5-$D$5)/(LN(($C$5-$E$5)/($D$5-$E$5))))/49.8328865456397)^vstupy!G128)*vstupy!G120*$I$5,0) -> 795 | H68: =ROUND((((($C$5-$D$5)/(LN(($C$5-$E$5)/($D$5-$E$5))))/49.8328865456397)^vstupy!H128)*vstupy!H120*$I$5,0) -> 280 | I68: =ROUND((((($C$5-$D$5)/(LN(($C$5-$E$5)/($D$5-$E$5))))/49.8328865456397)^vstupy!I128)*vstupy!I120*$I$5,0) -> 365 | J68: =ROUND((((($C$5-$D$5)/(LN(($C$5-$E$5)/($D$5-$E$5))))/49.8328865456397)^vstupy!J128)*vstupy!J120*$I$5,0) -> 507 | K68: =ROUND((((($C$5-$D$5)/(LN(($C$5-$E$5)/($D$5-$E$5))))/49.8328865456397)^vstupy!K128)*vstupy!K120*$I$5,0) -> 638 | L68: =ROUND((((($C$5-$D$5)/(LN(($C$5-$E$5)/($D$5-$E$5))))/49.8328865456397)^vstupy!L128)*vstupy!L120*$I$5,0) -> 795 | M68: 500 | O68: 500 | P68: =ROUND((((($C$5-$D$5)/(LN(($C$5-$E$5)/($D$5-$E$5))))/49.8328865456397)^vstupy!P129)*vstupy!P120*$I$5,0) -> 318 | Q68: =ROUND((((($C$5-$D$5)/(LN(($C$5-$E$5)/($D$5-$E$5))))/49.8328865456397)^vstupy!Q129)*vstupy!Q120*$I$5,0) -> 413 | R68: =ROUND((((($C$5-$D$5)/(LN(($C$5-$E$5)/($D$5-$E$5))))/49.8328865456397)^vstupy!R129)*vstupy!R120*$I$5,0) -> 567 | S68: =ROUND((((($C$5-$D$5)/(LN(($C$5-$E$5)/($D$5-$E$5))))/49.8328865456397)^vstupy!S129)*vstupy!S120*$I$5,0) -> 703 | T68: =ROUND((((($C$5-$D$5)/(LN(($C$5-$E$5)/($D$5-$E$5))))/49.8328865456397)^vstupy!T129)*vstupy!T120*$I$5,0) -> 859
B69: 600 | C69: =ROUND((((($C$5-$D$5)/(LN(($C$5-$E$5)/($D$5-$E$5))))/49.8328865456397)^vstupy!C129)*vstupy!C121*$I$5,0) -> 329 | D69: =ROUND((((($C$5-$D$5)/(LN(($C$5-$E$5)/($D$5-$E$5))))/49.8328865456397)^vstupy!D129)*vstupy!D121*$I$5,0) -> 429 | E69: =ROUND((((($C$5-$D$5)/(LN(($C$5-$E$5)/($D$5-$E$5))))/49.8328865456397)^vstupy!E129)*vstupy!E121*$I$5,0) -> 596 | F69: =ROUND((((($C$5-$D$5)/(LN(($C$5-$E$5)/($D$5-$E$5))))/49.8328865456397)^vstupy!F129)*vstupy!F121*$I$5,0) -> 750 | G69: =ROUND((((($C$5-$D$5)/(LN(($C$5-$E$5)/($D$5-$E$5))))/49.8328865456397)^vstupy!G129)*vstupy!G121*$I$5,0) -> 934 | H69: =ROUND((((($C$5-$D$5)/(LN(($C$5-$E$5)/($D$5-$E$5))))/49.8328865456397)^vstupy!H129)*vstupy!H121*$I$5,0) -> 329 | I69: =ROUND((((($C$5-$D$5)/(LN(($C$5-$E$5)/($D$5-$E$5))))/49.8328865456397)^vstupy!I129)*vstupy!I121*$I$5,0) -> 429 | J69: =ROUND((((($C$5-$D$5)/(LN(($C$5-$E$5)/($D$5-$E$5))))/49.8328865456397)^vstupy!J129)*vstupy!J121*$I$5,0) -> 596 | K69: =ROUND((((($C$5-$D$5)/(LN(($C$5-$E$5)/($D$5-$E$5))))/49.8328865456397)^vstupy!K129)*vstupy!K121*$I$5,0) -> 750 | L69: =ROUND((((($C$5-$D$5)/(LN(($C$5-$E$5)/($D$5-$E$5))))/49.8328865456397)^vstupy!L129)*vstupy!L121*$I$5,0) -> 934 | M69: 600 | O69: 600 | P69: =ROUND((((($C$5-$D$5)/(LN(($C$5-$E$5)/($D$5-$E$5))))/49.8328865456397)^vstupy!P130)*vstupy!P121*$I$5,0) -> 372 | Q69: =ROUND((((($C$5-$D$5)/(LN(($C$5-$E$5)/($D$5-$E$5))))/49.8328865456397)^vstupy!Q130)*vstupy!Q121*$I$5,0) -> 482 | R69: =ROUND((((($C$5-$D$5)/(LN(($C$5-$E$5)/($D$5-$E$5))))/49.8328865456397)^vstupy!R130)*vstupy!R121*$I$5,0) -> 662 | S69: =ROUND((((($C$5-$D$5)/(LN(($C$5-$E$5)/($D$5-$E$5))))/49.8328865456397)^vstupy!S130)*vstupy!S121*$I$5,0) -> 820 | T69: =ROUND((((($C$5-$D$5)/(LN(($C$5-$E$5)/($D$5-$E$5))))/49.8328865456397)^vstupy!T130)*vstupy!T121*$I$5,0) -> 1003 | Z69: 600
B70: 750 | C70: =ROUND((((($C$5-$D$5)/(LN(($C$5-$E$5)/($D$5-$E$5))))/49.8328865456397)^vstupy!C130)*vstupy!C122*$I$5,0) -> 400 | D70: =ROUND((((($C$5-$D$5)/(LN(($C$5-$E$5)/($D$5-$E$5))))/49.8328865456397)^vstupy!D130)*vstupy!D122*$I$5,0) -> 522 | E70: =ROUND((((($C$5-$D$5)/(LN(($C$5-$E$5)/($D$5-$E$5))))/49.8328865456397)^vstupy!E130)*vstupy!E122*$I$5,0) -> 726 | F70: =ROUND((((($C$5-$D$5)/(LN(($C$5-$E$5)/($D$5-$E$5))))/49.8328865456397)^vstupy!F130)*vstupy!F122*$I$5,0) -> 913 | G70: =ROUND((((($C$5-$D$5)/(LN(($C$5-$E$5)/($D$5-$E$5))))/49.8328865456397)^vstupy!G130)*vstupy!G122*$I$5,0) -> 1138 | H70: =ROUND((((($C$5-$D$5)/(LN(($C$5-$E$5)/($D$5-$E$5))))/49.8328865456397)^vstupy!H130)*vstupy!H122*$I$5,0) -> 400 | I70: =ROUND((((($C$5-$D$5)/(LN(($C$5-$E$5)/($D$5-$E$5))))/49.8328865456397)^vstupy!I130)*vstupy!I122*$I$5,0) -> 522 | J70: =ROUND((((($C$5-$D$5)/(LN(($C$5-$E$5)/($D$5-$E$5))))/49.8328865456397)^vstupy!J130)*vstupy!J122*$I$5,0) -> 726 | K70: =ROUND((((($C$5-$D$5)/(LN(($C$5-$E$5)/($D$5-$E$5))))/49.8328865456397)^vstupy!K130)*vstupy!K122*$I$5,0) -> 913 | L70: =ROUND((((($C$5-$D$5)/(LN(($C$5-$E$5)/($D$5-$E$5))))/49.8328865456397)^vstupy!L130)*vstupy!L122*$I$5,0) -> 1138 | M70: 750 | O70: 750 | P70: =ROUND((((($C$5-$D$5)/(LN(($C$5-$E$5)/($D$5-$E$5))))/49.8328865456397)^vstupy!P130)*vstupy!P122*$I$5,0) -> 449 | Q70: =ROUND((((($C$5-$D$5)/(LN(($C$5-$E$5)/($D$5-$E$5))))/49.8328865456397)^vstupy!Q130)*vstupy!Q122*$I$5,0) -> 583 | R70: =ROUND((((($C$5-$D$5)/(LN(($C$5-$E$5)/($D$5-$E$5))))/49.8328865456397)^vstupy!R130)*vstupy!R122*$I$5,0) -> 799 | S70: =ROUND((((($C$5-$D$5)/(LN(($C$5-$E$5)/($D$5-$E$5))))/49.8328865456397)^vstupy!S130)*vstupy!S122*$I$5,0) -> 991 | T70: =ROUND((((($C$5-$D$5)/(LN(($C$5-$E$5)/($D$5-$E$5))))/49.8328865456397)^vstupy!T130)*vstupy!T122*$I$5,0) -> 1211 | Z70: 750
C72: KORALUX RONDO EXCLUSIVE - M | P72: KORALUX RONDO EXCLUSIVE - M
B73: Délka L | C73: Výška H [mm] | O73: Délka L | P73: Výška H [mm]
B74: [mm] | C74: 900 | D74: 1220 | E74: 1500 | F74: 1820 | O74: [mm] | P74: 900 | Q74: 1220 | R74: 1500 | S74: 1820
B75: 450 | C75: =ROUND((((($C$5-$D$5)/(LN(($C$5-$E$5)/($D$5-$E$5))))/49.8328865456397)^vstupy!C142)*vstupy!C135*$I$5,0) -> 249 | D75: =ROUND((((($C$5-$D$5)/(LN(($C$5-$E$5)/($D$5-$E$5))))/49.8328865456397)^vstupy!D142)*vstupy!D135*$I$5,0) -> 338 | E75: =ROUND((((($C$5-$D$5)/(LN(($C$5-$E$5)/($D$5-$E$5))))/49.8328865456397)^vstupy!E142)*vstupy!E135*$I$5,0) -> 419 | F75: =ROUND((((($C$5-$D$5)/(LN(($C$5-$E$5)/($D$5-$E$5))))/49.8328865456397)^vstupy!F142)*vstupy!F135*$I$5,0) -> 516 | O75: 450
B76: 600 | C76: =ROUND((((($C$5-$D$5)/(LN(($C$5-$E$5)/($D$5-$E$5))))/49.8328865456397)^vstupy!C143)*vstupy!C136*$I$5,0) -> 319 | D76: =ROUND((((($C$5-$D$5)/(LN(($C$5-$E$5)/($D$5-$E$5))))/49.8328865456397)^vstupy!D143)*vstupy!D136*$I$5,0) -> 433 | E76: =ROUND((((($C$5-$D$5)/(LN(($C$5-$E$5)/($D$5-$E$5))))/49.8328865456397)^vstupy!E143)*vstupy!E136*$I$5,0) -> 537 | F76: =ROUND((((($C$5-$D$5)/(LN(($C$5-$E$5)/($D$5-$E$5))))/49.8328865456397)^vstupy!F143)*vstupy!F136*$I$5,0) -> 662 | O76: 600
B77: 750 | C77: =ROUND((((($C$5-$D$5)/(LN(($C$5-$E$5)/($D$5-$E$5))))/49.8328865456397)^vstupy!C144)*vstupy!C137*$I$5,0) -> 387 | D77: =ROUND((((($C$5-$D$5)/(LN(($C$5-$E$5)/($D$5-$E$5))))/49.8328865456397)^vstupy!D144)*vstupy!D137*$I$5,0) -> 526 | E77: =ROUND((((($C$5-$D$5)/(LN(($C$5-$E$5)/($D$5-$E$5))))/49.8328865456397)^vstupy!E144)*vstupy!E137*$I$5,0) -> 652 | F77: =ROUND((((($C$5-$D$5)/(LN(($C$5-$E$5)/($D$5-$E$5))))/49.8328865456397)^vstupy!F144)*vstupy!F137*$I$5,0) -> 802 | O77: 750

Sheet vstupy (hidden)
C11: VÝKONY PRO ZAPOJENÍ ZDOLA DOLŮ | O11: VÝKONY PRO ÚHLOPŘÍČNÉ ZAPOJENÍ
C12: KORALUX LINEAR MAX | H12: KORALUX LINEAR MAX - M | P12: KORALUX LINEAR MAX | U12: KORALUX LINEAR MAX - M
B13: Délka L | C13: Výška H [mm] | H13: Výška H [mm] | M13: Délka L | O13: Délka L | P13: Výška H [mm] | U13: Výška H [mm] | Z13: Délka L
B14: [mm] | C14: 700 | D14: 900 | E14: 1220 | F14: 1500 | G14: 1820 | H14: 700 | I14: 900 | J14: 1220 | K14: 1500 | L14: 1820 | M14: [mm] | O14: [mm] | P14: 700 | Q14: 900 | R14: 1220 | S14: 1500 | T14: 1820 | U14: 700 | V14: 900 | W14: 1220 | X14: 1500 | Y14: 1820 | Z14: [mm]
B15: 450 | C15: 320 | D15: 411 | E15: 557 | F15: 686 | G15: 833 | H15: 320 | I15: 411 | J15: 557 | K15: 686 | L15: 833 | M15: 450 | O15: 450 | P15: 341 | Q15: 436 | R15: 592 | S15: 735 | T15: 906 | Z15: 450
B16: 600 | C16: 422 | D16: 543 | E16: 736 | F16: 906 | G16: 1101 | H16: 422 | I16: 543 | J16: 736 | K16: 906 | L16: 1101 | M16: 600 | O16: 600 | P16: 454 | Q16: 580 | R16: 789 | S16: 979 | T16: 1206 | Z16: 600
B17: 750 | C17: 524 | D17: 673 | E17: 913 | F17: 1124 | G17: 1367 | H17: 524 | I17: 673 | J17: 913 | K17: 1124 | L17: 1367 | M17: 750 | O17: 750 | P17: 567 | Q17: 725 | R17: 985 | S17: 1222 | T17: 1507 | Z17: 750
C19: KORALUX LINEAR MAX | H19: KORALUX LINEAR MAX - M | P19: KORALUX LINEAR MAX | U19: KORALUX LINEAR MAX - M
B20: Délka L | C20: Výška H [mm] | H20: Výška H [mm] | M20: Délka L | O20: Délka L | P20: Výška H [mm] | U20: Výška H [mm] | Z20: Délka L
B21: [mm] | C21: 700 | D21: 900 | E21: 1220 | F21: 1500 | G21: 1820 | H21: 700 | I21: 900 | J21: 1220 | K21: 1500 | L21: 1820 | M21: [mm] | O21: [mm] | P21: 700 | Q21: 900 | R21: 1220 | S21: 1500 | T21: 1820 | U21: 700 | V21: 900 | W21: 1220 | X21: 1500 | Y21: 1820 | Z21: [mm]
B22: 450 | C22: 1.2363 | D22: 1.2465 | E22: 1.2627 | F22: 1.2689 | G22: 1.276 | H22: 1.2363 | I22: 1.2465 | J22: 1.2627 | K22: 1.2689 | L22: 1.276 | M22: 450 | O22: 450 | P22: 1.2765 | Q22: 1.2816 | R22: 1.2896 | S22: 1.2967 | T22: 1.3048
B23: 600 | C23: 1.2476 | D23: 1.256 | E23: 1.2695 | F23: 1.2647 | G23: 1.2592 | H23: 1.2476 | I23: 1.256 | J23: 1.2695 | K23: 1.2647 | L23: 1.2592 | M23: 600 | O23: 600 | P23: 1.2651 | Q23: 1.2694 | R23: 1.2762 | S23: 1.2821 | T23: 1.289
B24: 750 | C24: 1.2588 | D24: 1.2655 | E24: 1.2762 | F24: 1.2604 | G24: 1.2424 | H24: 1.2588 | I24: 1.2655 | J24: 1.2762 | K24: 1.2604 | L24: 1.2424 | M24: 750 | O24: 750 | P24: 1.2537 | Q24: 1.2572 | R24: 1.2627 | S24: 1.2676 | T24: 1.2731 | Z24: 750
C26: KORALUX LINEAR COMFORT | H26: KORALUX LINEAR COMFORT - M | P26: KORALUX LINEAR COMFORT | U26: KORALUX LINEAR COMFORT - M
B27: Délka L | C27: Výška H [mm] | H27: Výška H [mm] | M27: Délka L | O27: Délka L | P27: Výška H [mm] | U27: Výška H [mm] | Z27: Délka L
B28: [mm] | C28: 700 | D28: 900 | E28: 1220 | F28: 1500 | G28: 1820 | H28: 700 | I28: 900 | J28: 1220 | K28: 1500 | L28: 1820 | M28: [mm] | O28: [mm] | P28: 700 | Q28: 900 | R28: 1220 | S28: 1500 | T28: 1820 | U28: 700 | V28: 900 | W28: 1220 | X28: 1500 | Y28: 1820 | Z28: [mm]
B29: 450 | C29: 287 | D29: 369 | E29: 504 | F29: 626 | G29: 772 | H29: 287 | I29: 369 | J29: 504 | K29: 626 | L29: 772 | M29: 450 | O29: 450 | P29: 312 | Q29: 402 | R29: 549 | S29: 682 | T29: 841 | Z29: 450
B30: 500 | C30: 315 | D30: 405 | E30: 553 | F30: 687 | G30: 848 | H30: 315 | I30: 405 | J30: 553 | K30: 687 | L30: 848 | M30: 500 | O30: 500 | P30: 342 | Q30: 440 | R30: 601 | S30: 747 | T30: 921 | Z30: 500
B31: 600 | C31: 370 | D31: 475 | E31: 650 | F31: 808 | G31: 996 | H31: 370 | I31: 475 | J31: 650 | K31: 808 | L31: 996 | M31: 600 | O31: 600 | P31: 400 | Q31: 515 | R31: 703 | S31: 874 | T31: 1078 | Z31: 600
B32: 750 | C32: 450 | D32: 579 | E32: 791 | F32: 984 | G32: 1213 | H32: 450 | I32: 579 | J32: 791 | K32: 984 | L32: 1213 | M32: 750 | O32: 750 | P32: 485 | Q32: 624 | R32: 852 | S32: 1060 | T32: 1307 | Z32: 750
C34: KORALUX LINEAR COMFORT | H34: KORALUX LINEAR COMFORT - M | P34: KORALUX LINEAR COMFORT | U34: KORALUX LINEAR COMFORT - M
B35: Délka L | C35: Výška H [mm] | H35: Výška H [mm] | M35: Délka L | O35: Délka L | P35: Výška H [mm] | U35: Výška H [mm] | Z35: Délka L
B36: [mm] | C36: 700 | D36: 900 | E36: 1220 | F36: 1500 | G36: 1820 | H36: 700 | I36: 900 | J36: 1220 | K36: 1500 | L36: 1820 | M36: [mm] | O36: [mm] | P36: 700 | Q36: 900 | R36: 1220 | S36: 1500 | T36: 1820 | U36: 700 | V36: 900 | W36: 1220 | X36: 1500 | Y36: 1820 | Z36: [mm]
B37: 450 | C37: 1.2452 | D37: 1.2489 | E37: 1.2549 | F37: 1.2589 | G37: 1.2634 | H37: 1.2452 | I37: 1.2489 | J37: 1.2549 | K37: 1.2589 | L37: 1.2634 | M37: 450 | O37: 450 | P37: 1.2638 | Q37: 1.2699 | R37: 1.2797 | S37: 1.2883 | T37: 1.2981 | Z37: 450
B38: 500 | C38: 1.2421 | D38: 1.2463 | E38: 1.2532 | F38: 1.2573 | G38: 1.2621 | H38: 1.2421 | I38: 1.2463 | J38: 1.2532 | K38: 1.2573 | L38: 1.2621 | M38: 500 | O38: 500 | P38: 1.2543 | Q38: 1.2621 | R38: 1.2744 | S38: 1.2853 | T38: 1.2976 | Z38: 500
B39: 600 | C39: 1.2358 | D39: 1.2412 | E39: 1.2499 | F39: 1.2543 | G39: 1.2594 | H39: 1.2358 | I39: 1.2412 | J39: 1.2499 | K39: 1.2543 | L39: 1.2594 | M39: 600 | O39: 600 | P39: 1.2354 | Q39: 1.2463 | R39: 1.2638 | S39: 1.2792 | T39: 1.2967 | Z39: 600
B40: 750 | C40: 1.2263 | D40: 1.2334 | E40: 1.2448 | F40: 1.2497 | G40: 1.2553 | H40: 1.2263 | I40: 1.2334 | J40: 1.2448 | K40: 1.2497 | L40: 1.2553 | M40: 750 | O40: 750 | P40: 1.2069 | Q40: 1.2227 | R40: 1.2479 | S40: 1.27 | T40: 1.2953 | Z40: 750
C42: KORALUX LINEAR CLASSIC | H42: KORALUX LINEAR CLASSIC - M | P42: KORALUX LINEAR CLASSIC | U42: KORALUX LINEAR CLASSIC - M
B43: Délka L | C43: Výška H [mm] | H43: Výška H [mm] | M43: Délka L | O43: Délka L | P43: Výška H [mm] | U43: Výška H [mm] | Z43: Délka L
B44: [mm] | C44: =logic!$L$4 -> Délka | D44: 900 | E44: 1220 | F44: 1500 | G44: 1820 | H44: 700 | I44: 900 | J44: 1220 | K44: 1500 | L44: 1820 | M44: [mm] | O44: [mm] | P44: 700 | Q44: 900 | R44: 1220 | S44: 1500 | T44: 1820 | U44: 700 | V44: 900 | W44: 1220 | X44: 1500 | Y44: 1820 | Z44: [mm]
B45: 450 | C45: =IF(logic!$D$99=1,C166,C202) -> 255 | D45: =IF(logic!$D$99=1,D166,D202) -> 333 | E45: =IF(logic!$D$99=1,E166,E202) -> 462 | F45: =IF(logic!$D$99=1,F166,F202) -> 581 | G45: =IF(logic!$D$99=1,G166,G202) -> 725 | H45: =IF(logic!$D$99=1,H166,H202) -> 255 | I45: =IF(logic!$D$99=1,I166,I202) -> 333 | J45: =IF(logic!$D$99=1,J166,J202) -> 462 | K45: =IF(logic!$D$99=1,K166,K202) -> 581 | L45: =IF(logic!$D$99=1,L166,L202) -> 725 | M45: 450 | O45: 450 | P45: 291 | Q45: 378 | R45: 519 | S45: 643 | T45: 786 | Z45: 450
B46: 500 | C46: =IF(logic!$D$99=1,C167,C203) -> 280 | D46: =IF(logic!$D$99=1,D167,D203) -> 365 | E46: =IF(logic!$D$99=1,E167,E203) -> 507 | F46: =IF(logic!$D$99=1,F167,F203) -> 638 | G46: =IF(logic!$D$99=1,G167,G203) -> 795 | H46: =IF(logic!$D$99=1,H167,H203) -> 280 | I46: =IF(logic!$D$99=1,I167,I203) -> 365 | J46: =IF(logic!$D$99=1,J167,J203) -> 507 | K46: =IF(logic!$D$99=1,K167,K203) -> 638 | L46: =IF(logic!$D$99=1,L167,L203) -> 795 | M46: 500 | O46: 500 | P46: 318 | Q46: 413 | R46: 567 | S46: 703 | T46: 859 | Z46: 500
B47: 600 | C47: =IF(logic!$D$99=1,C168,C204) -> 329 | D47: =IF(logic!$D$99=1,D168,D204) -> 429 | E47: =IF(logic!$D$99=1,E168,E204) -> 596 | F47: =IF(logic!$D$99=1,F168,F204) -> 750 | G47: =IF(logic!$D$99=1,G168,G204) -> 934 | H47: =IF(logic!$D$99=1,H168,H204) -> 329 | I47: =IF(logic!$D$99=1,I168,I204) -> 429 | J47: =IF(logic!$D$99=1,J168,J204) -> 596 | K47: =IF(logic!$D$99=1,K168,K204) -> 750 | L47: =IF(logic!$D$99=1,L168,L204) -> 934 | M47: 600 | O47: 600 | P47: 372 | Q47: 482 | R47: 662 | S47: 820 | T47: 1003 | Z47: 600
B48: 750 | C48: =IF(logic!$D$99=1,C169,C205) -> 400 | D48: =IF(logic!$D$99=1,D169,D205) -> 522 | E48: =IF(logic!$D$99=1,E169,E205) -> 726 | F48: =IF(logic!$D$99=1,F169,F205) -> 913 | G48: =IF(logic!$D$99=1,G169,G205) -> 1138 | H48: =IF(logic!$D$99=1,H169,H205) -> 400 | I48: =IF(logic!$D$99=1,I169,I205) -> 522 | J48: =IF(logic!$D$99=1,J169,J205) -> 726 | K48: =IF(logic!$D$99=1,K169,K205) -> 913 | L48: =IF(logic!$D$99=1,L169,L205) -> 1138 | M48: 750 | O48: 750 | P48: 449 | Q48: 583 | R48: 799 | S48: 991 | T48: 1211 | Z48: 750
C50: KORALUX LINEAR CLASSIC | H50: KORALUX LINEAR CLASSIC - M | P50: KORALUX LINEAR CLASSIC | U50: KORALUX LINEAR CLASSIC - M
B51: Délka L | C51: Výška H [mm] | H51: Výška H [mm] | M51: Délka L | O51: Délka L | P51: Výška H [mm] | U51: Výška H [mm] | Z51: Délka L
B52: [mm] | C52: 700 | D52: 900 | E52: 1220 | F52: 1500 | G52: 1820 | H52: 700 | I52: 900 | J52: 1220 | K52: 1500 | L52: 1820 | M52: [mm] | O52: [mm] | P52: 700 | Q52: 900 | R52: 1220 | S52: 1500 | T52: 1820 | U52: 700 | V52: 900 | W52: 1220 | X52: 1500 | Y52: 1820 | Z52: [mm]
B53: 450 | C53: =IF(logic!$D$99=1,C174,C210) -> 1.2226 | D53: =IF(logic!$D$99=1,D174,D210) -> 1.2358 | E53: =IF(logic!$D$99=1,E174,E210) -> 1.2568 | F53: =IF(logic!$D$99=1,F174,F210) -> 1.2521 | G53: =IF(logic!$D$99=1,G174,G210) -> 1.2421 | H53: =IF(logic!$D$99=1,H174,H210) -> 1.2226 | I53: =IF(logic!$D$99=1,I174,I210) -> 1.2358 | J53: =IF(logic!$D$99=1,J174,J210) -> 1.2568 | K53: =IF(logic!$D$99=1,K174,K210) -> 1.2521 | L53: =IF(logic!$D$99=1,L174,L210) -> 1.2421 | M53: 450 | O53: 450 | P53: 1.2765 | Q53: 1.2783 | R53: 1.2811 | S53: 1.2836 | T53: 1.2864 | Z53: 450
B54: 500 | C54: =IF(logic!$D$99=1,C175,C211) -> 1.2226 | D54: =IF(logic!$D$99=1,D175,D211) -> 1.2347 | E54: =IF(logic!$D$99=1,E175,E211) -> 1.254 | F54: =IF(logic!$D$99=1,F175,F211) -> 1.2483 | G54: =IF(logic!$D$99=1,G175,G211) -> 1.2393 | H54: =IF(logic!$D$99=1,H175,H211) -> 1.2226 | I54: =IF(logic!$D$99=1,I175,I211) -> 1.2347 | J54: =IF(logic!$D$99=1,J175,J211) -> 1.254 | K54: =IF(logic!$D$99=1,K175,K211) -> 1.2483 | L54: =IF(logic!$D$99=1,L175,L211) -> 1.2393 | M54: 500 | O54: 500 | P54: 1.2655 | Q54: 1.2691 | R54: 1.2749 | S54: 1.28 | T54: 1.2859 | Z54: 500
B55: 600 | C55: =IF(logic!$D$99=1,C176,C212) -> 1.2225 | D55: =IF(logic!$D$99=1,D176,D212) -> 1.2325 | E55: =IF(logic!$D$99=1,E176,E212) -> 1.2484 | F55: =IF(logic!$D$99=1,F176,F212) -> 1.2408 | G55: =IF(logic!$D$99=1,G176,G212) -> 1.2337 | H55: =IF(logic!$D$99=1,H176,H212) -> 1.2225 | I55: =IF(logic!$D$99=1,I176,I212) -> 1.2325 | J55: =IF(logic!$D$99=1,J176,J212) -> 1.2484 | K55: =IF(logic!$D$99=1,K176,K212) -> 1.2408 | L55: =IF(logic!$D$99=1,L176,L212) -> 1.2337 | M55: 600 | O55: 600 | P55: 1.2435 | Q55: 1.2509 | R55: 1.2627 | S55: 1.273 | T55: 1.2848 | Z55: 600
B56: 750 | C56: =IF(logic!$D$99=1,C177,C213) -> 1.2224 | D56: =IF(logic!$D$99=1,D177,D213) -> 1.2292 | E56: =IF(logic!$D$99=1,E177,E213) -> 1.24 | F56: =IF(logic!$D$99=1,F177,F213) -> 1.2294 | G56: =IF(logic!$D$99=1,G177,G213) -> 1.2252 | H56: =IF(logic!$D$99=1,H177,H213) -> 1.2224 | I56: =IF(logic!$D$99=1,I177,I213) -> 1.2292 | J56: =IF(logic!$D$99=1,J177,J213) -> 1.24 | K56: =IF(logic!$D$99=1,K177,K213) -> 1.2294 | L56: =IF(logic!$D$99=1,L177,L213) -> 1.2252 | M56: 750 | O56: 750 | P56: 1.2105 | Q56: 1.2235 | R56: 1.2442 | S56: 1.2624 | T56: 1.2831 | Z56: 750
C58: KORALUX STANDARD | P58: KORALUX STANDARD
B59: Délka L | C59: Výška H [mm] | O59: Délka L | P59: Výška H [mm]
B60: [mm] | C60: 700 | D60: 900 | E60: 1220 | F60: 1500 | O60: [mm] | P60: 700 | Q60: 900 | R60: 1220 | S60: 1500
B61: 400 | C61: 198 | D61: 254 | E61: 345 | F61: 427 | O61: 400 | P61: 213 | Q61: 275 | R61: 373 | S61: 458
B62: 500 | C62: 231 | D62: 297 | E62: 403 | F62: 499 | O62: 500 | P62: 249 | Q62: 322 | R62: 436 | S62: 536
B63: 600 | C63: 263 | D63: 337 | E63: 458 | F63: 567 | O63: 600 | P63: 283 | Q63: 365 | R63: 496 | S63: 609
C65: KORALUX STANDARD | P65: KORALUX STANDARD
B66: Délka L | C66: Výška H [mm] | O66: Délka L | P66: Výška H [mm]
B67: [mm] | C67: 700 | D67: 900 | E67: 1220 | F67: 1500 | O67: [mm] | P67: 700 | Q67: 900 | R67: 1220 | S67: 1500
B68: 400 | C68: 1.2347 | D68: 1.2153 | E68: 1.2274 | F68: 1.2423 | O68: 400 | P68: 1.2674 | Q68: 1.2365 | R68: 1.2274 | S68: 1.264
B69: 500 | C69: 1.2278 | D69: 1.2219 | E69: 1.2341 | F69: 1.2456 | O69: 500 | P69: 1.2616 | Q69: 1.2432 | R69: 1.2341 | S69: 1.2568
B70: 600 | C70: 1.2209 | D70: 1.2285 | E70: 1.2407 | F70: 1.2489 | O70: 600 | P70: 1.2557 | Q70: 1.2499 | R70: 1.2407 | S70: 1.2532
C72: KORALUX LINEAR EXCLUSIVE - M | P72: KORALUX LINEAR EXCLUSIVE - M
B73: Délka L | C73: Výška H [mm] | O73: Délka L | P73: Výška H [mm]
B74: [mm] | C74: 900 | D74: 1220 | E74: 1500 | F74: 1820 | O74: [mm] | P74: 900 | Q74: 1220 | R74: 1500 | S74: 1820
B75: 450 | C75: 249 | D75: 338 | E75: 419 | F75: 516 | O75: 450
B76: 600 | C76: 319 | D76: 433 | E76: 537 | F76: 662 | O76: 600
B77: 750 | C77: 387 | D77: 526 | E77: 652 | F77: 802 | O77: 750
C79: KORALUX LINEAR EXCLUSIVE - M | P79: KORALUX LINEAR EXCLUSIVE - M
B80: Délka L | C80: Výška H [mm] | O80: Délka L | P80: Výška H [mm]
B81: [mm] | C81: 900 | D81: 1220 | E81: 1500 | F81: 1820 | O81: [mm] | P81: 900 | Q81: 1220 | R81: 1500 | S81: 1820
B82: 450 | C82: 1.2519 | D82: 1.2769 | E82: 1.266 | F82: 1.2625 | O82: 450
B83: 600 | C83: 1.2522 | D83: 1.271 | E83: 1.2607 | F83: 1.2563 | O83: 600
B84: 750 | C84: 1.2526 | D84: 1.265 | E84: 1.2553 | F84: 1.25 | O84: 750
C86: KORALUX RONDO MAX | H86: KORALUX RONDO MAX - M | P86: KORALUX RONDO MAX | U86: KORALUX RONDO MAX - M
B87: Délka L | C87: Výška H [mm] | H87: Výška H [mm] | M87: Délka L | O87: Délka L | P87: Výška H [mm] | U87: Výška H [mm] | Z87: Délka L
B88: [mm] | C88: 700 | D88: 900 | E88: 1220 | F88: 1500 | G88: 1820 | H88: 700 | I88: 900 | J88: 1220 | K88: 1500 | L88: 1820 | M88: [mm] | O88: [mm] | P88: 700 | Q88: 900 | R88: 1220 | S88: 1500 | T88: 1820 | U88: 700 | V88: 900 | W88: 1220 | X88: 1500 | Y88: 1820 | Z88: [mm]
B89: 450 | C89: 335 | D89: 432 | E89: 589 | F89: 725 | G89: 879 | H89: 335 | I89: 432 | J89: 589 | K89: 725 | L89: 879 | M89: 450 | O89: 450 | P89: 361 | Q89: 462 | R89: 625 | S89: 771 | T89: 942 | Z89: 450
B90: 600 | C90: 444 | D90: 574 | E90: 781 | F90: 962 | G90: 1166 | H90: 444 | I90: 574 | J90: 781 | K90: 962 | L90: 1166 | M90: 600 | O90: 600 | P90: 480 | Q90: 614 | R90: 832 | S90: 1026 | T90: 1253 | Z90: 600
B91: 750 | C91: 553 | D91: 714 | E91: 973 | F91: 1197 | G91: 1452 | H91: 553 | I91: 714 | J91: 973 | K91: 1197 | L91: 1452 | M91: 750 | O91: 750 | P91: 599 | Q91: 767 | R91: 1038 | S91: 1280 | T91: 1564 | Z91: 750
C93: KORALUX RONDO MAX | H93: KORALUX RONDO MAX - M | P93: KORALUX RONDO MAX | U93: KORALUX RONDO MAX - M
B94: Délka L | C94: Výška H [mm] | H94: Výška H [mm] | M94: Délka L | O94: Délka L | P94: Výška H [mm] | U94: Výška H [mm] | Z94: Délka L
B95: [mm] | C95: 700 | D95: 900 | E95: 1220 | F95: 1500 | G95: 1820 | H95: 700 | I95: 900 | J95: 1220 | K95: 1500 | L95: 1820 | M95: [mm] | O95: [mm] | P95: 700 | Q95: 900 | R95: 1220 | S95: 1500 | T95: 1820 | U95: 700 | V95: 900 | W95: 1220 | X95: 1500 | Y95: 1820 | Z95: [mm]
B96: 450 | C96: 1.2322 | D96: 1.2336 | E96: 1.2357 | F96: 1.2376 | G96: 1.2398 | H96: 1.2322 | I96: 1.2336 | J96: 1.2357 | K96: 1.2376 | L96: 1.2398 | M96: 450 | O96: 450 | P96: 1.266 | Q96: 1.2674 | R96: 1.2697 | S96: 1.2717 | T96: 1.274 | Z96: 450
B97: 600 | C97: 1.2279 | D97: 1.2343 | E97: 1.2446 | F97: 1.2384 | G97: 1.2314 | H97: 1.2279 | I97: 1.2343 | J97: 1.2446 | K97: 1.2384 | L97: 1.2314 | M97: 600 | O97: 600 | P97: 1.2554 | Q97: 1.2568 | R97: 1.2591 | S97: 1.2611 | T97: 1.2634 | Z97: 600
B98: 750 | C98: 1.2235 | D98: 1.235 | E98: 1.2534 | F98: 1.2392 | G98: 1.2229 | H98: 1.2235 | I98: 1.235 | J98: 1.2534 | K98: 1.2392 | L98: 1.2229 | M98: 750 | O98: 750 | P98: 1.2448 | Q98: 1.2462 | R98: 1.2485 | S98: 1.2505 | T98: 1.2528 | Z98: 750
C100: KORALUX RONDO COMFORT | H100: KORALUX RONDO COMFORT - M | P100: KORALUX RONDO COMFORT | U100: KORALUX RONDO COMFORT - M
B101: Délka L | C101: Výška H [mm] | H101: Výška H [mm] | M101: Délka L | O101: Délka L | P101: Výška H [mm] | U101: Výška H [mm] | Z101: Délka L
B102: [mm] | C102: 700 | D102: 900 | E102: 1220 | F102: 1500 | G102: 1820 | H102: 700 | I102: 900 | J102: 1220 | K102: 1500 | L102: 1820 | M102: [mm] | O102: [mm] | P102: 700 | Q102: 900 | R102: 1220 | S102: 1500 | T102: 1820 | U102: 700 | V102: 900 | W102: 1220 | X102: 1500 | Y102: 1820 | Z102: [mm]
B103: 450 | C103: 287 | D103: 369 | E103: 504 | F103: 626 | G103: 772 | H103: 287 | I103: 369 | J103: 504 | K103: 626 | L103: 772 | M103: 450 | O103: 450 | P103: 312 | Q103: 402 | R103: 549 | S103: 682 | T103: 841 | Z103: 450
B104: 500 | C104: 315 | D104: 405 | E104: 553 | F104: 687 | G104: 848 | H104: 315 | I104: 405 | J104: 553 | K104: 687 | L104: 848 | M104: 500 | O104: 500 | P104: 342 | Q104: 440 | R104: 601 | S104: 747 | T104: 921 | Z104: 500
B105: 600 | C105: 370 | D105: 475 | E105: 650 | F105: 808 | G105: 996 | H105: 370 | I105: 475 | J105: 650 | K105: 808 | L105: 996 | M105: 600 | O105: 600 | P105: 400 | Q105: 515 | R105: 703 | S105: 874 | T105: 1078 | Z105: 600
B106: 750 | C106: 450 | D106: 579 | E106: 791 | F106: 984 | G106: 1213 | H106: 450 | I106: 579 | J106: 791 | K106: 984 | L106: 1213 | M106: 750 | O106: 750 | P106: 485 | Q106: 624 | R106: 852 | S106: 1060 | T106: 1307 | Z106: 750
C108: KORALUX RONDO COMFORT | H108: KORALUX RONDO COMFORT - M | P108: KORALUX RONDO COMFORT | U108: KORALUX RONDO COMFORT - M
B109: Délka L | C109: Výška H [mm] | H109: Výška H [mm] | M109: Délka L | O109: Délka L | P109: Výška H [mm] | U109: Výška H [mm] | Z109: Délka L
B110: [mm] | C110: 700 | D110: 900 | E110: 1220 | F110: 1500 | G110: 1820 | H110: 700 | I110: 900 | J110: 1220 | K110: 1500 | L110: 1820 | M110: [mm] | O110: [mm] | P110: 700 | Q110: 900 | R110: 1220 | S110: 1500 | T110: 1820 | U110: 700 | V110: 900 | W110: 1220 | X110: 1500 | Y110: 1820 | Z110: [mm]
B111: 450 | C111: 1.2452 | D111: 1.2489 | E111: 1.2549 | F111: 1.2589 | G111: 1.2634 | H111: 1.2452 | I111: 1.2489 | J111: 1.2549 | K111: 1.2589 | L111: 1.2634 | M111: 450 | O111: 450 | P111: 1.2638 | Q111: 1.2699 | R111: 1.2797 | S111: 1.2883 | T111: 1.2981 | Z111: 450
B112: 500 | C112: 1.2421 | D112: 1.2463 | E112: 1.2532 | F112: 1.2573 | G112: 1.2621 | H112: 1.2421 | I112: 1.2463 | J112: 1.2532 | K112: 1.2573 | L112: 1.2621 | M112: 500 | O112: 500 | P112: 1.2543 | Q112: 1.2621 | R112: 1.2744 | S112: 1.2853 | T112: 1.2976 | Z112: 500
B113: 600 | C113: 1.2358 | D113: 1.2412 | E113: 1.2499 | F113: 1.2543 | G113: 1.2594 | H113: 1.2358 | I113: 1.2412 | J113: 1.2499 | K113: 1.2543 | L113: 1.2594 | M113: 600 | O113: 600 | P113: 1.2354 | Q113: 1.2463 | R113: 1.2638 | S113: 1.2792 | T113: 1.2967 | Z113: 600
B114: 750 | C114: 1.2263 | D114: 1.2334 | E114: 1.2448 | F114: 1.2497 | G114: 1.2553 | H114: 1.2263 | I114: 1.2334 | J114: 1.2448 | K114: 1.2497 | L114: 1.2553 | M114: 750 | O114: 750 | P114: 1.2069 | Q114: 1.2227 | R114: 1.2479 | S114: 1.27 | T114: 1.2953 | Z114: 750
C116: KORALUX RONDO CLASSIC | H116: KORALUX RONDO CLASSIC - M | P116: KORALUX RONDO CLASSIC | U116: KORALUX RONDO CLASSIC - M
B117: Délka L | C117: Výška H [mm] | H117: Výška H [mm] | M117: Délka L | O117: Délka L | P117: Výška H [mm] | U117: Výška H [mm] | Z117: Délka L
B118: [mm] | C118: 700 | D118: 900 | E118: 1220 | F118: 1500 | G118: 1820 | H118: 700 | I118: 900 | J118: 1220 | K118: 1500 | L118: 1820 | M118: [mm] | O118: [mm] | P118: 700 | Q118: 900 | R118: 1220 | S118: 1500 | T118: 1820 | U118: 700 | V118: 900 | W118: 1220 | X118: 1500 | Y118: 1820 | Z118: [mm]
B119: 450 | C119: =IF(logic!$D$99=1,C182,C218) -> 255 | D119: =IF(logic!$D$99=1,D182,D218) -> 333 | E119: =IF(logic!$D$99=1,E182,E218) -> 462 | F119: =IF(logic!$D$99=1,F182,F218) -> 581 | G119: =IF(logic!$D$99=1,G182,G218) -> 725 | H119: =IF(logic!$D$99=1,H182,H218) -> 255 | I119: =IF(logic!$D$99=1,I182,I218) -> 333 | J119: =IF(logic!$D$99=1,J182,J218) -> 462 | K119: =IF(logic!$D$99=1,K182,K218) -> 581 | L119: =IF(logic!$D$99=1,L182,L218) -> 725 | M119: 450 | O119: 450 | P119: 291 | Q119: 378 | R119: 519 | S119: 643 | T119: 786 | Z119: 450
B120: 500 | C120: =IF(logic!$D$99=1,C183,C219) -> 280 | D120: =IF(logic!$D$99=1,D183,D219) -> 365 | E120: =IF(logic!$D$99=1,E183,E219) -> 507 | F120: =IF(logic!$D$99=1,F183,F219) -> 638 | G120: =IF(logic!$D$99=1,G183,G219) -> 795 | H120: =IF(logic!$D$99=1,H183,H219) -> 280 | I120: =IF(logic!$D$99=1,I183,I219) -> 365 | J120: =IF(logic!$D$99=1,J183,J219) -> 507 | K120: =IF(logic!$D$99=1,K183,K219) -> 638 | L120: =IF(logic!$D$99=1,L183,L219) -> 795 | M120: 500 | O120: 500 | P120: 318 | Q120: 413 | R120: 567 | S120: 703 | T120: 859 | Z120: 500
B121: 600 | C121: =IF(logic!$D$99=1,C184,C220) -> 329 | D121: =IF(logic!$D$99=1,D184,D220) -> 429 | E121: =IF(logic!$D$99=1,E184,E220) -> 596 | F121: =IF(logic!$D$99=1,F184,F220) -> 750 | G121: =IF(logic!$D$99=1,G184,G220) -> 934 | H121: =IF(logic!$D$99=1,H184,H220) -> 329 | I121: =IF(logic!$D$99=1,I184,I220) -> 429 | J121: =IF(logic!$D$99=1,J184,J220) -> 596 | K121: =IF(logic!$D$99=1,K184,K220) -> 750 | L121: =IF(logic!$D$99=1,L184,L220) -> 934 | M121: 600 | O121: 600 | P121: 372 | Q121: 482 | R121: 662 | S121: 820 | T121: 1003 | Z121: 600
B122: 750 | C122: =IF(logic!$D$99=1,C185,C221) -> 400 | D122: =IF(logic!$D$99=1,D185,D221) -> 522 | E122: =IF(logic!$D$99=1,E185,E221) -> 726 | F122: =IF(logic!$D$99=1,F185,F221) -> 913 | G122: =IF(logic!$D$99=1,G185,G221) -> 1138 | H122: =IF(logic!$D$99=1,H185,H221) -> 400 | I122: =IF(logic!$D$99=1,I185,I221) -> 522 | J122: =IF(logic!$D$99=1,J185,J221) -> 726 | K122: =IF(logic!$D$99=1,K185,K221) -> 913 | L122: =IF(logic!$D$99=1,L185,L221) -> 1138 | M122: 750 | O122: 750 | P122: 449 | Q122: 583 | R122: 799 | S122: 991 | T122: 1211 | Z122: 750
C124: KORALUX RONDO CLASSIC | H124: KORALUX RONDO CLASSIC - M | P124: KORALUX RONDO CLASSIC | U124: KORALUX RONDO CLASSIC - M
B125: Délka L | C125: Výška H [mm] | H125: Výška H [mm] | M125: Délka L | O125: Délka L | P125: Výška H [mm] | U125: Výška H [mm] | Z125: Délka L
B126: [mm] | C126: 700 | D126: 900 | E126: 1220 | F126: 1500 | G126: 1820 | H126: 700 | I126: 900 | J126: 1220 | K126: 1500 | L126: 1820 | M126: [mm] | O126: [mm] | P126: 700 | Q126: 900 | R126: 1220 | S126: 1500 | T126: 1820 | U126: 700 | V126: 900 | W126: 1220 | X126: 1500 | Y126: 1820 | Z126: [mm]
B127: 450 | C127: =IF(logic!$D$99=1,C190,C226) -> 1.2226 | D127: =IF(logic!$D$99=1,D190,D226) -> 1.2358 | E127: =IF(logic!$D$99=1,E190,E226) -> 1.2568 | F127: =IF(logic!$D$99=1,F190,F226) -> 1.2521 | G127: =IF(logic!$D$99=1,G190,G226) -> 1.2421 | H127: =IF(logic!$D$99=1,H190,H226) -> 1.2226 | I127: =IF(logic!$D$99=1,I190,I226) -> 1.2358 | J127: =IF(logic!$D$99=1,J190,J226) -> 1.2568 | K127: =IF(logic!$D$99=1,K190,K226) -> 1.2521 | L127: =IF(logic!$D$99=1,L190,L226) -> 1.2421 | M127: 450 | O127: 450 | P127: 1.2765 | Q127: 1.2783 | R127: 1.2811 | S127: 1.2836 | T127: 1.2864 | Z127: 450
B128: 500 | C128: =IF(logic!$D$99=1,C191,C227) -> 1.2226 | D128: =IF(logic!$D$99=1,D191,D227) -> 1.2347 | E128: =IF(logic!$D$99=1,E191,E227) -> 1.254 | F128: =IF(logic!$D$99=1,F191,F227) -> 1.2483 | G128: =IF(logic!$D$99=1,G191,G227) -> 1.2393 | H128: =IF(logic!$D$99=1,H191,H227) -> 1.2226 | I128: =IF(logic!$D$99=1,I191,I227) -> 1.2347 | J128: =IF(logic!$D$99=1,J191,J227) -> 1.254 | K128: =IF(logic!$D$99=1,K191,K227) -> 1.2483 | L128: =IF(logic!$D$99=1,L191,L227) -> 1.2393 | M128: 500 | O128: 500 | P128: 1.2655 | Q128: 1.2691 | R128: 1.2749 | S128: 1.28 | T128: 1.2859 | Z128: 500
B129: 600 | C129: =IF(logic!$D$99=1,C192,C228) -> 1.2225 | D129: =IF(logic!$D$99=1,D192,D228) -> 1.2325 | E129: =IF(logic!$D$99=1,E192,E228) -> 1.2484 | F129: =IF(logic!$D$99=1,F192,F228) -> 1.2408 | G129: =IF(logic!$D$99=1,G192,G228) -> 1.2337 | H129: =IF(logic!$D$99=1,H192,H228) -> 1.2225 | I129: =IF(logic!$D$99=1,I192,I228) -> 1.2325 | J129: =IF(logic!$D$99=1,J192,J228) -> 1.2484 | K129: =IF(logic!$D$99=1,K192,K228) -> 1.2408 | L129: =IF(logic!$D$99=1,L192,L228) -> 1.2337 | M129: 600 | O129: 600 | P129: 1.2435 | Q129: 1.2509 | R129: 1.2627 | S129: 1.273 | T129: 1.2848 | Z129: 600
B130: 750 | C130: =IF(logic!$D$99=1,C193,C229) -> 1.2224 | D130: =IF(logic!$D$99=1,D193,D229) -> 1.2292 | E130: =IF(logic!$D$99=1,E193,E229) -> 1.24 | F130: =IF(logic!$D$99=1,F193,F229) -> 1.2294 | G130: =IF(logic!$D$99=1,G193,G229) -> 1.2252 | H130: =IF(logic!$D$99=1,H193,H229) -> 1.2224 | I130: =IF(logic!$D$99=1,I193,I229) -> 1.2292 | J130: =IF(logic!$D$99=1,J193,J229) -> 1.24 | K130: =IF(logic!$D$99=1,K193,K229) -> 1.2294 | L130: =IF(logic!$D$99=1,L193,L229) -> 1.2252 | M130: 750 | O130: 750 | P130: 1.2105 | Q130: 1.2235 | R130: 1.2442 | S130: 1.2624 | T130: 1.2831 | Z130: 750
C132: KORALUX RONDO EXCLUSIVE - M | P132: KORALUX RONDO EXCLUSIVE - M
B133: Délka L | C133: Výška H [mm] | O133: Délka L | P133: Výška H [mm]
B134: [mm] | C134: 900 | D134: 1220 | E134: 1500 | F134: 1820 | O134: [mm] | P134: 900 | Q134: 1220 | R134: 1500 | S134: 1820
B135: 450 | C135: 249 | D135: 338 | E135: 419 | F135: 516 | O135: 450
B136: 600 | C136: 319 | D136: 433 | E136: 537 | F136: 662 | O136: 600
B137: 750 | C137: 387 | D137: 526 | E137: 652 | F137: 802 | O137: 750
C139: KORALUX RONDO EXCLUSIVE - M | P139: KORALUX RONDO EXCLUSIVE - M
B140: Délka L | C140: Výška H [mm] | O140: Délka L | P140: Výška H [mm]
B141: [mm] | C141: 900 | D141: 1220 | E141: 1500 | F141: 1820 | O141: [mm] | P141: 900 | Q141: 1220 | R141: 1500 | S141: 1820
B142: 450 | C142: 1.2519 | D142: 1.2769 | E142: 1.266 | F142: 1.2625 | O142: 450
B143: 600 | C143: 1.2522 | D143: 1.271 | E143: 1.2607 | F143: 1.2563 | O143: 600
B144: 750 | C144: 1.2526 | D144: 1.265 | E144: 1.2553 | F144: 1.25 | O144: 750
A161: české
C163: KORALUX LINEAR CLASSIC | H163: KORALUX LINEAR CLASSIC - M
B164: Délka L | C164: Výška H [mm] | H164: Výška H [mm] | M164: Délka L
B165: [mm] | C165: Délka | D165: 900 | E165: 1220 | F165: 1500 | G165: 1820 | H165: 700 | I165: 900 | J165: 1220 | K165: 1500 | L165: 1820 | M165: [mm]
B166: 450 | C166: 267 | D166: 348 | E166: 479 | F166: 597 | G166: 735 | H166: 267 | I166: 348 | J166: 479 | K166: 597 | L166: 735 | M166: 450
B167: 500 | C167: 292 | D167: 380 | E167: 523 | F167: 652 | G167: 803 | H167: 292 | I167: 380 | J167: 523 | K167: 652 | L167: 803 | M167: 500
B168: 600 | C168: 341 | D168: 443 | E168: 611 | F168: 761 | G168: 937 | H168: 341 | I168: 443 | J168: 611 | K168: 761 | L168: 937 | M168: 600
B169: 750 | C169: 412 | D169: 535 | E169: 737 | F169: 919 | G169: 1131 | H169: 412 | I169: 535 | J169: 737 | K169: 919 | L169: 1131 | M169: 750
C171: KORALUX LINEAR CLASSIC | H171: KORALUX LINEAR CLASSIC - M
B172: Délka L | C172: Výška H [mm] | H172: Výška H [mm] | M172: Délka L
B173: [mm] | C173: 700 | D173: 900 | E173: 1220 | F173: 1500 | G173: 1820 | H173: 700 | I173: 900 | J173: 1220 | K173: 1500 | L173: 1820 | M173: [mm]
B174: 450 | C174: 1.2309 | D174: 1.2392 | E174: 1.2524 | F174: 1.2514 | G174: 1.2503 | H174: 1.2309 | I174: 1.2392 | J174: 1.2524 | K174: 1.2514 | L174: 1.2503 | M174: 450
B175: 500 | C175: 1.2293 | D175: 1.2374 | E175: 1.2505 | F175: 1.2501 | G175: 1.2496 | H175: 1.2293 | I175: 1.2374 | J175: 1.2505 | K175: 1.2501 | L175: 1.2496 | M175: 500
B176: 600 | C176: 1.226 | D176: 1.234 | E176: 1.2468 | F176: 1.2474 | G176: 1.2481 | H176: 1.226 | I176: 1.234 | J176: 1.2468 | K176: 1.2474 | L176: 1.2481 | M176: 600
B177: 750 | C177: 1.2211 | D177: 1.2288 | E177: 1.2412 | F177: 1.2433 | G177: 1.2458 | H177: 1.2211 | I177: 1.2288 | J177: 1.2412 | K177: 1.2433 | L177: 1.2458 | M177: 750
C179: KORALUX RONDO CLASSIC | H179: KORALUX RONDO CLASSIC - M
B180: Délka L | C180: Výška H [mm] | H180: Výška H [mm] | M180: Délka L
B181: [mm] | C181: 700 | D181: 900 | E181: 1220 | F181: 1500 | G181: 1820 | H181: 700 | I181: 900 | J181: 1220 | K181: 1500 | L181: 1820 | M181: [mm]
B182: 450 | C182: 267 | D182: 348 | E182: 479 | F182: 597 | G182: 735 | H182: 267 | I182: 348 | J182: 479 | K182: 597 | L182: 735 | M182: 450
B183: 500 | C183: 292 | D183: 380 | E183: 523 | F183: 652 | G183: 803 | H183: 292 | I183: 380 | J183: 523 | K183: 652 | L183: 803 | M183: 500
B184: 600 | C184: 341 | D184: 443 | E184: 611 | F184: 761 | G184: 937 | H184: 341 | I184: 443 | J184: 611 | K184: 761 | L184: 937 | M184: 600
B185: 750 | C185: 412 | D185: 535 | E185: 737 | F185: 919 | G185: 1131 | H185: 412 | I185: 535 | J185: 737 | K185: 919 | L185: 1131 | M185: 750
C187: KORALUX RONDO CLASSIC | H187: KORALUX RONDO CLASSIC - M
B188: Délka L | C188: Výška H [mm] | H188: Výška H [mm] | M188: Délka L
B189: [mm] | C189: 700 | D189: 900 | E189: 1220 | F189: 1500 | G189: 1820 | H189: 700 | I189: 900 | J189: 1220 | K189: 1500 | L189: 1820 | M189: [mm]
B190: 450 | C190: 1.2309 | D190: 1.2392 | E190: 1.2524 | F190: 1.2514 | G190: 1.2503 | H190: 1.2309 | I190: 1.2392 | J190: 1.2524 | K190: 1.2514 | L190: 1.2503 | M190: 450
B191: 500 | C191: 1.2293 | D191: 1.2374 | E191: 1.2505 | F191: 1.2501 | G191: 1.2496 | H191: 1.2293 | I191: 1.2374 | J191: 1.2505 | K191: 1.2501 | L191: 1.2496 | M191: 500
B192: 600 | C192: 1.226 | D192: 1.234 | E192: 1.2468 | F192: 1.2474 | G192: 1.2481 | H192: 1.226 | I192: 1.234 | J192: 1.2468 | K192: 1.2474 | L192: 1.2481 | M192: 600
B193: 750 | C193: 1.2211 | D193: 1.2288 | E193: 1.2412 | F193: 1.2433 | G193: 1.2458 | H193: 1.2211 | I193: 1.2288 | J193: 1.2412 | K193: 1.2433 | L193: 1.2458 | M193: 750
A197: NF
C199: KORALUX LINEAR CLASSIC | H199: KORALUX LINEAR CLASSIC - M
B200: Délka L | C200: Výška H [mm] | H200: Výška H [mm] | M200: Délka L
B201: [mm] | C201: 700 | D201: 900 | E201: 1220 | F201: 1500 | G201: 1820 | H201: 700 | I201: 900 | J201: 1220 | K201: 1500 | L201: 1820 | M201: [mm]
B202: 450 | C202: 255 | D202: 333 | E202: 462 | F202: 581 | G202: 725 | H202: 255 | I202: 333 | J202: 462 | K202: 581 | L202: 725 | M202: 450
B203: 500 | C203: 280 | D203: 365 | E203: 507 | F203: 638 | G203: 795 | H203: 280 | I203: 365 | J203: 507 | K203: 638 | L203: 795 | M203: 500
B204: 600 | C204: 329 | D204: 429 | E204: 596 | F204: 750 | G204: 934 | H204: 329 | I204: 429 | J204: 596 | K204: 750 | L204: 934 | M204: 600
B205: 750 | C205: 400 | D205: 522 | E205: 726 | F205: 913 | G205: 1138 | H205: 400 | I205: 522 | J205: 726 | K205: 913 | L205: 1138 | M205: 750
C207: KORALUX LINEAR CLASSIC | H207: KORALUX LINEAR CLASSIC - M
B208: Délka L | C208: Výška H [mm] | H208: Výška H [mm] | M208: Délka L
B209: [mm] | C209: 700 | D209: 900 | E209: 1220 | F209: 1500 | G209: 1820 | H209: 700 | I209: 900 | J209: 1220 | K209: 1500 | L209: 1820 | M209: [mm]
B210: 450 | C210: 1.2226 | D210: 1.2358 | E210: 1.2568 | F210: 1.2521 | G210: 1.2421 | H210: 1.2226 | I210: 1.2358 | J210: 1.2568 | K210: 1.2521 | L210: 1.2421 | M210: 450
B211: 500 | C211: 1.2226 | D211: 1.2347 | E211: 1.254 | F211: 1.2483 | G211: 1.2393 | H211: 1.2226 | I211: 1.2347 | J211: 1.254 | K211: 1.2483 | L211: 1.2393 | M211: 500
B212: 600 | C212: 1.2225 | D212: 1.2325 | E212: 1.2484 | F212: 1.2408 | G212: 1.2337 | H212: 1.2225 | I212: 1.2325 | J212: 1.2484 | K212: 1.2408 | L212: 1.2337 | M212: 600
B213: 750 | C213: 1.2224 | D213: 1.2292 | E213: 1.24 | F213: 1.2294 | G213: 1.2252 | H213: 1.2224 | I213: 1.2292 | J213: 1.24 | K213: 1.2294 | L213: 1.2252 | M213: 750
C215: KORALUX RONDO CLASSIC | H215: KORALUX RONDO CLASSIC - M
B216: Délka L | C216: Výška H [mm] | H216: Výška H [mm] | M216: Délka L
B217: [mm] | C217: 700 | D217: 900 | E217: 1220 | F217: 1500 | G217: 1820 | H217: 700 | I217: 900 | J217: 1220 | K217: 1500 | L217: 1820 | M217: [mm]
B218: 450 | C218: 255 | D218: 333 | E218: 462 | F218: 581 | G218: 725 | H218: 255 | I218: 333 | J218: 462 | K218: 581 | L218: 725 | M218: 450
B219: 500 | C219: 280 | D219: 365 | E219: 507 | F219: 638 | G219: 795 | H219: 280 | I219: 365 | J219: 507 | K219: 638 | L219: 795 | M219: 500
B220: 600 | C220: 329 | D220: 429 | E220: 596 | F220: 750 | G220: 934 | H220: 329 | I220: 429 | J220: 596 | K220: 750 | L220: 934 | M220: 600
B221: 750 | C221: 400 | D221: 522 | E221: 726 | F221: 913 | G221: 1138 | H221: 400 | I221: 522 | J221: 726 | K221: 913 | L221: 1138 | M221: 750
C223: KORALUX RONDO CLASSIC | H223: KORALUX RONDO CLASSIC - M
B224: Délka L | C224: Výška H [mm] | H224: Výška H [mm] | M224: Délka L
B225: [mm] | C225: 700 | D225: 900 | E225: 1220 | F225: 1500 | G225: 1820 | H225: 700 | I225: 900 | J225: 1220 | K225: 1500 | L225: 1820 | M225: [mm]
B226: 450 | C226: 1.2226 | D226: 1.2358 | E226: 1.2568 | F226: 1.2521 | G226: 1.2421 | H226: 1.2226 | I226: 1.2358 | J226: 1.2568 | K226: 1.2521 | L226: 1.2421 | M226: 450
B227: 500 | C227: 1.2226 | D227: 1.2347 | E227: 1.254 | F227: 1.2483 | G227: 1.2393 | H227: 1.2226 | I227: 1.2347 | J227: 1.254 | K227: 1.2483 | L227: 1.2393 | M227: 500
B228: 600 | C228: 1.2225 | D228: 1.2325 | E228: 1.2484 | F228: 1.2408 | G228: 1.2337 | H228: 1.2225 | I228: 1.2325 | J228: 1.2484 | K228: 1.2408 | L228: 1.2337 | M228: 600
B229: 750 | C229: 1.2224 | D229: 1.2292 | E229: 1.24 | F229: 1.2294 | G229: 1.2252 | H229: 1.2224 | I229: 1.2292 | J229: 1.24 | K229: 1.2294 | L229: 1.2252 | M229: 750

Sheet logic (hidden)
A1: heslojeheslo
G2: Popisky - úvodní strana | U2: lblZpusobPripojeniPopis
A3: Délka od | G3: 1 | H3: =G3+1 -> 2 | I3: =H3+1 -> 3 | J3: 4 | K3: 5 | L3: 6 | M3: 7 | N3: 8 | O3: 9 | P3: 10 | Q3: 11 | R3: 12 | S3: 13 | T3: 14 | U3: 15 | V3: 16 | W3: =V3+1 -> 17 | X3: =W3+1 -> 18 | Y3: 19 | Z3: =Y3+1 -> 20 | AA3: =Z3+1 -> 21 | AB3: =AA3+1 -> 22 | AC3: =AB3+1 -> 23 | AD3: =AC3+1 -> 24 | AE3: =AD3+1 -> 25
A4: 1 | B4: =VLOOKUP(A4,A5:B11,2,FALSE) -> vše | G4: 1 | H4: =VLOOKUP($G4,$G5:H19,H3,FALSE) -> Česky | I4: =VLOOKUP($G4,$G5:I19,I3) -> vše | J4: =VLOOKUP($G4,$G5:J19,J3) -> Tepelné výkony podle EN 442 | K4: =VLOOKUP($G4,$G5:K19,K3) -> Výška | L4: =VLOOKUP($G4,$G5:L19,L3) -> Délka | M4: =VLOOKUP($G4,$G5:M19,M3) -> od | N4: =VLOOKUP($G4,$G5:N19,N3) -> do | O4: =VLOOKUP($G4,$G5:O19,O3) -> Tepelný výkon | P4: =VLOOKUP($G4,$G5:P19,P3) -> Teplota: | Q4: =VLOOKUP($G4,$G5:Q19,Q3) -> Chybný teplotní spád !!! | R4: =VLOOKUP($G4,$G5:R19,R3) -> Detailní výběr | S4: =VLOOKUP($G4,$G5:S19,S3) -> Zadání hodnot | T4: =VLOOKUP($G4,$G5:T19,T3) -> Chybně zadané hodnoty !!! | U4: =VLOOKUP($G4,$G5:U19,U3) -> Způsob připojení | V4: =VLOOKUP($G4,$G5:V19,V3) -> Technické změny vyhrazeny. | W4: =VLOOKUP($G4,$G5:W19,W3) -> Uvedené výkony jsou platné pouze pro zemi: | X4: =VLOOKUP($G4,$G5:X19,X3) -> Česká republika. | Y4: =VLOOKUP($G4,$G5:Y19,Y3) -> Jednotka výkonu: | Z4: =VLOOKUP($G4,$G5:Z19,Z3) -> spodní zdola dolů | AA4: =VLOOKUP($G4,$G5:AA19,AA3) -> úhlopříčné shora | AB4: =VLOOKUP($G4,$G5:AB19,AB3) -> Provedení | AC4: =VLOOKUP($G4,$G5:AC19,AC3) -> Povrchová úprava | AD4: =VLOOKUP($G4,$G5:AD19,AD3) -> BARVA | AE4: =VLOOKUP($G4,$G5:AE19,AE3) -> CHROM
A5: 1 | B5: =$I$4 -> vše | G5: 1 | H5: Česky | I5: vše | J5: Tepelné výkony podle EN 442 | K5: Výška | L5: Délka | M5: od | N5: do | O5: Tepelný výkon | P5: Teplota: | Q5: Chybný teplotní spád !!! | R5: Detailní výběr | S5: Zadání hodnot | T5: Chybně zadané hodnoty !!! | U5: Způsob připojení | V5: Technické změny vyhrazeny. | W5: Uvedené výkony jsou platné pouze pro zemi: | X5: Česká republika. | Y5: Jednotka výkonu: | Z5: spodní zdola dolů | AA5: úhlopříčné shora | AB5: Provedení | AC5: Povrchová úprava | AD5: BARVA | AE5: CHROM
A6: 2 | B6: 400 | G6: 2 | H6: Anglicky | I6: all | J6: Heat outputs according to EN 442 | K6: Height | L6: Length | M6: from | N6: up to | O6: Heat output | P6: Temperature: | Q6: Wrong temperature gradient !!! | R6: Detailed selection | S6: Select conditions | T6: Wrong values input !!! | U6: Type of connection | V6: Technical changes reserved. | W6: The quoted outputs are valid only for the country: | X6: Chile. | Y6: Heat units: | Z6: bottom connection | AA6: double-sided from the top down | AB6: Version | AC6: Surface finish | AD6: COLOUR | AE6: CHROME
A7: 3 | B7: 450 | G7: 3 | H7: Německy | I7: alles | J7: Wärmeleistungen nach EN 442 | K7: Bauhöhe | L7: Baulänge | M7: von | N7: bis | O7: Wärmeleistungen | P7: Temperatur: | Q7: Falscher Temperaturgradient | R7: Detailauswahl | S7: Auswahlkriterien | T7: Falsche Dateneingabe !!! | U7: Anschlussart an das Heizsystem | V7: Technische Änderungen vorbehalten. | W7: Die angegebenen Leistungen sind gültig nur für das Land: | X7: Deutschland. | Z7: unten zweiseitig | AA7: beidseitig von oben nach unten | AB7: Ausführung | AC7: Oberflächenbehandlung | AD7: FARBE | AE7: CHROM
A8: 4 | B8: 500 | G8: 4 | H8: Rusky | I8: всё | J8: Тепловые мощности согл. EN 442 | K8: Высота | L8: Длина | M8: от | N8: до | O8: Тепловая мощность | P8: Температура | Q8: Неправильный перепад температуры | R8: Тип радиатора | S8: Параметры | T8: Неправильно заданые значения!!! | U8: Способ подключения | V8: Призводитель оставляет за собой право на изменения. | W8: Данные действительны только для | X8: России. | Z8: нижнее снизу вниз | AA8: двустороннее сверху вниз | AB8: Исполнение | AC8: Oтделка поверности | AD8: ЦВЕТ | AE8: ХРОМ
A9: 5 | B9: 600 | G9: 5 | H9: Polsky | I9: wszystko | J9: Wydajność cieplna wedlug EN 442 | K9: Wysokość | L9: Długość | M9: od | N9: do | O9: Wydajność cieplna | P9: Temperatura: | Q9: Błędny spadek cieplny !!! | R9: Wybór detaliczny | S9: Zadanie wartości | T9: Błędne zadanie wartości !!! | U9: Sposób podłączenia | V9: Zmiany techniczne zastrzeżone. | W9: Wprowadzene moce są platne tylko dla kraje: | X9: Polska. | Z9: dolne z dołu w dół | AA9: dwustronne z góry na dół | AB9: Wykonanie | AC9: Wykończenie powierzchni
A10: 6 | B10: 750 | G10: 6 | H10: Francouzsky | I10: tout | J10: Puissances thermiques selon EN 442 | K10: Hauteur | L10: Longueur | M10: de | N10: à | O10: Puissance thermique | P10: Température: | Q10: Fausse cadence de température | R10: Choix en détail | S10: Introduction des valeurs | T10: Valeurs mal introduites | U10: Mode de raccordement | V10: Tous droits de modification technique réservés. | W10: Puissance dénommées sont valables pour le pays : | X10: France. | Y10: Unité de puissance : | Z10: inférieur, du bes vers le bas | AA10: bilatéral de haut | AB10: Réalisation | AC10: Traitement de la surface | AD10: COULEUR | AE10: CHROME
A11: 7 | G11: 7 | H11: Maďarsky | I11: mind | J11: Hőteljesítmény az EN 442 szerint | K11: Magasság | L11: Hossz | N11: -tól | O11: Hőteljesítmény | P11: Hőmérséklet: | Q11: Hibás hőmérséklet csökkenés !!! | R11: Részletes kiválasztás | S11: Értékek megadása | T11: Hibásan megadott értékek !!! | V11: Műszaki adatok megváltoztatásának joga fenntartva. | W11: A feltüntetett teljesítmények csak a következő országra érvényesek: | X11: HU | AB11: Termékcsaládok | AC11: Felületkezelés
G12: 8 | H12: Švédsky | I12: alla | J12: Värmeavgivning enligt EN 442 | K12: Höjd | L12: Längd | M12: från | N12: till | O12: Värmeavgivning | P12: Temperatur: | Q12: Fel temperaturfall !!! | R12: Detaljerat urval | S12: välj temperaturfall | T12: Fel värde inskrivet !!! | U12: Typ av anslutning | V12: Med reservation för tekniska förändringar. | W12: Nämnda effekter är giltiga endast i landet: | X12: Sverige. | Y12: Värme enhet | Z12: Anslutning botten | AA12: Dubbelsidig från topp och ner | AB12: Version | AC12: Ytfinish | AD12: Färg | AE12: Krom
A13: Délka do | G13: 9 | H13: Rumunsky | I13: toate | J13: Puteri termice conform EN442 | K13: Înălţime | L13: Lungime | M13: de la | N13: până la | O13: Putere termică | P13: Temperatură: | Q13: Gradient de temperatură greşit !!! | R13: Căutare avansată | S13: Selectaţi condiţiile | T13: Parametrii greşiţi de intrare | V13: Producătorul îşi rezervă dreptul de a efectua modificări tehnice | W13: Puterile termice menţionate sunt valabile pentru: | X13: România. | AB13: Versiune | AC13: Finisajul suprafeţei
A14: 1 | B14: =VLOOKUP(A14,A15:B21,2,FALSE) -> vše | G14: 10 | H14: Bulharsky | I14: всички | J14: Топлинни мощности според ЕН 442 | K14: Височина | L14: Дължина | M14: от | N14: до | O14: Топлинна мощност | P14: Температура: | Q14: Грешно температурно спадане !!! | R14: Детайлен избор | S14: Въвеждане на стойности | T14: Грешно въведени стойности !!! | U14: Начин на свързване | V14: Право на технически промени. | W14: Посочените мощности са валидни само за държава: | X14: България. | Y14: Мярна единица за мощност: | Z14: долно отдолу долу | AA14: двустранно отгоре долу | AB14: Изпълнение | AC14: Повърхностно покритие | AD14: ЦВЯТ | AE14: ХРОМ
A15: 1 | B15: =$I$4 -> vše | G15: 11 | H15: Holandsky | I15: alles | J15: Warmteafgiftes volgens EN 442 | K15: Hoogte | L15: Lengte | M15: van | N15: tot | O15: Warmteafgifte | P15: Temperatuur: | Q15: Verkeerde temperatuur verhouding !!! | R15: Gedetailleerde selectie | S15: Ingeven van waarden | T15: Waarden foutief ingegeven !!! | U15: Type aansluiting | V15: Het recht blijft behouden op technische wijzigingen. | W15: De weergegeven vermogens zijn geldig in volgende landen: | X15: België / Nederland | Y15: Eenheid van vermogen: | Z15: onderaansluiting | AA15: dubbelzijdig van bovenaan | AB15: Versie | AC15: Afwerkingslaag | AD15: KLEUR | AE15: CHROOM
A16: 2 | B16: 400 | G16: 12 | H16: Norsky | I16: alle | J16: Effekt avgivelse iht EN442 | K16: Høyde | L16: Lengde | M16: fra | N16: til | O16: Effekt avgivelse | P16: Temperatur : | Q16: Feil temperatur fall !!! | R16: Detaljert valg | S16: velg temperaturfall | T16: Feil verdi innskrevet !!! | U16: Type anslutning | V16: Med reservasjon for tekniske endringer. | W16: Nevnte effekter er gyldig bare i Norge. | X16: Norge. | Y16: Varme enhet | Z16: Anslutning fra bunnen | AA16: Dobbelsidig fra topp og ned | AB16: versjon | AD16: Farge | AE16: Krom
A17: 3 | B17: 450 | G17: 13
A18: 4 | B18: 500 | G18: 14
A19: 5 | B19: 600 | G19: 15
A20: 6 | B20: 750
A21: 7
G22: Popisky - databáze | I22: lblPridatdoDB | K22: cmdOK | M22: lblZobrazitDatabazi | N22: lblZpet | O22: lblExportDatabaze
A23: Výška od | G23: =G3 -> 1 | H23: =G23+1 -> 2 | I23: =H23+1 -> 3 | J23: 4 | K23: 5 | L23: 6 | M23: 7 | N23: 8 | O23: 9 | P23: 10 | Q23: 11 | R23: 12 | S23: 13 | T23: 14 | U23: 15 | V23: 16 | W23: =V23+1 -> 17 | X23: =W23+1 -> 18 | Y23: =X23+1 -> 19 | Z23: =Y23+1 -> 20 | AA23: =Z23+1 -> 21 | AB23: =AA23+1 -> 22 | AC23: =AB23+1 -> 23 | AD23: =AC23+1 -> 24 | AE23: =AD23+1 -> 25 | AF23: =AE23+1 -> 26 | AG23: =AF23+1 -> 27 | AH23: =AG23+1 -> 28
A24: 1 | B24: =VLOOKUP(A24,A25:B31,2,FALSE) -> vše | G24: =$G$4 -> 1 | H24: =VLOOKUP($G24,$G25:H39,H23) -> Česky | I24: =VLOOKUP($G24,$G25:I39,I23) -> Přidat do databáze | J24: =VLOOKUP($G24,$G25:J39,J23) -> Mám opravdu smazat databázi? | K24: =VLOOKUP($G24,$G25:K39,K23) -> OK | L24: =VLOOKUP($G24,$G25:L39,L23) -> Počet záznamů v databázi: | M24: =VLOOKUP($G24,$G25:M39,M23) -> Zobrazit databázi | N24: =VLOOKUP($G24,$G25:N39,N23) -> Zpět na výběr | O24: =VLOOKUP($G24,$G25:O39,O23) -> Export databáze | P24: =VLOOKUP($G24,$G25:P39,P23) -> Cena (Kč) | Q24: =VLOOKUP($G24,$G25:Q39,Q23) -> Číslo | R24: =VLOOKUP($G24,$G25:R39,R23) -> Model | S24: =VLOOKUP($G24,$G25:S39,S23) -> Objednací číslo | T24: =VLOOKUP($G24,$G25:T39,T23) -> Typ | U24: =VLOOKUP($G24,$G25:U39,U23) -> Výška [mm] | V24: =VLOOKUP($G24,$G25:V39,V23) -> Délka [mm] | W24: =VLOOKUP($G24,$G25:W39,W23) -> t1 | X24: =VLOOKUP($G24,$G25:X39,X23) -> t2 | Y24: =VLOOKUP($G24,$G25:Y39,Y23) -> ti | Z24: =VLOOKUP($G24,$G25:Z39,Z23) -> Tepelný výkon | AA24: =VLOOKUP($G24,$G25:AA39,AA23) -> Poznámka | AB24: =VLOOKUP($G24,$G25:AB39,AB23) -> Identifikace: | AC24: =VLOOKUP($G24,$G25:AC39,AC23) -> Vybraná oblast neobsahuje správná data!!! | AD24: =VLOOKUP($G24,$G25:AD39,AD23) -> OK | AE24: =VLOOKUP($G24,$G25:AE39,AE23) -> 0 | AF24: =VLOOKUP($G24,$G25:AF39,AF23) -> 0 | AG24: =VLOOKUP($G24,$G25:AG39,AG23) -> 0 | AH24: =VLOOKUP($G24,$G25:AH39,AH23) -> 0
A25: 1 | B25: =$I$4 -> vše | G25: 1 | H25: Česky | I25: Přidat do databáze | J25: Mám opravdu smazat databázi? | K25: OK | L25: Počet záznamů v databázi: | M25: Zobrazit databázi | N25: Zpět na výběr | O25: Export databáze | P25: Cena (Kč) | Q25: Číslo | R25: Model | S25: Objednací číslo | T25: Typ | U25: Výška [mm] | V25: Délka [mm] | W25: t1 | X25: t2 | Y25: ti | Z25: Tepelný výkon | AA25: Poznámka | AB25: Identifikace: | AC25: Vybraná oblast neobsahuje správná data!!! | AD25: OK
A26: 2 | B26: 700 | G26: 2 | H26: Anglicky | I26: Add into database | J26: Shall the database really be deleted? | K26: OK | L26: No. of articles in database: | M26: Display the database | N26: Back to menu | O26: Database export | P26: Price (€) | Q26: No. | R26: Model | S26: Order No. | T26: TYPE | U26: Height [mm] | V26: Length [mm] | W26: t1 | X26: t2 | Y26: ti | Z26: Heat output | AA26: Note | AB26: Identification: | AC26: Selected area does not content right data !!! | AD26: OK
A27: 3 | B27: 900 | G27: 3 | H27: Německy | I27: In die Database hinzufügen | J27: Soll die Database wirklich gelöscht werden? | K27: OK | L27: Anzahl der Aufnahmen in der Database: | M27: Database abbilden | N27: Zurück zur Auswahl | O27: Database exportieren | P27: Preis (€) | Q27: No. | R27: Modell | S27: Bestellnummer | T27: TYP | U27: Bauhöhe [mm] | V27: Baulänge [mm] | W27: t1 | X27: t2 | Y27: ti | Z27: Wärmeleistung | AA27: Bemerkung | AB27: Identifikation: | AC27: Ausgewählter Bereich beinhaltet nicht die richtigen Daten !!! | AD27: OK
A28: 4 | B28: 1220 | G28: 4 | H28: Rusky | I28: Добавить в базу данных | J28: Хотите сбросить базу данных?? | K28: OK | L28: Количество записей в базе данный: | M28: Изобразить колонки из перечня | N28: Вернуться на выбор | O28: Перевод избранных типов | P28: Цена (€) | Q28: Ном. | R28: Модель | S28: Код изделия | T28: Тип | U28: Высота (мм) | V28: Длина (мм) | W28: Т1 | X28: Т2 | Y28: ti | Z28: Тепловая мощность | AA28: Примечание | AB28: Идентификация: | AC28: В выбранной области имеется неправильная информация!!! | AD28: OK
A29: 5 | B29: 1500 | G29: 5 | H29: Polsky | I29: Dołożyć do wykazu | J29: Mam faktycznie stuszować wykaz?? | K29: OK | L29: Liczba zapisów w wykazie: | M29: Wyobrazić wykaz | N29: Z powrotem na wybór | O29: Eksport wykazu | P29: Cena (PLN) | Q29: Num | R29: Model | S29: Numer zamówienia | T29: Typ | U29: Wysokość [mm] | V29: Długość [mm] | W29: t1 | X29: t2 | Y29: ti | Z29: Wydajność cieplna | AA29: Notatka | AB29: Identyfikacja: | AC29: Wybrany zakres nie zawiera prawiedlowe dane!!! | AD29: OK
A30: 6 | B30: 1820 | G30: 6 | H30: Francouzsky | I30: Ajouter dans la base de données | J30: Etes-vous sur d´annulation de la base de données? | K30: OK | L30: No. d´inscriptions dans la base de données: | M30: Montrer la base de données | N30: Retour au choix | O30: Export de la base de données | Q30: No. | R30: Modèle | S30: No. De commande | T30: TYPE | U30: Hauteur [mm] | V30: Longueur [mm] | W30: t1 | X30: t2 | Y30: ti | Z30: Puissance thermique | AA30: Nota | AB30: Identification: | AC30: La zone marquée ne contient pas de données correctes!!! | AD30: OK
A31: 7 | G31: 7 | H31: Maďarsky | I31: Adatbázisba küldés | J31: Valóban törölni az adatbázist? | K31: OK | L31: Azt adatbázis tételeinek száma: | M31: Adatbázis megjelenítése | N31: Vissza a kiválasztáshoz | O31: Adatbázis exportja | Q31: Sz. | R31: Modell | S31: Megrend. szám | T31: Típus | U31: Magasság [mm] | V31: Hosszúság [mm] | W31: t1 | X31: t2 | Y31: ti | Z31: Hőteljesít- mény | AA31: Megjegyzés | AB31: Azonosító: | AC31: A kiválasztott terület nem tartalmaz valós adatokat !!! | AD31: OK
G32: 8 | H32: Švédsky | I32: Lägg till i databasen | J32: Ska du verkligen tömma databasen? | K32: OK | L32: Antal artiklar i databasen: | M32: Visa databasen | N32: Tillbaka till meny | O32: Exportera värde | Q32: Nr. | R32: Model | S32: Order Nr. | T32: TYP | U32: Höjd (mm) | V32: Längd (mm) | W32: t1 | X32: t2 | Y32: ti | Z32: Värmeavgivning | AA32: Notering | AB32: Identifikation: | AC32: Vald ruta inehåller inte rätt data !!! | AD32: OK
A33: Výška do | G33: 9 | H33: Rumunsky | I33: Adăugare la baza de date | J33: Sigur doriţi să ştergeţi baza de date? | K33: OK | L33: Nr. articolelor din baza de date | M33: Afişare bază de date | N33: Înapoi la meniu | O33: Exportare bază de date | Q33: Nr. | R33: Model. | S33: Comanda nr. | T33: Tip | U33: Înălţime [mm] | V33: Lungime [mm] | W33: t1 | X33: t2 | Y33: ti | Z33: Putere termică | AA33: Notă | AB33: Identificare: | AC33: Câmpul selectat nu conţine date corecte !! | AD33: OK
A34: 1 | B34: =VLOOKUP(A34,A35:B41,2,FALSE) -> vše | G34: 10 | H34: Bulharsky | I34: Допълни в базата данни | J34: Наистина ли да изтрия базата данни? | K34: OK | L34: Брой записвания в база данни: | M34: Покажи база данни | N34: Обратно към избор | O34: Експорт на база данни | Q34: Номер | R34: Модел | S34: Номер за поръчка | T34: Тип | U34: Височина [mm] | V34: Дължина [mm] | W34: t1 | X34: t2 | Y34: ti | Z34: Топлинна мощност | AA34: Забележка | AB34: Идентификация: | AC34: Избраната област не съдържа правилни данни!!! | AD34: OK
A35: 1 | B35: =$I$4 -> vše | G35: 11 | H35: Holandsky | I35: Toevoegen in database | J35: Bent u zeker om de database te verwijderen ? | K35: OK | L35: Aantal artikelen in de database: | M35: Toon de database | N35: Terug naar menu | O35: Exporteer database | Q35: Nr. | R35: Model | S35: Bestelnummer | T35: Type | U35: Hoogte [mm] | V35: Lengte [mm] | W35: t1 | X35: t2 | Y35: ti | Z35: Warmteafgifte | AA35: Opmerking | AB35: Identificatie: | AC35: De selectie heeft geen correcte data !!! | AD35: OK
A36: 2 | B36: 700 | G36: 12 | H36: Norsky | I36: Legg til i databasen | J36: Ønsker virkelig du å tømme databasen ? | K36: OK | L36: Antal artikler i databasen | M36: Vis databasen | N36: Tilbake til menyen | O36: Eksporterte verdier | Q36: Nr. | R36: Modell | S36: Ordre nr. | T36: Type | U36: Høyde (mm) | V36: Lengde (mm) | W36: t1 | X36: t2 | Y36: ti | Z36: Effekt avgivelse | AA36: Tekst | AB36: Identifikasjon : | AC36: Valgt celle inneholder feil data !!! | AD36: OK
A37: 3 | B37: 900 | G37: 13
A38: 4 | B38: 1220 | G38: 14
A39: 5 | B39: 1500 | G39: 15
A40: 6 | B40: 1820
A41: 7
C42: =logic!$L$4 -> Délka | G42: Přidávací a mazací formulář
I43: lblNadpis | K43: lblTypPopis | L43: lblVýškaPopis | M43: lblDélka Popis | N43: lblVýkonPopis | O43: lblKodArtikluPopis | P43: lblPoznamka | Q43: cmdZrusit | R43: cmdVlozit | S43: cmdNelze | T43: lblZapisProveden | U43: cmdVymazat | W43: lblVymaz | X43: lblVymazDatabaze
G44: =G23 -> 1 | H44: =G44+1 -> 2 | I44: =H44+1 -> 3 | J44: =I44+1 -> 4 | K44: =J44+1 -> 5 | L44: =K44+1 -> 6 | M44: =L44+1 -> 7 | N44: =M44+1 -> 8 | O44: =N44+1 -> 9 | P44: =O44+1 -> 10 | Q44: =P44+1 -> 11 | R44: =Q44+1 -> 12 | S44: =R44+1 -> 13 | T44: =S44+1 -> 14 | U44: =T44+1 -> 15 | V44: =U44+1 -> 16 | W44: =V44+1 -> 17 | X44: =W44+1 -> 18 | Y44: =X44+1 -> 19 | Z44: =Y44+1 -> 20 | AA44: =Z44+1 -> 21 | AB44: =AA44+1 -> 22
A45: 1 | B45: =VLOOKUP(A45,A46:B47,2,FALSE) -> W | C45: =VLOOKUP(A45,A46:C47,3,FALSE) -> W | D45: =VLOOKUP(A45,A46:D47,4,FALSE) -> 1 | E45: =VLOOKUP(B45,B46:E47,4,FALSE) -> [W] | G45: =$G$4 -> 1 | H45: =VLOOKUP($G45,$G46:H60,H44) -> Česky | I45: =VLOOKUP($G45,$G46:I60,I44) -> Přidání položky do databáze | J45: =VLOOKUP($G45,$G46:J60,J44) -> Model | K45: =VLOOKUP($G45,$G46:K60,K44) -> Typ | L45: =VLOOKUP($G45,$G46:L60,L44) -> Výška [mm] | M45: =VLOOKUP($G45,$G46:M60,M44) -> Délka [mm] | N45: =VLOOKUP($G45,$G46:N60,N44) -> Tepelný výkon | O45: =VLOOKUP($G45,$G46:O60,O44) -> Objednací číslo | P45: =VLOOKUP($G45,$G46:P60,P44) -> Poznámka (maximum 20 znaků): | Q45: =VLOOKUP($G45,$G46:Q60,Q44) -> Zrušit | R45: =VLOOKUP($G45,$G46:R60,R44) -> Vložit | S45: =VLOOKUP($G45,$G46:S60,S44) -> Formulář nelze zavřít tímto způsobem !!! | T45: =VLOOKUP($G45,$G46:T60,T44) -> Zápis úspěšně proveden | U45: =VLOOKUP($G45,$G46:U60,U44) -> Vymazat | V45: =VLOOKUP($G45,$G46:V60,V44) -> Databáze | W45: =VLOOKUP($G45,$G46:W60,W44) -> Výmaz položky z databáze | X45: =VLOOKUP($G45,$G46:X60,X44) -> Výmaz databáze | Y45: =VLOOKUP($G45,$G46:Y60,Y44) -> 0 | Z45: =VLOOKUP($G45,$G46:Z60,Z44) -> 0 | AA45: =VLOOKUP($G45,$G46:AA60,AA44) -> 0 | AB45: =VLOOKUP($G45,$G46:AB60,AB44) -> 0
A46: 1 | B46: W | C46: W | D46: 1 | E46: [W] | G46: 1 | H46: Česky | I46: Přidání položky do databáze | J46: Model | K46: Typ | L46: Výška [mm] | M46: Délka [mm] | N46: =O5 -> Tepelný výkon | O46: Objednací číslo | P46: Poznámka (maximum 20 znaků): | Q46: Zrušit | R46: Vložit | S46: Formulář nelze zavřít tímto způsobem !!! | T46: Zápis úspěšně proveden | U46: Vymazat | V46: Databáze | W46: Výmaz položky z databáze | X46: Výmaz databáze
A47: 2 | B47: BTU | C47: BTU | D47: 3.412 | E47: [BTU] | G47: 2 | H47: Anglicky | I47: Add item into the database | J47: Model | K47: Type | L47: Height [mm] | M47: Length [mm] | N47: =O6 -> Heat output | O47: Order No. | P47: Note (up to 20 characters) | Q47: Cancel | R47: Add | S47: The form cannot be closed in this way !!! | T47: Entry successfully processed | U47: Delete | V47: Database | W47: Delete an item from the database | X47: Database erase
G48: 3 | H48: Německy | I48: Den Posten in die Database hinzufügen | J48: Modell | K48: Typ | L48: Bauhöhe [mm] | M48: Baulänge [mm] | N48: Wärmeleistungen | O48: Bestellnummer | P48: Bemerkung (max. 20 Zeichen) | Q48: Aufheben | R48: Einfügen | S48: Das Formular kann nicht auf diese Art geschlossen werden !!! | T48: Eingabe erfolgreich durchgeführt | U48: Löschen | V48: Database | W48: Den Posten aus der Database löschen | X48: Database löschen
G49: 4 | H49: Rusky | I49: Добавить в базу данных | J49: Модель | K49: Тип | L49: Высота (мм) | M49: Длина (мм) | N49: Тепловая мощность | O49: Код изделия | P49: Примечание (макс 20 знаков) | Q49: Отменить | R49: Добавить | S49: Документ не возможно закрыть в таком формате!!! | T49: Запись успешно сделана | U49: Смазать | V49: База данных | W49: Исключение позиции из базы данных | X49: Сброс базы данных
G50: 5 | H50: Polsky | I50: Dorzucanie pozycje do wykazu | J50: Model | K50: Typ | L50: Wysokość [mm] | M50: Długość [mm] | N50: Wydajność cieplna | O50: Numer zamówienia | P50: Notatka (maksymalnie 20 znaków) | Q50: Anulować | R50: Włożyć | S50: Formularz nie można w ten sposób zamknąć!!! | T50: Zapis dokonan z powodzeniem | U50: Wykreślać | V50: Wykaz | W50: Wykreślać pozycje z wykazu | X50: Wykreślić z wykazu
A51: 1 | B51: =VLOOKUP(A51,A52:B53,2,FALSE) -> spodní zdola dolů | G51: 6 | H51: Francouzsky | I51: Adjonction d´un article dans la base de données | J51: Modèle | K51: Type | L51: Hauteur [mm] | M51: Longueur [mm] | N51: Puissance thermique | O51: Indication de l´article | P51: Note (20 caractères au maximum) | Q51: Annuler | R51: Insérer | S51: Il n´est pas possible de fermer le formulaire de cette façon !!! | T51: Inscription réalisée avec succès | U51: Effacer | V51: Base de données | W51: Effacement d´un article | X51: Effacer la base de données
A52: 1 | B52: =Z4 -> spodní zdola dolů | G52: 7 | H52: Maďarsky | I52: Tétel hozzáadása az adatbázishoz | J52: Modell | K52: Típus | L52: Magasság [mm] | M52: Hosszúság [mm] | N52: Hőteljesítmény | O52: Megrendelési szám | P52: Megjegyzés (maximum 20 karakter): | Q52: Mégse | R52: Beszúr | S52: Így nem lehet bezárni a programot !!! | T52: A beírás sikeres volt | U52: Töröl | V52: Adatbázis | W52: Tétel törlése az adatbázisból | X52: Adatbázis törlése
A53: 2 | B53: =AA4 -> úhlopříčné shora | G53: 8 | H53: Švédsky | I53: Lägg objekt i databasen | J53: Model | K53: Typ | L53: Höjd (mm) | M53: Längd (mm) | N53: Värmeavgivning | O53: Order Nr. | P53: Notering (upp till 20 tecken) | Q53: Ångra | R53: Lägg till | S53: fel !!! | T53: Invärde korrekta | U53: Ta bort | V53: Databas | W53: Ta bort ett objekt från databas | X53: Radera data
G54: 9 | H54: Rumunsky | I54: Adăugare articol în baza de date | J54: Model | K54: Tip | L54: Înălţime [mm] | M54: Lungime [mm] | N54: Putere termică | O54: Comanda nr. | P54: Observaţii (până la 20 de caractere) | Q54: Anulare | R54: Adăugare | S54: Fereastra nu poate fi închisă în acest mod !!! | T54: Valorile de intrare au fost procesate cu succes | U54: Şterge | V54: Bază de date | W54: Ştergerea unui articol din baza de date | X54: Ştergere baza de date
G55: 10 | H55: Bulharsky | I55: Допълване на позиции в базата данни | J55: Модел | K55: Тип | L55: Височина [mm] | M55: Дължина [mm] | N55: Топлинна мощност | O55: Номер за поръчка | P55: Забележка (максимално 20 знака): | Q55: Анулирай | R55: Въведи | S55: Формулярът не може да се затвори по този начин !!! | T55: Успешно извършено записване | U55: Изтрий | V55: База данни | W55: Изтрий позиции в база данни | X55: Изтрий база данни
G56: 11 | H56: Holandsky | I56: Toevoegen van artikel in database | J56: Model | K56: Type | L56: Hoogte [mm] | M56: Lengte [mm] | N56: Warmteafgifte | O56: Bestelnummer | P56: Opmerking (maximum 20 karakters) | Q56: Annuleren | R56: Toevoegen | S56: Afsluiten van het document niet mogelijk !!! | T56: Ingave succesvol beëindigd | U56: Verwijder | V56: Database | W56: Verwijder een artikel uit de database | X56: Verwijder de database
G57: 12 | H57: Norsky | I57: Legg produktet i databasen | J57: Modell | K57: Type | L57: Høyde (mm) | M57: Lengde (mm) | N57: Effekt avgivelse | O57: Ordre nr. | P57: Tekst (maks 20 tegn) | Q57: Angre | R57: Legg til | S57: Feil !!! | T57: Inndata er korrekt | U57: Ta bort | V57: Database | W57: Ta bort en enhet fra databasen | X57: Slett inndata
A58: Číslování verzí | G58: 13
A59: kód země | B59: číslo verze | D59: datum sort. | E59: makra | G59: 14
A60: CZ | B60: 1 | C60: 02 | D60: 01/2017 | E60: M | G60: 15
A62: AT | B62: 1 | C62: 01 | E62: M
A63: CZ | B63: 2 | C63: 02
A64: DE | B64: 3 | C64: 03
A65: PL | B65: 4 | C65: 04
A66: UA | B66: 5 | C66: 05
A67: RU | C67: 06 | E67: =A60&" OTT "&B60&"."&C60&"-"&MID(D60,1,2)&"/"&MID(D60,6,2)&" "&E60 -> CZ OTT 1.02-01/17 M
A68: HU | C68: 07
A69: SW | C69: 08
A70: RO | C70: 09
A71: CL | C71: 10
A75: KLMM | B75: =VLOOKUP(model_zdroj,A76:B90,2,FALSE) -> KORALUX LINEAR MAX - M | F75: KORALUX LINEAR CLASSIC | I75: =VLOOKUP(F75,F76:I90,4,FALSE) -> KLC
A76: KSC | B76: KORALUX STANDARD | F76: KORALUX STANDARD | I76: =A76 -> KSC
A77: KLC | B77: KORALUX LINEAR CLASSIC | F77: KORALUX LINEAR CLASSIC | I77: KLC
A78: KLCM | B78: KORALUX LINEAR CLASSIC - M | F78: KORALUX LINEAR CLASSIC - M | I78: KLCM
A79: KRC | B79: KORALUX RONDO CLASSIC | F79: KORALUX RONDO CLASSIC | I79: KRC
A80: KRCM | B80: KORALUX RONDO CLASSIC - M | F80: KORALUX RONDO CLASSIC - M | I80: KRCM
A81: KLT | B81: KORALUX LINEAR COMFORT | F81: KORALUX LINEAR COMFORT | I81: KLT
A82: KLTM | B82: KORALUX LINEAR COMFORT - M | F82: KORALUX LINEAR COMFORT - M | I82: KLTM
A83: KRT | B83: KORALUX RONDO COMFORT | F83: KORALUX RONDO COMFORT | I83: KRT
A84: KRTM | B84: KORALUX RONDO COMFORT - M | F84: KORALUX RONDO COMFORT - M | I84: KRTM
A85: KLM | B85: KORALUX LINEAR MAX | F85: KORALUX LINEAR MAX | I85: KLM
A86: KLMM | B86: KORALUX LINEAR MAX - M | F86: KORALUX LINEAR MAX - M | I86: KLMM
A87: KRM | B87: KORALUX RONDO MAX | F87: KORALUX RONDO MAX | I87: KRM
A88: KRMM | B88: KORALUX RONDO MAX - M | F88: KORALUX RONDO MAX - M | I88: KRMM
A89: KLXM | B89: KORALUX LINEAR EXCLUSIVE - M | F89: KORALUX LINEAR EXCLUSIVE - M | I89: KLXM
A90: KRXM | B90: KORALUX RONDO EXCLUSIVE - M | F90: KORALUX RONDO EXCLUSIVE - M | I90: KRXM
D98: VÝKONY
A99: 1 | B99: =VLOOKUP(A99,A100:B101,2,FALSE) -> LINEAR | D99: 2 | E99: =VLOOKUP(D99,D100:E101,2,FALSE) -> NF
A100: 1 | B100: LINEAR | D100: 1 | E100: České
A101: 2 | B101: RONDO | D101: 2 | E101: NF
A105: 1 | B105: =VLOOKUP(A105,A106:B107,2,FALSE) -> BARVA
A106: 1 | B106: =AD4 -> BARVA
A107: 2 | B107: =AE4 -> CHROM
